Workbook

Sheet GenInfo, Assmp, Projctns
A1: Page Navigation | B1: Assumptions | C1: Projections | D1: R. Function | E1: Nav. Bar | L1: Gen Info
A2: General Information | B2: 2011 | C2: 2012 | D2: 2013 | E2: 2014 | F2: 2015 | G2: 2016 | H2: 2017 | I2: 2018 | J2: 2019 | K2: 2020 | L2: Expenses
A3: Product | B3: Strawberry | L3: Depreciations
A4: Unit of Sale | B4: kg | L4: Income St
A5: Harvest season | B5: Nov-Mar | L5: Balance Sht
A6: Initial number of plants | B6: 6000 | L6: Capital Structure
A7: Fruit per plant(kg) | B7: 0.15 | L7: Cash Flows M
A8: Total fruit per year(kg) | B8: =B6*B7 -> 900 | L8: Cash Flows Y
A9: Price Per kg (Tk) | B9: 600 | L9: DCF, NPV & IRR
A10: Mortality Rate | B10: ='Sensitivities & Monte Carlo'!B8 -> 0.3 | C10: =B10*(1+$B$11) -> 0.306 | D10: =C10*(1+$B$11) -> 0.31212 | E10: 0.3183624 | F10: 0.324729648 | G10: 0.331224241 | H10: 0.3378487258 | I10: 0.3446057003 | J10: 0.3514978143 | K10: 0.3585277706 | L10: Break Even
A11: Increase in Mortality Rate | B11: ='Sensitivities & Monte Carlo'!B9 -> 0.02 | L11: Sensitivity & MC
L12: Ratios
A13: Assumptions | B13: 2011 | C13: 2012 | D13: 2013 | E13: 2014 | F13: 2015 | G13: 2016 | H13: 2017 | I13: 2018 | J13: 2019 | K13: 2020 | L13: PVSOB
A14: Market Growth Rate (Net) | B14: ='Sensitivities & Monte Carlo'!B15 -> 0.1 | C14: ='Sensitivities & Monte Carlo'!C15 -> 0.09 | D14: ='Sensitivities & Monte Carlo'!D15 -> 0.081 | E14: ='Sensitivities & Monte Carlo'!E15 -> 0.0729 | F14: ='Sensitivities & Monte Carlo'!F15 -> 0.06561 | G14: ='Sensitivities & Monte Carlo'!G15 -> 0.059049 | H14: ='Sensitivities & Monte Carlo'!H15 -> 0.0531441 | I14: ='Sensitivities & Monte Carlo'!I15 -> 0.04782969 | J14: ='Sensitivities & Monte Carlo'!J15 -> 0.043046721 | K14: ='Sensitivities & Monte Carlo'!K15 -> 0.0387420489 | L14: Scenario Cases
A15: Decrease in Growth Rate Due to Competition | B15: ='Sensitivities & Monte Carlo'!B4 -> 0.1
A16: Price Increase Due to Inflation | B16: ='Sensitivities & Monte Carlo'!B5 -> 0.02
A17: Price Decrease Due to Competition | B17: ='Sensitivities & Monte Carlo'!B6 -> 0.1
A18: Field Capacity (kg) | B18: 1200
A20: Projected Revenue Generation | B20: 2011 | C20: 2012 | D20: 2013 | E20: 2014 | F20: 2015 | G20: 2016 | H20: 2017 | I20: 2018 | J20: 2019 | K20: 2020
A21: Price Per kg (Tk) | B21: 600 | C21: =B21+B21*$B$16-B21*$B$17 -> 552 | D21: 507.84 | E21: 467.2128 | F21: 429.835776 | G21: 395.4489139 | H21: 363.8130008 | I21: 334.7079607 | J21: 307.9313239 | K21: 283.296818
A22: Total fruit per year(kg) | B22: 900 | C22: =B22*(1+C14) -> 981 | D22: =C22*(1+D14) -> 1060.461 | E22: 1137.768607 | F22: 1212.417605 | G22: 1284.009652 | H22: 1352.24719 | I22: 1416.924754 | J22: 1477.918718 | K22: 1535.176317
A23: Total fruit per year (net of mortality) | B23: =B22*(1-B10) -> 630 | C23: =C22*(1-C10) -> 680.814 | D23: 729.4699127 | E23: 775.5458626 | F23: 818.709663 | G23: 858.7145299 | H23: 895.3921997 | I23: 928.6444066 | J23: 958.433519 | K23: 984.7729749
A24: Total Revenue (Tk) | B24: =B23*B21 -> 378000 | C24: =C23*C21 -> 375809.328 | D24: 370454.0005 | E24: 362344.954 | F24: 351910.7033 | G24: 339577.7282 | H24: 325755.3231 | I24: 310824.6756 | J24: 295131.7024 | K24: 278983.0502
A25: Expansion on year 2015
A26: New Field Capacity | B26: =(B18*2)+B18 -> 3600
A28: Projected Revenue From 2015 | F28: 2015 | G28: 2016 | H28: 2017 | I28: 2018 | J28: 2019 | K28: 2020
A29: Price Per kg (Tk) | F29: =F21 -> 429.835776 | G29: 395.4489139 | H29: 363.8130008 | I29: 334.7079607 | J29: 307.9313239 | K29: 283.296818
A30: Total fruit per year(kg) | F30: 2400 | G30: =F30*(1+G14) -> 2541.7176 | H30: =G30*(1+H14) -> 2676.794894 | I30: =H30*(1+I14) -> 2804.825164 | J30: =I30*(1+J14) -> 2925.563691 | K30: =J30*(1+K14) -> 3038.906022
A31: Total fruit per year (net of mortality) | F31: =F30*(1-F10) -> 1620.648845 | G31: 1699.839117 | H31: 1772.44315 | I31: 1838.266424 | J31: 1897.234448 | K31: 1949.373821
A32: Total Revenue (Tk) | F32: =F31*F29 -> 696612.8538 | G32: 672199.5327 | H32: 644837.8612 | I32: 615282.4062 | J32: 584217.9152 | K32: 552251.4005
A34: Revenue Growth Rates | C34: 2012 | D34: 2013 | E34: 2014 | F34: 2016 | G34: 2017 | H34: 2018 | I34: 2019 | J34: 2020
A35: Yearly | C35: =(C24-B24)/B24 -> -0.005795428571 | D35: =(D24-C24)/C24 -> -0.01425011873 | E35: =(E24-D24)/D24 -> -0.02188948282 | F35: =(G32-F32)/F32 -> -0.03504575168 | G35: =(H32-G32)/G32 -> -0.04070468694 | H35: =(I32-H32)/H32 -> -0.04583393249 | I35: =(J32-I32)/I32 -> -0.05048818342 | J35: =(K32-J32)/J32 -> -0.05471676553
A36: Average Growth Rate | B36: =AVERAGE(C35:J35) -> -0.03359054377
A38: Revenue Functions
A39: Before Expansion Stage | K39: After Expansion Stage
A41: Units (X) | B41: Sales (Y) | K41: Units (X) | L41: Sales (Y)
A42: =B23 -> 630 | B42: =B24 -> 378000 | K42: =F31 -> 1620.648845 | L42: =F32 -> 696612.8538
A43: =C23 -> 680.814 | B43: =C24 -> 375809.328 | K43: =G31 -> 1699.839117 | L43: =G32 -> 672199.5327
A44: =D23 -> 729.4699127 | B44: =D24 -> 370454.0005 | K44: =H31 -> 1772.44315 | L44: =H32 -> 644837.8612
A45: =E23 -> 775.5458626 | B45: =E24 -> 362344.954 | K45: =I31 -> 1838.266424 | L45: =I32 -> 615282.4062
K46: =J31 -> 1897.234448 | L46: =J32 -> 584217.9152
K47: =K31 -> 1949.373821 | L47: =K32 -> 552251.4005
A48: SUMMARY OUTPUT
K49: SUMMARY OUTPUT
A50: Regression Statistics
A51: Multiple R | B51: 0.9957039102 | K51: Regression Statistics
A52: R Square | B52: 0.9914262768 | K52: Multiple R | L52: 0.9901558916
A53: Adjusted R Square | B53: 0.6580929434 | K53: R Square | L53: 0.9804086897
A54: Standard Error | B54: 38947.22025 | K54: Adjusted R Square | L54: 0.7804086897
A55: Observations | B55: 4 | K55: Standard Error | L55: 86535.53622
K56: Observations | L56: 6
A57: ANOVA
B58: df | C58: SS | D58: MS | E58: F | F58: Significance F | K58: ANOVA
A59: Regression | B59: 1 | C59: 5.262173379e+11 | D59: 5.262173379e+11 | E59: 346.9063264 | F59: 0.002870217865 | L59: df | M59: SS | N59: MS | O59: F | P59: Significance F
A60: Residual | B60: 3 | C60: 4550657897 | D60: 1516885966 | K60: Regression | L60: 1 | M60: 1.873711193e+12 | N60: 1.873711193e+12 | O60: 250.2151909 | P60: 9.333411186e-05
A61: Total | B61: 4 | C61: 5.307679958e+11 | K61: Residual | L61: 5 | M61: 3.744199515e+10 | N61: 7488399029
K62: Total | L62: 6 | M62: 1.911153188e+12
B63: Coefficients | C63: Standard Error | D63: t Stat | E63: P-value | F63: Lower 95% | G63: Upper 95% | H63: Lower 95.0% | I63: Upper 95.0%
A64: Intercept | B64: 0 | L64: Coefficients | M64: Standard Error | N64: t Stat | O64: P-value | P64: Lower 95% | Q64: Upper 95% | R64: Lower 95.0% | S64: Upper 95.0%
A65: X Variable 1 | B65: 525.7597179 | C65: 28.22807085 | D65: 18.62542151 | E65: 0.0003378032488 | F65: 435.9253982 | G65: 615.5940377 | H65: 435.9253982 | I65: 615.5940377 | K65: Intercept | L65: 0
K66: X Variable 1 | L66: 350.3272467 | M66: 22.14711086 | N66: 15.81819177 | O66: 1.836963993e-05 | P66: 293.3962858 | Q66: 407.2582076 | R66: 293.3962858 | S66: 407.2582076
A69: Revenue Per Kg
A70: Before Expansion | B70: =B65 -> 525.7597179
A71: After Expansion | B71: =L66 -> 350.3272467
A72: Overall Average | B72: =((B70*4)+(B71*6))/10 -> 420.5002352

Sheet HR Expenses and Consumables
A1: Page Navigation | B1: Assumptions | C1: Packaging | D1: HR | E1: Consumables | F1: CAPEX | G1: Nav. Bar | M1: Gen Info
A2: Projected expenses | M2: Expenses
A3: ASSUMPTIONS: | B3: 2011 | C3: 2012 | D3: 2013 | E3: 2014 | F3: 2015 | G3: 2016 | H3: 2017 | I3: 2018 | J3: 2019 | K3: 2020 | M3: Depreciations
A4: Land size (bighas) | B4: 1 | M4: Income St
A5: Number of saplings | B5: 6000 | F5: =(F19/'GenInfo, Assmp, Projctns'!B7)-B5 -> 10000 | M5: Balance Sht
A6: Price per sapling (Tk.) | B6: 20 | M6: Capital Structure
A7: Weight of fruit per packet (kg) | B7: 0.25 | M7: Cash Flows M
A8: Packaging cost (Tk.) | B8: 5 | M8: Cash Flows Y
A9: Day laborer charge per day (Tk.) | B9: 200 | M9: DCF, NPV & IRR
A10: Number of day laborers | B10: 3 | M10: Break Even
A11: Number of days laborers needed per year | B11: 5 | M11: Sensitivity & MC
A12: Increase in labor rate | B12: ='Sensitivities & Monte Carlo'!B7 -> 0.02 | M12: Ratios
A13: Packaging Cost Per kg | B13: 20 | C13: =B13*(1+$B$14) -> 20.4 | D13: =C13*(1+$B$14) -> 20.808 | E13: 21.22416 | F13: 21.6486432 | G13: 22.08161606 | H13: 22.52324839 | I13: 22.97371335 | J13: 23.43318762 | K13: 23.90185137 | M13: PVSOB
A14: ='GenInfo, Assmp, Projctns'!A16 -> Price Increase Due to Inflation | B14: ='GenInfo, Assmp, Projctns'!B16 -> 0.02 | M14: Scenario Cases
A15: Expansion Year | B15: 2015
A17: Packaging Costs
A18: Year | B18: 2011 | C18: 2012 | D18: 2013 | E18: 2014 | F18: 2015 | G18: 2016 | H18: 2017 | I18: 2018 | J18: 2019 | K18: 2020
A19: ='GenInfo, Assmp, Projctns'!A22 -> Total fruit per year(kg) | B19: ='GenInfo, Assmp, Projctns'!B22 -> 900 | C19: ='GenInfo, Assmp, Projctns'!C22 -> 981 | D19: ='GenInfo, Assmp, Projctns'!D22 -> 1060.461 | E19: ='GenInfo, Assmp, Projctns'!E22 -> 1137.768607 | F19: ='GenInfo, Assmp, Projctns'!F30 -> 2400 | G19: ='GenInfo, Assmp, Projctns'!G30 -> 2541.7176 | H19: ='GenInfo, Assmp, Projctns'!H30 -> 2676.794894 | I19: ='GenInfo, Assmp, Projctns'!I30 -> 2804.825164 | J19: ='GenInfo, Assmp, Projctns'!J30 -> 2925.563691 | K19: ='GenInfo, Assmp, Projctns'!K30 -> 3038.906022
A20: Total Packaging Cost Per Year | B20: =B19*B13 -> 18000 | C20: 20012.4 | D20: 22066.07249 | E20: 24148.18296 | F20: 51956.74368 | G20: 56125.23219 | H20: 60290.11628 | I20: 64437.24933 | J20: 68555.28286 | K20: 72635.48008
A22: Year | B22: 2011 | C22: 2012 | D22: 2013 | E22: 2014 | F22: 2015 | G22: 2016 | H22: 2017 | I22: 2018 | J22: 2019 | K22: 2020
A23: Human resource costs (At the end of the period)
A24: Full time laborer x 2 | B24: 4500 | C24: =B24*(1+$B$12) -> 4590 | D24: =C24*(1+$B$12) -> 4681.8 | E24: 4775.436 | F24: 4870.94472 | G24: 4968.363614 | H24: 5067.730887 | I24: 5169.085504 | J24: 5272.467215 | K24: 5377.916559
A25: Bookkeeper | B25: 5000 | C25: =B25*(1+$B$12) -> 5100 | D25: =C25*(1+$B$12) -> 5202 | E25: 5306.04 | F25: 5412.1608 | G25: 5520.404016 | H25: 5630.812096 | I25: 5743.428338 | J25: 5858.296905 | K25: 5975.462843
A26: Day laborers for land preparation | B26: 3000 | C26: =B26*(1+$B$12) -> 3060 | D26: =C26*(1+$B$12) -> 3121.2 | E26: =D26*(1+$B$12) -> 3183.624 | F26: =E26*(1+$B$12)*3/2 -> 4870.94472 | G26: =F26*(1+$B$12) -> 4968.363614 | H26: 5067.730887 | I26: 5169.085504 | J26: 5272.467215 | K26: 5377.916559
A27: Day laborers for netting | B27: 1000 | C27: =B27*(1+$B$12) -> 1020 | D27: =C27*(1+$B$12) -> 1040.4 | E27: =D27*(1+$B$12) -> 1061.208 | F27: =E27*(1+$B$12)*3 -> 3247.29648 | G27: 3312.24241 | H27: 3378.487258 | I27: 3446.057003 | J27: 3514.978143 | K27: 3585.277706
A28: Total HR costs | B28: =SUM(B24:B27) -> 13500 | C28: =SUM(C24:C27) -> 13770 | D28: 14045.4 | E28: 14326.308 | F28: 18401.34672 | G28: 18769.37365 | H28: 19144.76113 | I28: 19527.65635 | J28: 19918.20948 | K28: 20316.57367
A30: Consumables (At the end of the period)
A31: Manure | B31: 1500 | C31: =B31*(1+$B$14) -> 1530 | D31: 1560.6 | E31: 1591.812 | F31: =E31*(1+$B$14)*2 -> 3247.29648 | G31: =F31*(1+$B$14) -> 3312.24241 | H31: =G31*(1+$B$14) -> 3378.487258 | I31: =H31*(1+$B$14) -> 3446.057003 | J31: =I31*(1+$B$14) -> 3514.978143 | K31: =J31*(1+$B$14) -> 3585.277706
A32: Truck cost for manure | B32: 2000 | C32: 2040 | D32: 2080.8 | E32: 2122.416 | F32: =E32*(1+$B$14)*2 -> 4329.72864 | G32: =F32*(1+B14) -> 4416.323213 | H32: =G32*(1+C14) -> 4416.323213 | I32: =H32*(1+D14) -> 4416.323213 | J32: =I32*(1+E14) -> 4416.323213 | K32: =J32*(1+F14) -> 4416.323213
A33: Packaging cost | B33: =B20 -> 18000 | C33: 20012.4 | D33: 22066.07249 | E33: 24148.18296 | F33: 51956.74368 | G33: 56125.23219 | H33: 60290.11628 | I33: 64437.24933 | J33: 68555.28286 | K33: 72635.48008
A34: Vitamin supplement | B34: 25 | C34: 25 | D34: 25 | E34: 25 | F34: =E34*2 -> 50 | G34: =F34 -> 50 | H34: =G34 -> 50 | I34: =H34 -> 50 | J34: =I34 -> 50 | K34: =J34 -> 50
A35: Electricity bill | B35: 12000 | C35: 12000 | D35: 12000 | E35: 12000 | F35: 12000 | G35: 12000 | H35: 12000 | I35: 12000 | J35: 12000 | K35: 12000
A36: Lease on land cost | B36: 20000 | C36: 20000 | D36: 20000 | E36: 20000 | F36: =E36*2.5 -> 50000 | G36: =F36 -> 50000 | H36: =G36 -> 50000 | I36: =H36 -> 50000 | J36: =I36 -> 50000 | K36: =J36 -> 50000
A37: Total Consumables | B37: =SUM(B31:B36) -> 53525 | C37: =SUM(C31:C36) -> 55607.4 | D37: 57732.47249 | E37: 59887.41096 | F37: 121583.7688 | G37: 125903.7978 | H37: 130134.9268 | I37: 134349.6295 | J37: 138536.5842 | K37: 142687.081
A38: Total Expenses | B38: =B28+B37 -> 67025 | C38: 69377.4 | D38: 71777.87249 | E38: 74213.71896 | F38: 139985.1155 | G38: 144673.1715 | H38: 149279.6879 | I38: 153877.2859 | J38: 158454.7937 | K38: 163003.6547
A40: CAPEX
A41: Initial saplings | B41: =B5*B6 -> 120000 | C41: 0 | D41: 0 | E41: 0 | F41: =F5*B6 -> 200000 | G41: 0 | H41: 0 | I41: 0 | J41: 0 | K41: 0
A42: Netting | B42: 3500 | C42: 0 | D42: 0 | E42: 0 | F42: =B42*(1+$B$14)^4 -> 3788.51256 | G42: 0 | H42: 0 | I42: 0 | J42: 0 | K42: 0
A43: RCC Pillars for netting | B43: 4500 | C43: 0 | D43: 0 | E43: 0 | F43: =B43*3*(1+B14)^4 -> 14612.83416 | G43: 0 | H43: 0 | I43: 0 | J43: 0 | K43: 0
A44: Bamboo | B44: 3000 | C44: 0 | D44: 0 | E44: 0 | F44: =B44*3*(1+B14)^4 -> 9741.88944 | G44: 0 | H44: 0 | I44: 0 | J44: 0 | K44: 0
A45: pH test of soil* | B45: 75 | C45: 0 | D45: 0 | E45: 0 | F45: =B45 -> 75 | G45: 0 | H45: 0 | I45: 0 | J45: 0 | K45: 0
A46: Trade license cost | B46: 650 | C46: 0 | D46: 0 | E46: 0 | F46: 0 | G46: 0 | H46: 0 | I46: 0 | J46: 0 | K46: 0
A47: Labor shed & toilet | B47: 50000 | C47: 0 | D47: 0 | E47: 0 | F47: 0 | G47: 0 | H47: 0 | I47: 0 | J47: 0 | K47: 0
A48: Total Capex | B48: =SUM(B41:B47) -> 181725 | C48: 0 | D48: 0 | E48: 0 | F48: 228218.2362 | G48: 0 | H48: 0 | I48: 0 | J48: 0 | K48: 0
A49: TOTTAL COST FOR THE YEAR | B49: =B38+B48 -> 248750 | C49: 69377.4 | D49: 71777.87249 | E49: 74213.71896 | F49: 368203.3517 | G49: 144673.1715 | H49: 149279.6879 | I49: 153877.2859 | J49: 158454.7937 | K49: 163003.6547
A52: * Done at khamarbari

Sheet Depreciation and Ammortization
A1: Depreciation of Assets | B1: Page Navigation | C1: Depreciations | D1: Ammortizations | E1: Nav. Bar | M1: Gen Info
M2: Expenses
A3: Life (years) | B3: 10 | M3: Depreciations
A4: Year | B4: 2011 | C4: 2012 | D4: 2013 | E4: 2014 | F4: 2015 | G4: 2016 | H4: 2017 | I4: 2018 | J4: 2019 | K4: 2020 | M4: Income St
A5: Saplings | M5: Balance Sht
A6: ='HR Expenses and Consumables'!A41 -> Initial saplings | B6: ='HR Expenses and Consumables'!B41 -> 120000 | C6: ='HR Expenses and Consumables'!C41 -> 0 | D6: ='HR Expenses and Consumables'!D41 -> 0 | E6: ='HR Expenses and Consumables'!E41 -> 0 | F6: ='HR Expenses and Consumables'!F41 -> 200000 | G6: ='HR Expenses and Consumables'!G41 -> 0 | H6: ='HR Expenses and Consumables'!H41 -> 0 | I6: ='HR Expenses and Consumables'!I41 -> 0 | J6: ='HR Expenses and Consumables'!J41 -> 0 | K6: ='HR Expenses and Consumables'!K41 -> 0 | M6: Capital Structure
A7: Dpereciation of Initial Saplings (year end) | B7: =$B$6/$B$3 -> 12000 | C7: 12000 | D7: 12000 | E7: 12000 | F7: 12000 | G7: 12000 | H7: 12000 | I7: 12000 | J7: 12000 | K7: 12000 | M7: Cash Flows M
A8: Depreciation of Expanded Saplings (Year End) | F8: =$F$6/$B$3 -> 20000 | G8: 20000 | H8: 20000 | I8: 20000 | J8: 20000 | K8: 20000 | M8: Cash Flows Y
A9: Total Depreciation of Saplings | B9: =SUM(B7:B8) -> 12000 | C9: =SUM(C7:C8) -> 12000 | D9: 12000 | E9: 12000 | F9: 32000 | G9: 32000 | H9: 32000 | I9: 32000 | J9: 32000 | K9: 32000 | M9: DCF, NPV & IRR
M10: Break Even
A11: Netting | B11: ='HR Expenses and Consumables'!B42 -> 3500 | C11: ='HR Expenses and Consumables'!C42 -> 0 | D11: ='HR Expenses and Consumables'!D42 -> 0 | E11: ='HR Expenses and Consumables'!E42 -> 0 | F11: ='HR Expenses and Consumables'!F42 -> 3788.51256 | G11: ='HR Expenses and Consumables'!G42 -> 0 | H11: ='HR Expenses and Consumables'!H42 -> 0 | I11: ='HR Expenses and Consumables'!I42 -> 0 | J11: ='HR Expenses and Consumables'!J42 -> 0 | K11: ='HR Expenses and Consumables'!K42 -> 0 | M11: Sensitivity & MC
A12: Depreciation on Initial Netting (year end) | B12: =$B$11/$B$3 -> 350 | C12: 350 | D12: 350 | E12: 350 | F12: 350 | G12: 350 | H12: 350 | I12: 350 | J12: 350 | K12: 350 | M12: Ratios
A13: Dpereciation on Expanded Netting (year end) | F13: =$F$11/$B$3 -> 378.851256 | G13: 378.851256 | H13: 378.851256 | I13: 378.851256 | J13: 378.851256 | K13: 378.851256 | M13: PVSOB
A14: Total Depreciation of Netting | B14: =SUM(B12:B13) -> 350 | C14: =SUM(C12:C13) -> 350 | D14: 350 | E14: 350 | F14: 728.851256 | G14: 728.851256 | H14: 728.851256 | I14: 728.851256 | J14: 728.851256 | K14: 728.851256 | M14: Scenario Cases
A16: RCC Pillars for netting | B16: ='HR Expenses and Consumables'!B43 -> 4500 | C16: ='HR Expenses and Consumables'!C43 -> 0 | D16: ='HR Expenses and Consumables'!D43 -> 0 | E16: ='HR Expenses and Consumables'!E43 -> 0 | F16: ='HR Expenses and Consumables'!F43 -> 14612.83416 | G16: ='HR Expenses and Consumables'!G43 -> 0 | H16: ='HR Expenses and Consumables'!H43 -> 0 | I16: ='HR Expenses and Consumables'!I43 -> 0 | J16: ='HR Expenses and Consumables'!J43 -> 0 | K16: ='HR Expenses and Consumables'!K43 -> 0
A17: Depreciation on Initial Pillars | B17: =$B$16/$B$3 -> 450 | C17: 450 | D17: 450 | E17: 450 | F17: 450 | G17: 450 | H17: 450 | I17: 450 | J17: 450 | K17: 450
A18: Depreciation in Expanded Pillars | F18: =$F$16/$B$3 -> 1461.283416 | G18: 1461.283416 | H18: 1461.283416 | I18: 1461.283416 | J18: 1461.283416 | K18: 1461.283416
A19: Total Depreciation on Pillars | B19: =SUM(B17:B18) -> 450 | C19: =SUM(C17:C18) -> 450 | D19: 450 | E19: 450 | F19: 1911.283416 | G19: 1911.283416 | H19: 1911.283416 | I19: 1911.283416 | J19: 1911.283416 | K19: 1911.283416
A21: Bamboo | B21: ='HR Expenses and Consumables'!B44 -> 3000 | C21: ='HR Expenses and Consumables'!C44 -> 0 | D21: ='HR Expenses and Consumables'!D44 -> 0 | E21: ='HR Expenses and Consumables'!E44 -> 0 | F21: ='HR Expenses and Consumables'!F44 -> 9741.88944 | G21: ='HR Expenses and Consumables'!G44 -> 0 | H21: ='HR Expenses and Consumables'!H44 -> 0 | I21: ='HR Expenses and Consumables'!I44 -> 0 | J21: ='HR Expenses and Consumables'!J44 -> 0 | K21: ='HR Expenses and Consumables'!K44 -> 0
A22: Depreciation on Initial Bamboo | B22: =$B$21/$B$3 -> 300 | C22: 300 | D22: 300 | E22: 300 | F22: 300 | G22: 300 | H22: 300 | I22: 300 | J22: 300 | K22: 300
A23: Depreciation on Expanded Bamboo | F23: =$F$21/$B$3 -> 974.188944 | G23: 974.188944 | H23: 974.188944 | I23: 974.188944 | J23: 974.188944 | K23: 974.188944
A24: Total Depreciation on Bamboo | B24: =SUM(B22:B23) -> 300 | C24: =SUM(C22:C23) -> 300 | D24: 300 | E24: 300 | F24: 1274.188944 | G24: 1274.188944 | H24: 1274.188944 | I24: 1274.188944 | J24: 1274.188944 | K24: 1274.188944
A26: Labor shed & toilet | B26: ='HR Expenses and Consumables'!B47 -> 50000 | C26: ='HR Expenses and Consumables'!C47 -> 0 | D26: ='HR Expenses and Consumables'!D47 -> 0 | E26: ='HR Expenses and Consumables'!E47 -> 0 | F26: ='HR Expenses and Consumables'!F47 -> 0 | G26: ='HR Expenses and Consumables'!G47 -> 0 | H26: ='HR Expenses and Consumables'!H47 -> 0 | I26: ='HR Expenses and Consumables'!I47 -> 0 | J26: ='HR Expenses and Consumables'!J47 -> 0 | K26: ='HR Expenses and Consumables'!K47 -> 0
A27: Depreciation on shed & toilet | B27: =$B$26/$B$3 -> 5000 | C27: 5000 | D27: 5000 | E27: 5000 | F27: 5000 | G27: 5000 | H27: 5000 | I27: 5000 | J27: 5000 | K27: 5000
A29: Total Depreciation Expense | B29: =B9+B14+B19+B24+B27 -> 18100 | C29: =C9+C14+C19+C24+C27 -> 18100 | D29: 18100 | E29: 18100 | F29: 40914.32362 | G29: 40914.32362 | H29: 40914.32362 | I29: 40914.32362 | J29: 40914.32362 | K29: 40914.32362
A31: Ammortization
A32: Life (years) | B32: 10
A34: Trade license cost | B34: ='HR Expenses and Consumables'!B46 -> 650 | C34: ='HR Expenses and Consumables'!C46 -> 0 | D34: ='HR Expenses and Consumables'!D46 -> 0 | E34: ='HR Expenses and Consumables'!E46 -> 0 | F34: ='HR Expenses and Consumables'!F46 -> 0 | G34: ='HR Expenses and Consumables'!G46 -> 0 | H34: ='HR Expenses and Consumables'!H46 -> 0 | I34: ='HR Expenses and Consumables'!I46 -> 0 | J34: ='HR Expenses and Consumables'!J46 -> 0 | K34: ='HR Expenses and Consumables'!K46 -> 0
A35: Ammortization on Trade License | B35: =$B$34/$B$32 -> 65 | C35: =$B$34/$B$32 -> 65 | D35: 65 | E35: 65 | F35: 65 | G35: 65 | H35: 65 | I35: 65 | J35: 65 | K35: 65
A36: Total Ammortization | B36: =B35 -> 65 | C36: =C35 -> 65 | D36: 65 | E36: 65 | F36: 65 | G36: 65 | H36: 65 | I36: 65 | J36: 65 | K36: 65

Sheet Income Statement
A1: Page Navigation | B1: Revenues | C1: Op. Expenses | D1: Income | E1: Note 1 | F1: Nav. Bar | M1: Gen Info
A2: Pro Forma Income Statement | M2: Expenses
A3: Units Sold | B3: ='HR Expenses and Consumables'!B19 -> 900 | C3: ='HR Expenses and Consumables'!C19 -> 981 | D3: ='HR Expenses and Consumables'!D19 -> 1060.461 | E3: ='HR Expenses and Consumables'!E19 -> 1137.768607 | F3: ='HR Expenses and Consumables'!F19 -> 2400 | G3: ='HR Expenses and Consumables'!G19 -> 2541.7176 | H3: ='HR Expenses and Consumables'!H19 -> 2676.794894 | I3: ='HR Expenses and Consumables'!I19 -> 2804.825164 | J3: ='HR Expenses and Consumables'!J19 -> 2925.563691 | K3: ='HR Expenses and Consumables'!K19 -> 3038.906022 | M3: Depreciations
A4: Tax | B4: ='Sensitivities & Monte Carlo'!E9 -> 0.375 | M4: Income St
A5: Year | B5: 2011 | C5: 2012 | D5: 2013 | E5: 2014 | F5: 2015 | G5: 2016 | H5: 2017 | I5: 2018 | J5: 2019 | K5: 2020 | M5: Balance Sht
A6: Revenue from fruits | B6: ='GenInfo, Assmp, Projctns'!B24 -> 378000 | C6: ='GenInfo, Assmp, Projctns'!C24 -> 375809.328 | D6: ='GenInfo, Assmp, Projctns'!D24 -> 370454.0005 | E6: ='GenInfo, Assmp, Projctns'!E24 -> 362344.954 | F6: ='GenInfo, Assmp, Projctns'!F32 -> 696612.8538 | G6: ='GenInfo, Assmp, Projctns'!G32 -> 672199.5327 | H6: ='GenInfo, Assmp, Projctns'!H32 -> 644837.8612 | I6: ='GenInfo, Assmp, Projctns'!I32 -> 615282.4062 | J6: ='GenInfo, Assmp, Projctns'!J32 -> 584217.9152 | K6: ='GenInfo, Assmp, Projctns'!K32 -> 552251.4005 | M6: Capital Structure
A7: Cost of Goods Sold (Note 1) | B7: =B38 -> 36525 | C7: 38667.4 | D7: 40853.67249 | E7: 43071.03496 | F7: 76454.71352 | G7: 80872.16142 | H7: 85202.65764 | I7: 89518.71505 | J7: 93809.05143 | K7: 98064.99755 | M7: Cash Flows M
A8: Proceeds from Sales | B8: =B6-B7 -> 341475 | C8: =C6-C7 -> 337141.928 | D8: 329600.328 | E8: 319273.919 | F8: 620158.1403 | G8: 591327.3713 | H8: 559635.2036 | I8: 525763.6911 | J8: 490408.8638 | K8: 454186.403 | M8: Cash Flows Y
A9: Ratio | B9: =B8/B6 -> 0.9033730159 | C9: =C8/C6 -> 0.8971089935 | D9: 0.8897199856 | E9: 0.8811325107 | F9: 0.8902479145 | G9: 0.8796902445 | H9: 0.8678696417 | I9: 0.8545079233 | J9: 0.8394279789 | K9: 0.8224268921 | M9: DCF, NPV & IRR
M10: Break Even
A11: Other Operating Expenses | M11: Sensitivity & MC
A12: Full time laborer | B12: ='HR Expenses and Consumables'!B24 -> 4500 | C12: ='HR Expenses and Consumables'!C24 -> 4590 | D12: ='HR Expenses and Consumables'!D24 -> 4681.8 | E12: ='HR Expenses and Consumables'!E24 -> 4775.436 | F12: ='HR Expenses and Consumables'!F24 -> 4870.94472 | G12: ='HR Expenses and Consumables'!G24 -> 4968.363614 | H12: ='HR Expenses and Consumables'!H24 -> 5067.730887 | I12: ='HR Expenses and Consumables'!I24 -> 5169.085504 | J12: ='HR Expenses and Consumables'!J24 -> 5272.467215 | K12: ='HR Expenses and Consumables'!K24 -> 5377.916559 | M12: Ratios
A13: Bookkeeper | B13: ='HR Expenses and Consumables'!B25 -> 5000 | C13: ='HR Expenses and Consumables'!C25 -> 5100 | D13: ='HR Expenses and Consumables'!D25 -> 5202 | E13: ='HR Expenses and Consumables'!E25 -> 5306.04 | F13: ='HR Expenses and Consumables'!F25 -> 5412.1608 | G13: ='HR Expenses and Consumables'!G25 -> 5520.404016 | H13: ='HR Expenses and Consumables'!H25 -> 5630.812096 | I13: ='HR Expenses and Consumables'!I25 -> 5743.428338 | J13: ='HR Expenses and Consumables'!J25 -> 5858.296905 | K13: ='HR Expenses and Consumables'!K25 -> 5975.462843 | M13: PVSOB
A14: Day laborers for netting | B14: ='HR Expenses and Consumables'!B27 -> 1000 | C14: ='HR Expenses and Consumables'!C27 -> 1020 | D14: ='HR Expenses and Consumables'!D27 -> 1040.4 | E14: ='HR Expenses and Consumables'!E27 -> 1061.208 | F14: ='HR Expenses and Consumables'!F27 -> 3247.29648 | G14: ='HR Expenses and Consumables'!G27 -> 3312.24241 | H14: ='HR Expenses and Consumables'!H27 -> 3378.487258 | I14: ='HR Expenses and Consumables'!I27 -> 3446.057003 | J14: ='HR Expenses and Consumables'!J27 -> 3514.978143 | K14: ='HR Expenses and Consumables'!K27 -> 3585.277706 | M14: Scenario Cases
A15: Lease on land cost | B15: ='HR Expenses and Consumables'!B36 -> 20000 | C15: ='HR Expenses and Consumables'!C36 -> 20000 | D15: ='HR Expenses and Consumables'!D36 -> 20000 | E15: ='HR Expenses and Consumables'!E36 -> 20000 | F15: ='HR Expenses and Consumables'!F36 -> 50000 | G15: ='HR Expenses and Consumables'!G36 -> 50000 | H15: ='HR Expenses and Consumables'!H36 -> 50000 | I15: ='HR Expenses and Consumables'!I36 -> 50000 | J15: ='HR Expenses and Consumables'!J36 -> 50000 | K15: ='HR Expenses and Consumables'!K36 -> 50000
A16: Total Depreciation | B16: ='Depreciation and Ammortization'!B29 -> 18100 | C16: ='Depreciation and Ammortization'!C29 -> 18100 | D16: ='Depreciation and Ammortization'!D29 -> 18100 | E16: ='Depreciation and Ammortization'!E29 -> 18100 | F16: ='Depreciation and Ammortization'!F29 -> 40914.32362 | G16: ='Depreciation and Ammortization'!G29 -> 40914.32362 | H16: ='Depreciation and Ammortization'!H29 -> 40914.32362 | I16: ='Depreciation and Ammortization'!I29 -> 40914.32362 | J16: ='Depreciation and Ammortization'!J29 -> 40914.32362 | K16: ='Depreciation and Ammortization'!K29 -> 40914.32362
A17: Total Ammortization | B17: ='Depreciation and Ammortization'!B36 -> 65 | C17: ='Depreciation and Ammortization'!C36 -> 65 | D17: ='Depreciation and Ammortization'!D36 -> 65 | E17: ='Depreciation and Ammortization'!E36 -> 65 | F17: ='Depreciation and Ammortization'!F36 -> 65 | G17: ='Depreciation and Ammortization'!G36 -> 65 | H17: ='Depreciation and Ammortization'!H36 -> 65 | I17: ='Depreciation and Ammortization'!I36 -> 65 | J17: ='Depreciation and Ammortization'!J36 -> 65 | K17: ='Depreciation and Ammortization'!K36 -> 65
A18: Total Operating Expenses | B18: =SUM(B12:B17) -> 48665 | C18: 48875 | D18: 49089.2 | E18: 49307.684 | F18: 104509.7256 | G18: 104780.3337 | H18: 105056.3539 | I18: 105337.8945 | J18: 105625.0659 | K18: 105917.9807
A19: Operating Cost Ratio | B19: =B18/B6 -> 0.1287433862 | C19: 0.1300526527 | D19: 0.1325109189 | E19: 0.1360794002 | F19: 0.1500255487 | G19: 0.155876832 | H19: 0.1629190223 | I19: 0.1712025135 | J19: 0.1807973757 | K19: 0.1917930505
A21: Income from operations | B21: =B8-B18 -> 292810 | C21: 288266.928 | D21: 280511.128 | E21: 269966.235 | F21: 515648.4147 | G21: 486547.0377 | H21: 454578.8497 | I21: 420425.7967 | J21: 384783.7979 | K21: 348268.4223
A22: Interest Expense | B22: =-'Capital Structure'!B15-'Capital Structure'!B22 -> -21334.55 | C22: =-'Capital Structure'!B15 -> -14174.55 | D22: =C22 -> -14174.55 | E22: =D22 -> -14174.55 | F22: =E22 -> -14174.55 | G22: 0 | H22: 0 | I22: 0 | J22: 0 | K22: 0
A23: Payback of Loans | B23: =-'Capital Structure'!B18 -> -17900 | C23: 0 | D23: 0 | E23: 0 | F23: =-'Capital Structure'!B9 -> -109035 | G23: 0 | H23: 0 | I23: 0 | J23: 0 | K23: 0
A24: Income After Interest | B24: =SUM(B21:B23) -> 253575.45 | C24: 274092.378 | D24: 266336.578 | E24: 255791.685 | F24: 392438.8647 | G24: 486547.0377 | H24: 454578.8497 | I24: 420425.7967 | J24: 384783.7979 | K24: 348268.4223
A25: Tax | B25: =-B24*$B$4 -> -95090.79375 | C25: =-C24*$B$4 -> -102784.6418 | D25: -99876.21674 | E25: -95921.88188 | F25: -147164.5743 | G25: -182455.1391 | H25: -170467.0686 | I25: -157659.6738 | J25: -144293.9242 | K25: -130600.6583
A26: Net Income | B26: =B24+B25 -> 158484.6562 | C26: =C24+C25 -> 171307.7363 | D26: 166460.3612 | E26: 159869.8031 | F26: 245274.2904 | G26: 304091.8985 | H26: 284111.7811 | I26: 262766.1229 | J26: 240489.8737 | K26: 217667.7639
A27: Profit Per Unit | B27: =B26/B3 -> 176.0940625 | C27: 174.6256231 | D27: 156.9698096 | E27: 140.5117017 | F27: 102.197621 | G27: 119.6403167 | H27: 106.1387937 | I27: 93.68360148 | J27: 82.20291852 | K27: 71.62701391
A30: Note 1 | B30: 2010 | C30: 2011 | D30: 2012 | E30: 2013 | F30: 2014 | G30: 2015 | H30: 2016 | I30: 2017 | J30: 2018 | K30: 2019
A31: COGS
A32: Day laborers for land preparation | B32: ='HR Expenses and Consumables'!B26 -> 3000 | C32: ='HR Expenses and Consumables'!C26 -> 3060 | D32: ='HR Expenses and Consumables'!D26 -> 3121.2 | E32: ='HR Expenses and Consumables'!E26 -> 3183.624 | F32: ='HR Expenses and Consumables'!F26 -> 4870.94472 | G32: ='HR Expenses and Consumables'!G26 -> 4968.363614 | H32: ='HR Expenses and Consumables'!H26 -> 5067.730887 | I32: ='HR Expenses and Consumables'!I26 -> 5169.085504 | J32: ='HR Expenses and Consumables'!J26 -> 5272.467215 | K32: ='HR Expenses and Consumables'!K26 -> 5377.916559
A33: Manure | B33: ='HR Expenses and Consumables'!B31 -> 1500 | C33: ='HR Expenses and Consumables'!C31 -> 1530 | D33: ='HR Expenses and Consumables'!D31 -> 1560.6 | E33: ='HR Expenses and Consumables'!E31 -> 1591.812 | F33: ='HR Expenses and Consumables'!F31 -> 3247.29648 | G33: ='HR Expenses and Consumables'!G31 -> 3312.24241 | H33: ='HR Expenses and Consumables'!H31 -> 3378.487258 | I33: ='HR Expenses and Consumables'!I31 -> 3446.057003 | J33: ='HR Expenses and Consumables'!J31 -> 3514.978143 | K33: ='HR Expenses and Consumables'!K31 -> 3585.277706
A34: Truck cost for manure | B34: ='HR Expenses and Consumables'!B32 -> 2000 | C34: ='HR Expenses and Consumables'!C32 -> 2040 | D34: ='HR Expenses and Consumables'!D32 -> 2080.8 | E34: ='HR Expenses and Consumables'!E32 -> 2122.416 | F34: ='HR Expenses and Consumables'!F32 -> 4329.72864 | G34: ='HR Expenses and Consumables'!G32 -> 4416.323213 | H34: ='HR Expenses and Consumables'!H32 -> 4416.323213 | I34: ='HR Expenses and Consumables'!I32 -> 4416.323213 | J34: ='HR Expenses and Consumables'!J32 -> 4416.323213 | K34: ='HR Expenses and Consumables'!K32 -> 4416.323213
A35: Packaging cost | B35: ='HR Expenses and Consumables'!B33 -> 18000 | C35: ='HR Expenses and Consumables'!C33 -> 20012.4 | D35: ='HR Expenses and Consumables'!D33 -> 22066.07249 | E35: ='HR Expenses and Consumables'!E33 -> 24148.18296 | F35: ='HR Expenses and Consumables'!F33 -> 51956.74368 | G35: ='HR Expenses and Consumables'!G33 -> 56125.23219 | H35: ='HR Expenses and Consumables'!H33 -> 60290.11628 | I35: ='HR Expenses and Consumables'!I33 -> 64437.24933 | J35: ='HR Expenses and Consumables'!J33 -> 68555.28286 | K35: ='HR Expenses and Consumables'!K33 -> 72635.48008
A36: Vitamin supplement | B36: ='HR Expenses and Consumables'!B34 -> 25 | C36: ='HR Expenses and Consumables'!C34 -> 25 | D36: ='HR Expenses and Consumables'!D34 -> 25 | E36: ='HR Expenses and Consumables'!E34 -> 25 | F36: ='HR Expenses and Consumables'!F34 -> 50 | G36: ='HR Expenses and Consumables'!G34 -> 50 | H36: ='HR Expenses and Consumables'!H34 -> 50 | I36: ='HR Expenses and Consumables'!I34 -> 50 | J36: ='HR Expenses and Consumables'!J34 -> 50 | K36: ='HR Expenses and Consumables'!K34 -> 50
A37: Electricity bill | B37: ='HR Expenses and Consumables'!B35 -> 12000 | C37: ='HR Expenses and Consumables'!C35 -> 12000 | D37: ='HR Expenses and Consumables'!D35 -> 12000 | E37: ='HR Expenses and Consumables'!E35 -> 12000 | F37: ='HR Expenses and Consumables'!F35 -> 12000 | G37: ='HR Expenses and Consumables'!G35 -> 12000 | H37: ='HR Expenses and Consumables'!H35 -> 12000 | I37: ='HR Expenses and Consumables'!I35 -> 12000 | J37: ='HR Expenses and Consumables'!J35 -> 12000 | K37: ='HR Expenses and Consumables'!K35 -> 12000
A38: Total Cost | B38: =SUM(B32:B37) -> 36525 | C38: =SUM(C32:C37) -> 38667.4 | D38: 40853.67249 | E38: 43071.03496 | F38: 76454.71352 | G38: 80872.16142 | H38: 85202.65764 | I38: 89518.71505 | J38: 93809.05143 | K38: 98064.99755
A39: Costs per kg | B39: =B38/B3 -> 40.58333333 | C39: 39.41630989 | D39: 38.52444596 | E39: 37.85570695 | F39: 31.85613063 | G39: 31.8179177 | H39: 31.83010317 | I39: 31.91596973 | J39: 32.06529112 | K39: 32.26983554
A41: Profit Function
A43: Year | B43: Units Sold (X) | C43: Profit (Y)
A44: 2011 | B44: =B3 -> 900 | C44: =B26 -> 158484.6562
A45: 2012 | B45: =C3 -> 981 | C45: =C26 -> 171307.7363
A46: 2013 | B46: =D3 -> 1060.461 | C46: =D26 -> 166460.3612
A47: 2014 | B47: =E3 -> 1137.768607 | C47: =E26 -> 159869.8031
A48: 2015 | B48: =F3 -> 2400 | C48: =F26 -> 245274.2904
A49: 2016 | B49: =G3 -> 2541.7176 | C49: =G26 -> 304091.8985
A50: 2017 | B50: =H3 -> 2676.794894 | C50: =H26 -> 284111.7811
A51: 2018 | B51: =I3 -> 2804.825164 | C51: =I26 -> 262766.1229
A52: 2019 | B52: =J3 -> 2925.563691 | C52: =J26 -> 240489.8737
A53: 2020 | B53: =K3 -> 3038.906022 | C53: =K26 -> 217667.7639
A56: SUMMARY OUTPUT
A58: Regression Statistics
A59: Multiple R | B59: 0.857305553
A60: R Square | B60: 0.7349728112
A61: Adjusted R Square | B61: 0.7018444126
A62: Standard Error | B62: 66497.36741
A63: Observations | B63: 10
A65: ANOVA
B66: df | C66: SS | D66: MS | E66: F | F66: Significance F
A67: Regression | B67: 1 | C67: 9.810242322e+10 | D67: 9.810242322e+10 | E67: 22.18558222 | F67: 0.001521365955
A68: Residual | B68: 8 | C68: 3.537519898e+10 | D68: 4421899873
A69: Total | B69: 9 | C69: 1.334776222e+11
B71: Coefficients | C71: Standard Error | D71: t Stat | E71: P-value | F71: Lower 95% | G71: Upper 95% | H71: Lower 95.0% | I71: Upper 95.0%
A72: Intercept | B72: 120934.759 | C72: 54434.0456 | D72: 2.221675014 | E72: 0.05703289118 | F72: -4590.375244 | G72: 246459.8933 | H72: -4590.375244 | I72: 246459.8933
A73: X Variable 1 | B73: 115.5463219 | C73: 24.53130828 | D73: 4.710157346 | E73: 0.001521365955 | F73: 58.97702356 | G73: 172.1156202 | H73: 58.97702356 | I73: 172.1156202
A75: Profit per extra unit | B75: 116

Sheet Capital Structure
N1: Gen Info
A2: Capital Structure | N2: Expenses
A3: Debt | B3: ='Sensitivities & Monte Carlo'!E3 -> 0.6 | D3: Rate on Debt | E3: ='Sensitivities & Monte Carlo'!E6 -> 0.13 | G3: Tax Rate | H3: ='Sensitivities & Monte Carlo'!E9 -> 0.375 | N3: Depreciations
A4: Equity | B4: ='Sensitivities & Monte Carlo'!E4 -> 0.4 | D4: Rate on Equity | E4: ='Sensitivities & Monte Carlo'!E7 -> 0.16 | N4: Income St
A5: Total | B5: =B3+B4 -> 1 | N5: Balance Sht
A6: WACC | B6: ='Sensitivities & Monte Carlo'!E8 -> 0.11275 | N6: Capital Structure
N7: Cash Flows M
A8: Total Setup Capital | B8: ='HR Expenses and Consumables'!$B$48 -> 181725 | N8: Cash Flows Y
A9: Loan taken from Bank | B9: =B8*B3 -> 109035 | N9: DCF, NPV & IRR
A10: Capital Provided by owner | B10: =B8*B4 -> 72690 | N10: Break Even
N11: Sensitivity & MC
A12: Long Term Debt | N12: Ratios
A13: Interest Rate | B13: =E3 -> 0.13 | N13: PVSOB
A14: Interest Period (years) | B14: 5 | N14: Scenario Cases
A15: Interest Expense | B15: =B9*B13 -> 14174.55
A17: Short Term Loans
A18: Loan for meeting exp for first 3 months | B18: =-('Cash Flow Monthly'!B19+'Cash Flow Monthly'!C19+'Cash Flow Monthly'!D19) -> 17900
A19: Interest on Short Loan Per Period | B19: 0.1
A20: Number of periods for a year | B20: 4
A21: Interest per period | B21: =B18*B19 -> 1790
A22: Total Interest per year | B22: =B21*B20 -> 7160

Sheet Cash Flow Monthly
A1: Page Navigation | B1: Net CFO | C1: Nav. Bar | P1: Gen Info
A2: Direct Method | B2: Jul | C2: Aug | D2: Sep | E2: Oct | F2: Nov | G2: Dec | H2: Jan | I2: Feb | J2: Mar | K2: Apr | L2: May | M2: Jun | N2: Yearly | P2: Expenses
A3: Cash Collections from | P3: Depreciations
A4: Stores | B4: 0 | C4: 0 | D4: 0 | E4: =$N$4/6 -> 63000 | F4: 63000 | G4: 63000 | H4: 63000 | I4: 63000 | J4: 63000 | K4: 0 | L4: 0 | M4: 0 | N4: ='Income Statement'!B6 -> 378000 | P4: Income St
A5: Less:Net Accounts Receivable | B5: 0 | C5: 0 | D5: 0 | E5: -9000 | F5: 0 | G5: 0 | H5: 0 | I5: 0 | J5: 0 | K5: 9000 | L5: 0 | M5: 0 | P5: Balance Sht
A6: Net Inflow | B6: =SUM(B4:B5) -> 0 | C6: =SUM(C4:C5) -> 0 | D6: 0 | E6: 54000 | F6: 63000 | G6: 63000 | H6: 63000 | I6: 63000 | J6: 63000 | K6: 9000 | L6: 0 | M6: 0 | N6: 378000 | P6: Capital Structure
A7: Cash Disbursements to | P7: Cash Flows M
A8: Permanent employees | B8: =$N$8/12 -> 375 | C8: =$N$8/12 -> 375 | D8: 375 | E8: 375 | F8: 375 | G8: 375 | H8: 375 | I8: 375 | J8: 375 | K8: 375 | L8: 375 | M8: 375 | N8: ='Income Statement'!B12 -> 4500 | P8: Cash Flows Y
A9: Bookkepeer | B9: =$N$9/12 -> 416.6666667 | C9: 416.6666667 | D9: 416.6666667 | E9: 416.6666667 | F9: 416.6666667 | G9: 416.6666667 | H9: 416.6666667 | I9: 416.6666667 | J9: 416.6666667 | K9: 416.6666667 | L9: 416.6666667 | M9: =$N$9/12 -> 416.6666667 | N9: ='Income Statement'!B13 -> 5000 | P9: DCF, NPV & IRR
A10: Laborers for netting | B10: 0 | C10: =N10 -> 1000 | D10: 0 | E10: 0 | F10: 0 | G10: 0 | H10: 0 | I10: 0 | J10: 0 | K10: 0 | L10: 0 | M10: 0 | N10: ='Income Statement'!B14 -> 1000 | P10: Break Even
A11: Land preparation | B11: 0 | C11: =N11 -> 3000 | D11: 0 | E11: 0 | F11: 0 | G11: 0 | H11: 0 | I11: 0 | J11: 0 | K11: 0 | L11: 0 | M11: 0 | N11: ='Income Statement'!B32 -> 3000 | P11: Sensitivity & MC
A12: Manure | B12: 0 | C12: =N12 -> 1500 | D12: 0 | E12: 0 | F12: 0 | G12: 0 | H12: 0 | I12: 0 | J12: 0 | K12: 0 | L12: 0 | M12: 0 | N12: ='Income Statement'!B33 -> 1500 | P12: Ratios
A13: Packaging | B13: 0 | C13: 0 | D13: 0 | E13: =$N$13/6 -> 3000 | F13: 3000 | G13: 3000 | H13: 3000 | I13: 3000 | J13: 3000 | K13: 0 | L13: 0 | M13: 0 | N13: ='Income Statement'!B35 -> 18000 | P13: PVSOB
A14: Vitamin Supplement | B14: 0 | C14: =N14 -> 25 | D14: 0 | E14: 0 | F14: 0 | G14: 0 | H14: 0 | I14: 0 | J14: 0 | K14: 0 | L14: 0 | M14: 0 | N14: ='Income Statement'!B36 -> 25 | P14: Scenario Cases
A15: Electricity bill paid | B15: =$N$15/12 -> 1000 | C15: 1000 | D15: 1000 | E15: 1000 | F15: 1000 | G15: 1000 | H15: 1000 | I15: 1000 | J15: 1000 | K15: 1000 | L15: 1000 | M15: =$N$15/12 -> 1000 | N15: ='Income Statement'!B37 -> 12000
A16: Transportation expense | B16: 0 | C16: =N16 -> 2000 | D16: 0 | E16: 0 | F16: 0 | G16: 0 | H16: 0 | I16: 0 | J16: 0 | K16: 0 | L16: 0 | M16: 0 | N16: ='Income Statement'!B34 -> 2000
A17: Lease expense | B17: =$N$17/12 -> 1666.666667 | C17: 1666.666667 | D17: 1666.666667 | E17: 1666.666667 | F17: 1666.666667 | G17: 1666.666667 | H17: 1666.666667 | I17: 1666.666667 | J17: 1666.666667 | K17: 1666.666667 | L17: 1666.666667 | M17: =$N$17/12 -> 1666.666667 | N17: ='Income Statement'!B15 -> 20000
A18: Net Outflow | B18: =SUM(B8:B17) -> 3458.333333 | C18: 10983.33333 | D18: 3458.333333 | E18: 6458.333333 | F18: 6458.333333 | G18: 6458.333333 | H18: 6458.333333 | I18: 6458.333333 | J18: 6458.333333 | K18: 3458.333333 | L18: 3458.333333 | M18: 3458.333333 | N18: 67025
A19: Net Cash Flow without tax and interest | B19: =B6-B18 -> -3458.333333 | C19: -10983.33333 | D19: -3458.333333 | E19: 47541.66667 | F19: 56541.66667 | G19: 56541.66667 | H19: 56541.66667 | I19: 56541.66667 | J19: 56541.66667 | K19: 5541.666667 | L19: -3458.333333 | M19: -3458.333333 | N19: 310975
A20: Tax Payment | B20: 0 | C20: 0 | D20: 0 | E20: 0 | F20: 0 | G20: 0 | H20: 0 | I20: 0 | J20: 0 | K20: 0 | L20: 0 | M20: 0 | N20: =-'Income Statement'!B25 -> 95090.79375
A21: Interest Payment(Short Term) | B21: 0 | C21: 0 | D21: =-'Capital Structure'!B21 -> -1790 | E21: 0 | F21: 0 | G21: =D21 -> -1790 | H21: 0 | I21: 0 | J21: =G21 -> -1790 | K21: 0 | L21: 0 | M21: =J21 -> -1790 | N21: =D21+G21+J21+M21 -> -7160
A22: Interest Payment (Long Term) | B22: 0 | C22: 0 | D22: 0 | E22: 0 | F22: 0 | G22: 0 | H22: 0 | I22: 0 | J22: 0 | K22: 0 | L22: 0 | M22: 0 | N22: =-'Capital Structure'!B15 -> -14174.55
A23: Cash Flow from Operations | B23: =SUM(B19:B22) -> -3458.333333 | C23: =SUM(C19:C22) -> -10983.33333 | D23: -5248.333333 | E23: 47541.66667 | F23: 56541.66667 | G23: 54751.66667 | H23: 56541.66667 | I23: 56541.66667 | J23: 54751.66667 | K23: 5541.666667 | L23: -3458.333333 | M23: -5248.333333 | N23: 384731.2438

Sheet Cash Flow Yearly
A1: Page Navigation | B1: CFO | C1: CFI | D1: CFF | E1: NCF (Accounting) | F1: Financial CF | G1: Note 1 | H1: Note 2 | I1: FCFE | J1: Nav. Bar | M1: Gen Info
A2: Indirect Method | M2: Expenses
A3: Year Ended (Jul) | B3: 2011 | C3: 2012 | D3: 2013 | E3: 2014 | F3: 2015 | G3: 2016 | H3: 2017 | I3: 2018 | J3: 2019 | K3: 2020 | M3: Depreciations
A4: Earning before interest and taxes | B4: ='Income Statement'!B21 -> 292810 | C4: ='Income Statement'!C21 -> 288266.928 | D4: ='Income Statement'!D21 -> 280511.128 | E4: ='Income Statement'!E21 -> 269966.235 | F4: ='Income Statement'!F21 -> 515648.4147 | G4: ='Income Statement'!G21 -> 486547.0377 | H4: ='Income Statement'!H21 -> 454578.8497 | I4: ='Income Statement'!I21 -> 420425.7967 | J4: ='Income Statement'!J21 -> 384783.7979 | K4: ='Income Statement'!K21 -> 348268.4223 | M4: Income St
A5: Add: Noncash expenses | B5: ='Income Statement'!B17 -> 65 | C5: ='Income Statement'!C17 -> 65 | D5: ='Income Statement'!D17 -> 65 | E5: ='Income Statement'!E17 -> 65 | F5: ='Income Statement'!F17 -> 65 | G5: ='Income Statement'!G17 -> 65 | H5: ='Income Statement'!H17 -> 65 | I5: ='Income Statement'!I17 -> 65 | J5: ='Income Statement'!J17 -> 65 | K5: ='Income Statement'!K17 -> 65 | M5: Balance Sht
A6: Depreciation expenses | B6: ='Income Statement'!B16 -> 18100 | C6: ='Income Statement'!C16 -> 18100 | D6: ='Income Statement'!D16 -> 18100 | E6: ='Income Statement'!E16 -> 18100 | F6: ='Income Statement'!F16 -> 40914.32362 | G6: ='Income Statement'!G16 -> 40914.32362 | H6: ='Income Statement'!H16 -> 40914.32362 | I6: ='Income Statement'!I16 -> 40914.32362 | J6: ='Income Statement'!J16 -> 40914.32362 | K6: ='Income Statement'!K16 -> 40914.32362 | M6: Capital Structure
A7: Changes in operating accounts | B7: 0 | C7: 0 | D7: 0 | E7: 0 | F7: 0 | G7: 0 | H7: 0 | I7: 0 | J7: 0 | K7: 0 | M7: Cash Flows M
A8: (increase in receivables) | B8: 0 | C8: 0 | D8: 0 | E8: 0 | F8: 0 | G8: 0 | H8: 0 | I8: 0 | J8: 0 | K8: 0 | M8: Cash Flows Y
A9: (decrease in inventories) | B9: 0 | C9: 0 | D9: 0 | E9: 0 | F9: 0 | G9: 0 | H9: 0 | I9: 0 | J9: 0 | K9: 0 | M9: DCF, NPV & IRR
A10: (decrease in accounts payable) | B10: 0 | C10: 0 | D10: 0 | E10: 0 | F10: 0 | G10: 0 | H10: 0 | I10: 0 | J10: 0 | K10: 0 | M10: Break Even
A11: Interest Expense - Long Term | B11: =-'Capital Structure'!B15 -> -14174.55 | C11: =-'Income Statement'!C22 -> 14174.55 | D11: =-'Income Statement'!D22 -> 14174.55 | E11: =-'Income Statement'!E22 -> 14174.55 | F11: =-'Income Statement'!F22 -> 14174.55 | G11: =-'Income Statement'!G22 -> 0 | H11: =-'Income Statement'!H22 -> 0 | I11: =-'Income Statement'!I22 -> 0 | J11: =-'Income Statement'!J22 -> 0 | K11: =-'Income Statement'!K22 -> 0 | M11: Sensitivity & MC
A12: Interest Expense - Short Term | B12: =-'Capital Structure'!B22 -> -7160 | C12: 0 | D12: 0 | E12: 0 | F12: 0 | G12: 0 | H12: 0 | I12: 0 | J12: 0 | K12: 0 | M12: Ratios
A13: Cash for Tax Payments | B13: ='Income Statement'!B25 -> -95090.79375 | C13: ='Income Statement'!C25 -> -102784.6418 | D13: ='Income Statement'!D25 -> -99876.21674 | E13: ='Income Statement'!E25 -> -95921.88188 | F13: ='Income Statement'!F25 -> -147164.5743 | G13: ='Income Statement'!G25 -> -182455.1391 | H13: ='Income Statement'!H25 -> -170467.0686 | I13: ='Income Statement'!I25 -> -157659.6738 | J13: ='Income Statement'!J25 -> -144293.9242 | K13: ='Income Statement'!K25 -> -130600.6583 | M13: PVSOB
A14: Cash flows from operations | B14: =SUM(B4:B13) -> 194549.6562 | C14: =SUM(C4:C12) -> 320606.478 | D14: 312850.678 | E14: 302305.785 | F14: 570802.2883 | G14: 527526.3613 | H14: 495558.1733 | I14: 461405.1203 | J14: 425763.1215 | K14: 389247.7459 | M14: Scenario Cases
A16: Cash Flow from financing
A17: Debt Repayment - Long Term | B17: =0 -> 0 | C17: =-'Income Statement'!C23 -> 0 | D17: =-'Income Statement'!D23 -> 0 | E17: =-'Income Statement'!E23 -> 0 | F17: =-'Income Statement'!F23 -> 109035 | G17: =-'Income Statement'!G23 -> 0 | H17: =-'Income Statement'!H23 -> 0 | I17: =-'Income Statement'!I23 -> 0 | J17: =-'Income Statement'!J23 -> 0 | K17: =-'Income Statement'!K23 -> 0
A18: Debt Repayment - Short Term | B18: =-'Capital Structure'!B18 -> -17900
A19: Add: Cash From Loans | B19: ='Capital Structure'!B9 -> 109035
A20: Add: Cash From Owners | B20: ='Capital Structure'!B10 -> 72690
A21: Total CFF | B21: =SUM(B17:B20) -> 163825 | C21: =SUM(C17:C18) -> 0 | D21: 0 | E21: 0 | F21: 109035 | G21: 0 | H21: 0 | I21: 0 | J21: 0 | K21: 0
A23: Cash Flow from investment
A24: Capex | B24: =-'HR Expenses and Consumables'!B48 -> -181725 | C24: =-'HR Expenses and Consumables'!C48 -> 0 | D24: =-'HR Expenses and Consumables'!D48 -> 0 | E24: =-'HR Expenses and Consumables'!E48 -> 0 | F24: =-'HR Expenses and Consumables'!F48 -> -228218.2362 | G24: =-'HR Expenses and Consumables'!G48 -> 0 | H24: =-'HR Expenses and Consumables'!H48 -> 0 | I24: =-'HR Expenses and Consumables'!I48 -> 0 | J24: =-'HR Expenses and Consumables'!J48 -> 0 | K24: =-'HR Expenses and Consumables'!K48 -> 0
A25: Total CFI | B25: =SUM(B24:B24) -> -181725 | C25: =SUM(C24) -> 0 | D25: 0 | E25: 0 | F25: -228218.2362 | G25: 0 | H25: 0 | I25: 0 | J25: 0 | K25: 0
A27: Net Cash Flow (Accounting) | B27: =B14+B21+B25 -> 176649.6562 | C27: 320606.478 | D27: 312850.678 | E27: 302305.785 | F27: 451619.0521 | G27: 527526.3613 | H27: 495558.1733 | I27: 461405.1203 | J27: 425763.1215 | K27: 389247.7459
A28: Cash Payout For Owners | B28: =-B27*$B$56 -> -132487.2422 | C28: -240454.8585 | D28: -234638.0085 | E28: -226729.3388 | F28: -338714.2891 | G28: -395644.771 | H28: -371668.63 | I28: -346053.8402 | J28: -319322.3411 | K28: -291935.8094
A29: Cash Balance | B29: =B27+B28 -> 44162.41406 | C29: =C27+C28 -> 80151.6195 | D29: 78212.66949 | E29: 75576.44626 | F29: 112904.763 | G29: 131881.5903 | H29: 123889.5433 | I29: 115351.2801 | J29: 106440.7804 | K29: 97311.93647
A31: FINANCIAL CASH FLOW
A32: Cash Flow from Operations | B32: =B14 -> 194549.6562 | C32: 320606.478 | D32: 312850.678 | E32: 302305.785 | F32: 570802.2883 | G32: 527526.3613 | H32: 495558.1733 | I32: 461405.1203 | J32: 425763.1215 | K32: 389247.7459
A33: Cash Flow for Short Term Debt Repayment | B33: =B18 -> -17900 | C33: =C18+C12 -> 0 | D33: 0 | E33: 0 | F33: 0 | G33: 0 | H33: 0 | I33: 0 | J33: 0 | K33: 0
A34: Cash Flow for long term interest | B34: =-B11 -> 14174.55 | C34: -14174.55 | D34: -14174.55 | E34: -14174.55 | F34: -14174.55 | G34: 0 | H34: 0 | I34: 0 | J34: 0 | K34: 0
A35: Cash Flow from Capex | B35: =B24 -> -181725 | C35: 0 | D35: 0 | E35: 0 | F35: -228218.2362 | G35: 0 | H35: 0 | I35: 0 | J35: 0 | K35: 0
A36: Net Financial Cash Flow | B36: =SUM(B32:B35) -> 9099.20625 | C36: 306431.928 | D36: 298676.128 | E36: 288131.235 | F36: 328409.5021 | G36: 527526.3613 | H36: 495558.1733 | I36: 461405.1203 | J36: 425763.1215 | K36: 389247.7459
A37: Growth Rate | C37: =(C36-B36)/B36 -> 32.67677571 | D37: =(D36-C36)/C36 -> -0.02531002589 | E37: -0.03530544278 | F37: 0.1397913944 | G37: 0.6063066319 | H37: -0.06060017149 | I37: -0.06891835279 | J37: -0.0772466477 | K37: -0.08576453387
A38: Average Growth Rate | B38: =AVERAGE(C37:K37) -> 3.674414284
A40: Financial Cash Flow to Equity (FCFE) | B40: 2010 | C40: 2011 | D40: 2012 | E40: 2013 | F40: 2014 | G40: 2015 | H40: 2016 | I40: 2017 | J40: 2018 | K40: 2019 | L40: 2020
A41: Net Income | B41: 0 | C41: ='Income Statement'!B26 -> 158484.6562 | D41: ='Income Statement'!C26 -> 171307.7363 | E41: ='Income Statement'!D26 -> 166460.3612 | F41: ='Income Statement'!E26 -> 159869.8031 | G41: ='Income Statement'!F26 -> 245274.2904 | H41: ='Income Statement'!G26 -> 304091.8985 | I41: ='Income Statement'!H26 -> 284111.7811 | J41: ='Income Statement'!I26 -> 262766.1229 | K41: ='Income Statement'!J26 -> 240489.8737 | L41: ='Income Statement'!K26 -> 217667.7639
A42: Add: Depreciation | B42: =0 -> 0 | C42: =B6 -> 18100 | D42: =C6 -> 18100 | E42: 18100 | F42: 18100 | G42: 40914.32362 | H42: 40914.32362 | I42: 40914.32362 | J42: 40914.32362 | K42: 40914.32362 | L42: 40914.32362
A43: Less: Change In NWC | B43: 0 | C43: ='Balance Sheet'!B6 -> 44162.41406 | D43: ='Balance Sheet'!C6-'Cash Flow Yearly'!C43 -> 80151.6195 | E43: ='Balance Sheet'!D6-'Cash Flow Yearly'!D43 -> 122375.0836 | F43: ='Balance Sheet'!E6-'Cash Flow Yearly'!E43 -> 155728.0658 | G43: ='Balance Sheet'!F6-'Cash Flow Yearly'!F43 -> 235279.8466 | H43: ='Balance Sheet'!G6-'Cash Flow Yearly'!G43 -> 287609.6561 | I43: ='Balance Sheet'!H6-'Cash Flow Yearly'!H43 -> 359169.3899 | J43: ='Balance Sheet'!I6-'Cash Flow Yearly'!I43 -> 402960.9361 | K43: ='Balance Sheet'!J6-'Cash Flow Yearly'!J43 -> 465610.1703 | L43: ='Balance Sheet'!K6-'Cash Flow Yearly'!K43 -> 500272.8726
A44: Less: CAPEX | B44: =B24 -> -181725 | C44: =C24 -> 0 | D44: 0 | E44: 0 | F44: -228218.2362 | G44: 0 | H44: 0 | I44: 0 | J44: 0 | K44: 0 | L44: 0
A45: Less: Debt Repayment | B45: =0 -> 0 | C45: =B17 -> 0 | D45: =C17 -> 0 | E45: 0 | F45: 0 | G45: 109035 | H45: 0 | I45: 0 | J45: 0 | K45: 0 | L45: 0
A46: Add: New Debt | B46: =B19 -> 109035 | C46: =C19 -> 0 | D46: 0 | E46: 0 | F46: 0 | G46: 0 | H46: 0 | I46: 0 | J46: 0 | K46: 0 | L46: 0
A47: FCFE | B47: =SUM(B41:B46) -> -72690 | C47: =SUM(C41:C46) -> 220747.0703 | D47: 269559.3557 | E47: 306935.4448 | F47: 105479.6327 | G47: 630503.4606 | H47: 632615.8782 | I47: 684195.4946 | J47: 706641.3827 | K47: 747014.3676 | L47: 758854.9601
A53: Note 1
A54: Total Owners | B54: 3
A55: Individual Profit Withdrawal | B55: 0.25
A56: Profit Withdrawn by owners | B56: =B54*B55 -> 0.75
A58: Note 2: Profit Withdrawal Schedule
A59: Years | B59: =B3 -> 2011 | C59: 2012 | D59: 2013 | E59: 2014 | F59: 2015 | G59: 2016 | H59: 2017 | I59: 2018 | J59: 2019 | K59: 2020
A60: Total Cash Withdrawn Per Year | B60: =B27*$B$56 -> 132487.2422 | C60: 240454.8585 | D60: 234638.0085 | E60: 226729.3388 | F60: 338714.2891 | G60: 395644.771 | H60: 371668.63 | I60: 346053.8402 | J60: 319322.3411 | K60: 291935.8094
A61: Cash Withdrawal Per Owner | B61: =B60/$B$54 -> 44162.41406 | C61: 80151.6195 | D61: 78212.66949 | E61: 75576.44626 | F61: 112904.763 | G61: 131881.5903 | H61: 123889.5433 | I61: 115351.2801 | J61: 106440.7804 | K61: 97311.93647

Sheet Balance Sheet
A1: Page Navigation | B1: Assets | C1: Liabs & Equity | D1: Note 1 | E1: Note 2 | F1: Nav. Bar | M1: Gen Info
M2: Expenses
A3: Balance Sheets | M3: Depreciations
A4: Years | B4: 2011 | C4: 2012 | D4: 2013 | E4: 2014 | F4: 2015 | G4: 2016 | H4: 2017 | I4: 2018 | J4: 2019 | K4: 2020 | M4: Income St
A5: Assets | M5: Balance Sht
A6: Cash | B6: ='Cash Flow Yearly'!B29 -> 44162.41406 | C6: =B6+'Cash Flow Yearly'!C29 -> 124314.0336 | D6: =C6+'Cash Flow Yearly'!D29 -> 202526.7031 | E6: =D6+'Cash Flow Yearly'!E29 -> 278103.1493 | F6: =E6+'Cash Flow Yearly'!F29 -> 391007.9123 | G6: =F6+'Cash Flow Yearly'!G29 -> 522889.5027 | H6: =G6+'Cash Flow Yearly'!H29 -> 646779.046 | I6: =H6+'Cash Flow Yearly'!I29 -> 762130.3261 | J6: =I6+'Cash Flow Yearly'!J29 -> 868571.1064 | K6: =J6+'Cash Flow Yearly'!K29 -> 965883.0429 | M6: Capital Structure
A7: Account Receivables | B7: ='Cash Flow Monthly'!N5 -> 0 | C7: =B7 -> 0 | D7: =C7 -> 0 | E7: 0 | F7: 0 | G7: 0 | H7: 0 | I7: 0 | J7: 0 | K7: 0 | M7: Cash Flows M
A8: ='Depreciation and Ammortization'!A5 -> Saplings | B8: ='Depreciation and Ammortization'!B6 -> 120000 | C8: =B8 -> 120000 | D8: =C8 -> 120000 | E8: =D8 -> 120000 | F8: =E8+'Depreciation and Ammortization'!F6 -> 320000 | G8: =F8 -> 320000 | H8: =G8 -> 320000 | I8: =H8 -> 320000 | J8: =I8 -> 320000 | K8: =J8 -> 320000 | M8: Cash Flows Y
A9: Accumulated Depreciation: Saplings | B9: =-'Depreciation and Ammortization'!B9 -> -12000 | C9: =B9-'Depreciation and Ammortization'!C9 -> -24000 | D9: =C9-'Depreciation and Ammortization'!D9 -> -36000 | E9: =D9-'Depreciation and Ammortization'!E9 -> -48000 | F9: =E9-'Depreciation and Ammortization'!F9 -> -80000 | G9: =F9-'Depreciation and Ammortization'!G9 -> -112000 | H9: =G9-'Depreciation and Ammortization'!H9 -> -144000 | I9: =H9-'Depreciation and Ammortization'!I9 -> -176000 | J9: =I9-'Depreciation and Ammortization'!J9 -> -208000 | K9: =J9-'Depreciation and Ammortization'!K9 -> -240000 | M9: DCF, NPV & IRR
A10: ='Depreciation and Ammortization'!A11 -> Netting | B10: ='Depreciation and Ammortization'!B11 -> 3500 | C10: =B10 -> 3500 | D10: =C10 -> 3500 | E10: =D10 -> 3500 | F10: =E10+'Depreciation and Ammortization'!F11 -> 7288.51256 | G10: =F10 -> 7288.51256 | H10: =G10 -> 7288.51256 | I10: =H10 -> 7288.51256 | J10: =I10 -> 7288.51256 | K10: =J10 -> 7288.51256 | M10: Break Even
A11: Accumulated Depreciation: Netting | B11: =-'Depreciation and Ammortization'!B14 -> -350 | C11: =B11-'Depreciation and Ammortization'!C14 -> -700 | D11: =C11-'Depreciation and Ammortization'!D14 -> -1050 | E11: =D11-'Depreciation and Ammortization'!E14 -> -1400 | F11: =E11-'Depreciation and Ammortization'!F14 -> -2128.851256 | G11: =F11-'Depreciation and Ammortization'!G14 -> -2857.702512 | H11: =G11-'Depreciation and Ammortization'!H14 -> -3586.553768 | I11: =H11-'Depreciation and Ammortization'!I14 -> -4315.405024 | J11: =I11-'Depreciation and Ammortization'!J14 -> -5044.25628 | K11: =J11-'Depreciation and Ammortization'!K14 -> -5773.107536 | M11: Sensitivity & MC
A12: ='Depreciation and Ammortization'!A16 -> RCC Pillars for netting | B12: ='Depreciation and Ammortization'!B16 -> 4500 | C12: =B12 -> 4500 | D12: =C12 -> 4500 | E12: =D12 -> 4500 | F12: =E12+'Depreciation and Ammortization'!F16 -> 19112.83416 | G12: =F12 -> 19112.83416 | H12: =G12 -> 19112.83416 | I12: =H12 -> 19112.83416 | J12: =I12 -> 19112.83416 | K12: =J12 -> 19112.83416 | M12: Ratios
A13: Accumulated Depreciation: Pillars | B13: =-'Depreciation and Ammortization'!B19 -> -450 | C13: =B13-'Depreciation and Ammortization'!C19 -> -900 | D13: =C13-'Depreciation and Ammortization'!D19 -> -1350 | E13: =D13-'Depreciation and Ammortization'!E19 -> -1800 | F13: =E13-'Depreciation and Ammortization'!F19 -> -3711.283416 | G13: =F13-'Depreciation and Ammortization'!G19 -> -5622.566832 | H13: =G13-'Depreciation and Ammortization'!H19 -> -7533.850248 | I13: =H13-'Depreciation and Ammortization'!I19 -> -9445.133664 | J13: =I13-'Depreciation and Ammortization'!J19 -> -11356.41708 | K13: =J13-'Depreciation and Ammortization'!K19 -> -13267.7005 | M13: PVSOB
A14: ='Depreciation and Ammortization'!A21 -> Bamboo | B14: ='Depreciation and Ammortization'!B21 -> 3000 | C14: =B14 -> 3000 | D14: =C14 -> 3000 | E14: =D14 -> 3000 | F14: =E14+'Depreciation and Ammortization'!F21 -> 12741.88944 | G14: =F14+'Depreciation and Ammortization'!G21 -> 12741.88944 | H14: =G14+'Depreciation and Ammortization'!H21 -> 12741.88944 | I14: =H14+'Depreciation and Ammortization'!I21 -> 12741.88944 | J14: =I14+'Depreciation and Ammortization'!J21 -> 12741.88944 | K14: =J14+'Depreciation and Ammortization'!K21 -> 12741.88944 | M14: Scenario Cases
A15: Accumulated Depreciation: Bamboo | B15: =-'Depreciation and Ammortization'!B24 -> -300 | C15: =B15-'Depreciation and Ammortization'!C24 -> -600 | D15: =C15-'Depreciation and Ammortization'!D24 -> -900 | E15: =D15-'Depreciation and Ammortization'!E24 -> -1200 | F15: =E15-'Depreciation and Ammortization'!F24 -> -2474.188944 | G15: =F15-'Depreciation and Ammortization'!G24 -> -3748.377888 | H15: =G15-'Depreciation and Ammortization'!H24 -> -5022.566832 | I15: =H15-'Depreciation and Ammortization'!I24 -> -6296.755776 | J15: =I15-'Depreciation and Ammortization'!J24 -> -7570.94472 | K15: =J15-'Depreciation and Ammortization'!K24 -> -8845.133664
A16: ='Depreciation and Ammortization'!A26 -> Labor shed & toilet | B16: ='Depreciation and Ammortization'!B26 -> 50000 | C16: =B16 -> 50000 | D16: =C16 -> 50000 | E16: 50000 | F16: 50000 | G16: 50000 | H16: 50000 | I16: 50000 | J16: 50000 | K16: 50000
A17: Accumulated Depreciation: Labor Shed | B17: =-'Depreciation and Ammortization'!B27 -> -5000 | C17: =B17-'Depreciation and Ammortization'!C27 -> -10000 | D17: =C17-'Depreciation and Ammortization'!D27 -> -15000 | E17: =D17-'Depreciation and Ammortization'!E27 -> -20000 | F17: =E17-'Depreciation and Ammortization'!F27 -> -25000 | G17: =F17-'Depreciation and Ammortization'!G27 -> -30000 | H17: =G17-'Depreciation and Ammortization'!H27 -> -35000 | I17: =H17-'Depreciation and Ammortization'!I27 -> -40000 | J17: =I17-'Depreciation and Ammortization'!J27 -> -45000 | K17: =J17-'Depreciation and Ammortization'!K27 -> -50000
A18: ='Depreciation and Ammortization'!A34 -> Trade license cost | B18: ='Depreciation and Ammortization'!B34 -> 650 | C18: =B18 -> 650 | D18: =C18 -> 650 | E18: 650 | F18: 650 | G18: 650 | H18: 650 | I18: 650 | J18: 650 | K18: 650
A19: Accumulated Ammortization: Trade License | B19: =-'Depreciation and Ammortization'!B36 -> -65 | C19: =B19-'Depreciation and Ammortization'!C36 -> -130 | D19: =C19-'Depreciation and Ammortization'!D36 -> -195 | E19: =D19-'Depreciation and Ammortization'!E36 -> -260 | F19: =E19-'Depreciation and Ammortization'!F36 -> -325 | G19: =F19-'Depreciation and Ammortization'!G36 -> -390 | H19: =G19-'Depreciation and Ammortization'!H36 -> -455 | I19: =H19-'Depreciation and Ammortization'!I36 -> -520 | J19: =I19-'Depreciation and Ammortization'!J36 -> -585 | K19: =J19-'Depreciation and Ammortization'!K36 -> -650
A20: Total Assets | B20: =SUM(B6:B19) -> 207647.4141 | C20: 269634.0336 | D20: 329681.7031 | E20: 387093.1493 | F20: 687161.8249 | G20: 778064.0916 | H20: 860974.3113 | I20: 935346.2678 | J20: 1000807.725 | K20: 1057140.337
A22: Liabilities and owners equity
A23: Liability: | B23: 2011 | C23: 2012 | D23: 2013 | E23: 2014 | F23: 2015 | G23: 2016 | H23: 2017 | I23: 2018 | J23: 2019 | K23: 2020
A24: Long Term Loans | B24: ='Capital Structure'!B9 -> 109035 | C24: =B24 -> 109035 | D24: =C24 -> 109035 | E24: =D24 -> 109035 | F24: =E24 -> 109035 | G24: 0 | H24: 0 | I24: 0 | J24: 0 | K24: 0
A25: Short Term Loans | B25: - | C25: =B25 -> - | D25: =C25 -> - | E25: - | F25: - | G25: - | H25: - | I25: - | J25: - | K25: -
A26: Accounts Payable | B26: 0 | C26: =B26 -> 0 | D26: =C26 -> 0 | E26: 0 | F26: 0 | G26: 0 | H26: 0 | I26: 0 | J26: 0 | K26: 0
A27: Total Liabilities | B27: =SUM(B24:B26) -> 109035 | C27: =SUM(C24:C26) -> 109035 | D27: 109035 | E27: 109035 | F27: 109035 | G27: 0 | H27: 0 | I27: 0 | J27: 0 | K27: 0
A28: Owners Equity
A29: Capital from Owners | B29: ='Capital Structure'!B10 -> 72690 | C29: =B29 -> 72690 | D29: =C29 -> 72690 | E29: 72690 | F29: 72690 | G29: 72690 | H29: 72690 | I29: 72690 | J29: 72690 | K29: 72690
A30: Dividends | B30: 0 | C30: =B30 -> 0 | D30: =C30 -> 0 | E30: 0 | F30: 0 | G30: 0 | H30: 0 | I30: 0 | J30: 0 | K30: 0
A31: Retained Earnings | B31: =B20-B27-B29 -> 25922.41406 | C31: 87909.03356 | D31: 147956.7031 | E31: 205368.1493 | F31: 505436.8249 | G31: 705374.0916 | H31: 788284.3113 | I31: 862656.2678 | J31: 928117.7245 | K31: 984450.3374
A32: Total Equity | B32: =SUM(B29:B31) -> 98612.41406 | C32: =SUM(C29:C31) -> 160599.0336 | D32: 220646.7031 | E32: 278058.1493 | F32: 578126.8249 | G32: 778064.0916 | H32: 860974.3113 | I32: 935346.2678 | J32: 1000807.725 | K32: 1057140.337
A33: Total Liabilities and Equity | B33: =B27+B32 -> 207647.4141 | C33: 269634.0336 | D33: 329681.7031 | E33: 387093.1493 | F33: 687161.8249 | G33: 778064.0916 | H33: 860974.3113 | I33: 935346.2678 | J33: 1000807.725 | K33: 1057140.337
A37: Note 1: Income Available for Spending
A38: Pretax Income | B38: ='Income Statement'!B24 -> 253575.45 | C38: ='Income Statement'!C24 -> 274092.378 | D38: ='Income Statement'!D24 -> 266336.578 | E38: ='Income Statement'!E24 -> 255791.685 | F38: ='Income Statement'!F24 -> 392438.8647 | G38: ='Income Statement'!G24 -> 486547.0377 | H38: ='Income Statement'!H24 -> 454578.8497 | I38: ='Income Statement'!I24 -> 420425.7967 | J38: ='Income Statement'!J24 -> 384783.7979 | K38: ='Income Statement'!K24 -> 348268.4223
A39: Retained Earnings Per Year | B39: =B31 -> 25922.41406 | C39: =C31-B31 -> 61986.6195 | D39: 60047.66949 | E39: 57411.44626 | F39: 300068.6756 | G39: 199937.2667 | H39: 82910.21971 | I39: 74371.95646 | J39: 65461.45676 | K39: 56332.61285
A40: Pretax Income for spending | B40: =B38-B39 -> 227653.0359 | C40: =C38-C39 -> 212105.7585 | D40: 206288.9085 | E40: 198380.2388 | F40: 92370.18911 | G40: 286609.771 | H40: 371668.63 | I40: 346053.8402 | J40: 319322.3411 | K40: 291935.8094
A41: Tax | B41: ='Capital Structure'!$H$3*'Balance Sheet'!B40 -> 85369.88848 | C41: ='Capital Structure'!$H$3*'Balance Sheet'!C40 -> 79539.65944 | D41: ='Capital Structure'!$H$3*'Balance Sheet'!D40 -> 77358.34068 | E41: ='Capital Structure'!$H$3*'Balance Sheet'!E40 -> 74392.58954 | F41: ='Capital Structure'!$H$3*'Balance Sheet'!F40 -> 34638.82092 | G41: ='Capital Structure'!$H$3*'Balance Sheet'!G40 -> 107478.6641 | H41: ='Capital Structure'!$H$3*'Balance Sheet'!H40 -> 139375.7362 | I41: ='Capital Structure'!$H$3*'Balance Sheet'!I40 -> 129770.1901 | J41: ='Capital Structure'!$H$3*'Balance Sheet'!J40 -> 119745.8779 | K41: ='Capital Structure'!$H$3*'Balance Sheet'!K40 -> 109475.9285
A42: Income Available for Spending (net of tax) | B42: =B40-B41 -> 142283.1475 | C42: =C40-C41 -> 132566.0991 | D42: 128930.5678 | E42: 123987.6492 | F42: 57731.36819 | G42: 179131.1068 | H42: 232292.8937 | I42: 216283.6501 | J42: 199576.4632 | K42: 182459.8809
A45: Note 2: Plowback ratio and Internal Growth Rate
A46: Pretax Income | B46: =B38 -> 253575.45 | C46: =C38 -> 274092.378 | D46: 266336.578 | E46: 255791.685 | F46: 392438.8647 | G46: 486547.0377 | H46: 454578.8497 | I46: 420425.7967 | J46: 384783.7979 | K46: 348268.4223
A47: =A39 -> Retained Earnings Per Year | B47: =B39 -> 25922.41406 | C47: =C39 -> 61986.6195 | D47: 60047.66949 | E47: 57411.44626 | F47: 300068.6756 | G47: 199937.2667 | H47: 82910.21971 | I47: 74371.95646 | J47: 65461.45676 | K47: 56332.61285
A48: Plowback Ratio | B48: =B47/B46 -> 0.1022276173 | C48: =C47/C46 -> 0.226152292 | D48: 0.2254578397 | E48: 0.2244461005 | F48: 0.7646252769 | G48: 0.4109310123 | H48: 0.1823890834 | I48: 0.1768967486 | J48: 0.1701252941 | K48: 0.1617505615
A49: ROE | C49: =Ratios!C178 -> 2.114816923 | D49: =Ratios!D178 -> 1.397191115 | E49: =Ratios!E178 -> 1.025823927 | F49: =Ratios!F178 -> 0.916715141 | G49: =Ratios!G178 -> 0.7175199771 | H49: =Ratios!H178 -> 0.5546896874 | I49: =Ratios!I178 -> 0.468096621 | J49: =Ratios!J178 -> 0.3974723079 | K49: =Ratios!K178 -> 0.338461819
A50: Internal Growth Rate | C50: =C48*C49 -> 0.4782706942 | D50: 0.3150076904 | E50: 0.2302421803 | F50: 0.7009435686 | G50: 0.2948512105 | H50: 0.1011693436 | I50: 0.08280477029 | J50: 0.06762009326 | K50: 0.05474638927

Sheet Ratios
A1: Page Navigation | B1: Short Term Ratios | C1: L.T Ratios | D1: Liquiduty | E1: Solvency | F1: Coverage | G1: Profitability | H1: ROI | I1: Leverage | J1: Nav. Bar | Q1: Gen Info
Q2: Expenses
A3: Ratios | Q3: Depreciations
Q4: Income St
A5: Short-term Activity Ratios | Q5: Balance Sht
Q6: Capital Structure
A7: Working Capital Turnover = | B7: Sales | Q7: Cash Flows M
B8: Average Working Capital | Q8: Cash Flows Y
Q9: DCF, NPV & IRR
A10: Years | B10: 2011 | C10: 2012 | D10: 2013 | E10: 2014 | F10: 2015 | G10: 2016 | H10: 2017 | I10: 2018 | J10: 2019 | K10: 2020 | Q10: Break Even
A11: Sales | B11: ='Income Statement'!B6 -> 378000 | C11: ='Income Statement'!C6 -> 375809.328 | D11: ='Income Statement'!D6 -> 370454.0005 | E11: ='Income Statement'!E6 -> 362344.954 | F11: ='Income Statement'!F6 -> 696612.8538 | G11: ='Income Statement'!G6 -> 672199.5327 | H11: ='Income Statement'!H6 -> 644837.8612 | I11: ='Income Statement'!I6 -> 615282.4062 | J11: ='Income Statement'!J6 -> 584217.9152 | K11: ='Income Statement'!K6 -> 552251.4005 | Q11: Sensitivity & MC
A12: Working Capital | B12: ='Balance Sheet'!B6 -> 44162.41406 | C12: ='Balance Sheet'!C6 -> 124314.0336 | D12: ='Balance Sheet'!D6 -> 202526.7031 | E12: ='Balance Sheet'!E6 -> 278103.1493 | F12: ='Balance Sheet'!F6 -> 391007.9123 | G12: ='Balance Sheet'!G6 -> 522889.5027 | H12: ='Balance Sheet'!H6 -> 646779.046 | I12: ='Balance Sheet'!I6 -> 762130.3261 | J12: ='Balance Sheet'!J6 -> 868571.1064 | K12: ='Balance Sheet'!K6 -> 965883.0429 | Q12: Ratios
A13: Average Working Capital | C13: =AVERAGE(B12:C12) -> 84238.22381 | D13: =AVERAGE(C12:D12) -> 163420.3683 | E13: 240314.9262 | F13: 334555.5308 | G13: 456948.7075 | H13: 584834.2743 | I13: 704454.686 | J13: 815350.7163 | K13: 917227.0747 | Q13: PVSOB
A14: Working Capital Turnover | C14: =C11/C13 -> 4.461268424 | D14: =D11/D13 -> 2.266877772 | E14: 1.507792128 | F14: 2.082203968 | G14: 1.471061241 | H14: 1.102599299 | I14: 0.873416585 | J14: 0.7165234586 | K14: 0.6020879843 | Q14: Scenario Cases
A17: Long-term Activity Ratios
A19: Fixed Assets Turnover = | B19: Sales
B20: Average Fixed Assets
A22: Years | B22: 2011 | C22: 2012 | D22: 2013 | E22: 2014 | F22: 2015 | G22: 2016 | H22: 2017 | I22: 2018 | J22: 2019 | K22: 2020
A23: =A11 -> Sales | B23: 378000 | C23: 375809.328 | D23: 370454.0005 | E23: 362344.954 | F23: 696612.8538 | G23: 672199.5327 | H23: 644837.8612 | I23: 615282.4062 | J23: 584217.9152 | K23: 552251.4005
A24: Fixed Assets (net of depreciation) | B24: =SUM('Balance Sheet'!B8:B17) -> 162900 | C24: =SUM('Balance Sheet'!C8:C17) -> 144800 | D24: =SUM('Balance Sheet'!D8:D17) -> 126700 | E24: =SUM('Balance Sheet'!E8:E17) -> 108600 | F24: =SUM('Balance Sheet'!F8:F17) -> 295828.9125 | G24: =SUM('Balance Sheet'!G8:G17) -> 254914.5889 | H24: =SUM('Balance Sheet'!H8:H17) -> 214000.2653 | I24: =SUM('Balance Sheet'!I8:I17) -> 173085.9417 | J24: =SUM('Balance Sheet'!J8:J17) -> 132171.6181 | K24: =SUM('Balance Sheet'!K8:K17) -> 91257.29446
A25: Average Fixed Asset | C25: =AVERAGE(B24:C24) -> 153850 | D25: =AVERAGE(C24:D24) -> 135750 | E25: 117650 | F25: 202214.4563 | G25: 275371.7507 | H25: 234457.4271 | I25: 193543.1035 | J25: 152628.7799 | K25: 111714.4563
A26: Fixed Assets Turnover | C26: =C23/C25 -> 2.442699565 | D26: =D23/D25 -> 2.728942913 | E26: 3.079855112 | F26: 3.444921133 | G26: 2.441062059 | H26: 2.750340943 | I26: 3.179045882 | J26: 3.827704812 | K26: 4.943419312
A28: Total Assets Turnover = | B28: Sales
B29: Average Total Assets
A31: Years | B31: 2011 | C31: 2012 | D31: 2013 | E31: 2014 | F31: 2015 | G31: 2016 | H31: 2017 | I31: 2018 | J31: 2019 | K31: 2020
A32: =A23 -> Sales | B32: =B23 -> 378000 | C32: =C23 -> 375809.328 | D32: 370454.0005 | E32: 362344.954 | F32: 696612.8538 | G32: 672199.5327 | H32: 644837.8612 | I32: 615282.4062 | J32: 584217.9152 | K32: 552251.4005
A33: Total Assets (net of depreciation) | B33: =SUM('Balance Sheet'!B8:B19) -> 163485 | C33: =SUM('Balance Sheet'!C8:C19) -> 145320 | D33: =SUM('Balance Sheet'!D8:D19) -> 127155 | E33: =SUM('Balance Sheet'!E8:E19) -> 108990 | F33: =SUM('Balance Sheet'!F8:F19) -> 296153.9125 | G33: =SUM('Balance Sheet'!G8:G19) -> 255174.5889 | H33: =SUM('Balance Sheet'!H8:H19) -> 214195.2653 | I33: =SUM('Balance Sheet'!I8:I19) -> 173215.9417 | J33: =SUM('Balance Sheet'!J8:J19) -> 132236.6181 | K33: =SUM('Balance Sheet'!K8:K19) -> 91257.29446
A34: Average Total Asset | C34: =AVERAGE(B33:C33) -> 154402.5 | D34: =AVERAGE(C33:D33) -> 136237.5 | E34: =AVERAGE(D33:E33) -> 118072.5 | F34: =AVERAGE(E33:F33) -> 202571.9563 | G34: =AVERAGE(F33:G33) -> 275664.2507 | H34: =AVERAGE(G33:H33) -> 234684.9271 | I34: =AVERAGE(H33:I33) -> 193705.6035 | J34: =AVERAGE(I33:J33) -> 152726.2799 | K34: =AVERAGE(J33:K33) -> 111746.9563
A35: Total Assets Turnover | C35: =C32/C34 -> 2.433958828 | D35: =D32/D34 -> 2.71917791 | E35: =E32/E34 -> 3.068834436 | F35: =F32/F34 -> 3.438841519 | G35: =G32/G34 -> 2.438471913 | H35: =H32/H34 -> 2.747674804 | I35: =I32/I34 -> 3.176378974 | J35: =J32/J34 -> 3.825261217 | K35: =K32/K34 -> 4.941981589
A38: Liquidity Analysis
A40: Current Ratio = | B40: Current Assets
B41: Current Liabilities
A43: Years | B43: 2011 | C43: 2012 | D43: 2013 | E43: 2014 | F43: 2015
A44: Current Assets | B44: ='Balance Sheet'!B6 -> 44162.41406 | C44: ='Balance Sheet'!C6 -> 124314.0336 | D44: ='Balance Sheet'!D6 -> 202526.7031 | E44: ='Balance Sheet'!E6 -> 278103.1493 | F44: ='Balance Sheet'!F6 -> 391007.9123
A45: Current Liabilities | B45: ='Balance Sheet'!B24 -> 109035 | C45: ='Balance Sheet'!C24 -> 109035 | D45: ='Balance Sheet'!D24 -> 109035 | E45: ='Balance Sheet'!E24 -> 109035 | F45: ='Balance Sheet'!F24 -> 109035
A46: Current Ratio | B46: =B44/B45 -> 0.4050297066 | C46: =C44/C45 -> 1.140129624 | D46: 1.857446719 | E46: 2.550586044 | F46: 3.586077061
A48: Cash Flow from Operations Ratio = | B48: CFO
B49: Current Liabilities
A51: Years | B51: 2011 | C51: 2012 | D51: 2013 | E51: 2014 | F51: 2015
A52: CFO | B52: ='Cash Flow Yearly'!B14 -> 194549.6562 | C52: ='Cash Flow Yearly'!C14 -> 320606.478 | D52: ='Cash Flow Yearly'!D14 -> 312850.678 | E52: ='Cash Flow Yearly'!E14 -> 302305.785 | F52: ='Cash Flow Yearly'!F14 -> 570802.2883
A53: Current Liabilities | B53: =B45 -> 109035 | C53: =C45 -> 109035 | D53: 109035 | E53: 109035 | F53: 109035
A54: CFO Ratio | B54: =B52/B53 -> 1.784286296 | C54: =C52/C53 -> 2.94039967 | D54: =D52/D53 -> 2.869268381 | E54: =E52/E53 -> 2.772557298 | F54: =F52/F53 -> 5.235037266
A56: Debt and Solvency Analysis
A58: Debt to Capital = | B58: Total Debt
B59: Total Capital
A61: Years | B61: 2011 | C61: 2012 | D61: 2013 | E61: 2014 | F61: 2015
A62: Total Debt | B62: =B53 -> 109035 | C62: =C53 -> 109035 | D62: 109035 | E62: 109035 | F62: 109035
A63: Total Capital | B63: ='Balance Sheet'!B33 -> 207647.4141 | C63: ='Balance Sheet'!C33 -> 269634.0336 | D63: ='Balance Sheet'!D33 -> 329681.7031 | E63: ='Balance Sheet'!E33 -> 387093.1493 | F63: ='Balance Sheet'!F33 -> 687161.8249
A64: Debt To Capital | B64: =B62/B63 -> 0.5250968354 | C64: =C62/C63 -> 0.4043814446 | D64: =D62/D63 -> 0.3307280901 | E64: =E62/E63 -> 0.2816763877 | F64: =F62/F63 -> 0.1586744142
A66: Debt to Equity = | B66: Total Debt
B67: Total Equity
A69: Years | B69: 2011 | C69: 2012 | D69: 2013 | E69: 2014 | F69: 2015
A70: Total Debt | B70: =B62 -> 109035 | C70: =C62 -> 109035 | D70: 109035 | E70: 109035 | F70: 109035
A71: Total Equity | B71: ='Balance Sheet'!B32 -> 98612.41406 | C71: ='Balance Sheet'!C32 -> 160599.0336 | D71: ='Balance Sheet'!D32 -> 220646.7031 | E71: ='Balance Sheet'!E32 -> 278058.1493 | F71: ='Balance Sheet'!F32 -> 578126.8249
A72: Debt to Equity | B72: =B70/B71 -> 1.105692433 | C72: =C70/C71 -> 0.6789268751 | D72: =D70/D71 -> 0.4941610207 | E72: =E70/E71 -> 0.3921302083 | F72: =F70/F71 -> 0.1886004858
A74: Interest Coverage Ratios
A76: Times Interest Earned = | B76: EBIT
B77: Interest Expense
A79: Years | B79: 2011 | C79: 2012 | D79: 2013 | E79: 2014 | F79: 2015
A80: EBIT | B80: ='Income Statement'!B21 -> 292810 | C80: ='Income Statement'!C21 -> 288266.928 | D80: ='Income Statement'!D21 -> 280511.128 | E80: ='Income Statement'!E21 -> 269966.235 | F80: ='Income Statement'!F21 -> 515648.4147
A81: Interest Expense | B81: =-'Income Statement'!B22 -> 21334.55 | C81: =-'Income Statement'!C22 -> 14174.55 | D81: =-'Income Statement'!D22 -> 14174.55 | E81: =-'Income Statement'!E22 -> 14174.55 | F81: =-'Income Statement'!F22 -> 14174.55
A82: Times Interest Earned | B82: =B80/B81 -> 13.72468601 | C82: =C80/C81 -> 20.33693683 | D82: =D80/D81 -> 19.78977308 | E82: =E80/E81 -> 19.04584167 | F82: =F80/F81 -> 36.37846808
A84: Times Interest Earned (cash basis) = | B84: CFO
B85: Interest Expense
A87: Years | B87: 2011 | C87: 2012 | D87: 2013 | E87: 2014 | F87: 2015
A88: CFO | B88: ='Cash Flow Yearly'!B14 -> 194549.6562 | C88: ='Cash Flow Yearly'!C14 -> 320606.478 | D88: ='Cash Flow Yearly'!D14 -> 312850.678 | E88: ='Cash Flow Yearly'!E14 -> 302305.785 | F88: ='Cash Flow Yearly'!F14 -> 570802.2883
A89: Interest Expense | B89: =B81 -> 21334.55 | C89: =C81 -> 14174.55 | D89: 14174.55 | E89: 14174.55 | F89: 14174.55
A90: Times Interest Earned | B90: =B88/B89 -> 9.118995069 | C90: =C88/C89 -> 22.618459 | D90: =D88/D89 -> 22.07129524 | E90: =E88/E89 -> 21.32736383 | F90: =F88/F89 -> 40.26951743
A92: Capital Expenditure Ratio = | B92: CFO
B93: Capex
A95: Years | B95: 2011 | C95: 2012 | D95: 2013 | E95: 2014 | F95: 2015
A96: CFO | B96: =B88 -> 194549.6562 | C96: =C88 -> 320606.478 | D96: 312850.678 | E96: 302305.785 | F96: 570802.2883
A97: Capex | B97: ='HR Expenses and Consumables'!B48 -> 181725 | C97: ='HR Expenses and Consumables'!C48 -> 0 | D97: ='HR Expenses and Consumables'!D48 -> 0 | E97: ='HR Expenses and Consumables'!E48 -> 0 | F97: ='HR Expenses and Consumables'!F48 -> 228218.2362
A98: Capital Expenditure Ratio | B98: =B96/B97 -> 1.070571777 | C98: 0 | F98: =F96/F97 -> 2.501124791
A100: CFO to Debt = | B100: CFO
B101: Total Debt
A103: Years | B103: 2011 | C103: 2012 | D103: 2013 | E103: 2014 | F103: 2015
A104: CFO | B104: =B96 -> 194549.6562 | C104: =C96 -> 320606.478 | D104: 312850.678 | E104: 302305.785 | F104: 570802.2883
A105: Total debt | B105: ='Balance Sheet'!B24 -> 109035 | C105: ='Balance Sheet'!C24 -> 109035 | D105: ='Balance Sheet'!D24 -> 109035 | E105: ='Balance Sheet'!E24 -> 109035 | F105: ='Balance Sheet'!F24 -> 109035
A106: CFO to Debt | B106: =B104/B105 -> 1.784286296 | C106: =C104/C105 -> 2.94039967 | D106: =D104/D105 -> 2.869268381 | E106: =E104/E105 -> 2.772557298 | F106: =F104/F105 -> 5.235037266
A109: Profitability Ratios
A111: Gross Margin = | B111: Gross Profit
B112: Sales
A114: Years | B114: 2011 | C114: 2012 | D114: 2013 | E114: 2014 | F114: 2015 | G114: 2016 | H114: 2017 | I114: 2018 | J114: 2019 | K114: 2020
A115: Gross Profit | B115: ='Income Statement'!B26 -> 158484.6562 | C115: ='Income Statement'!C26 -> 171307.7363 | D115: ='Income Statement'!D26 -> 166460.3612 | E115: ='Income Statement'!E26 -> 159869.8031 | F115: ='Income Statement'!F26 -> 245274.2904 | G115: ='Income Statement'!G26 -> 304091.8985 | H115: ='Income Statement'!H26 -> 284111.7811 | I115: ='Income Statement'!I26 -> 262766.1229 | J115: ='Income Statement'!J26 -> 240489.8737 | K115: ='Income Statement'!K26 -> 217667.7639
A116: Sales | B116: ='Income Statement'!B6 -> 378000 | C116: ='Income Statement'!C6 -> 375809.328 | D116: ='Income Statement'!D6 -> 370454.0005 | E116: ='Income Statement'!E6 -> 362344.954 | F116: ='Income Statement'!F6 -> 696612.8538 | G116: ='Income Statement'!G6 -> 672199.5327 | H116: ='Income Statement'!H6 -> 644837.8612 | I116: ='Income Statement'!I6 -> 615282.4062 | J116: ='Income Statement'!J6 -> 584217.9152 | K116: ='Income Statement'!K6 -> 552251.4005
A117: Gross Margin | B117: =B115/B116 -> 0.4192715774 | C117: =C115/C116 -> 0.4558368393 | D117: 0.4493415135 | E117: 0.4412088574 | F117: 0.3520955565 | G117: 0.4523833828 | H117: 0.4405941372 | I117: 0.4270658811 | J117: 0.411644127 | K117: =K115/K116 -> 0.394146151
A119: Operating Margin = | B119: Gross Profit
B120: Sales
A122: Years | B122: 2011 | C122: 2012 | D122: 2013 | E122: 2014 | F122: 2015 | G122: 2016 | H122: 2017 | I122: 2018 | J122: 2019 | K122: 2020
A123: Operating Profit | B123: ='Income Statement'!B21 -> 292810 | C123: ='Income Statement'!C21 -> 288266.928 | D123: ='Income Statement'!D21 -> 280511.128 | E123: ='Income Statement'!E21 -> 269966.235 | F123: ='Income Statement'!F21 -> 515648.4147 | G123: ='Income Statement'!G21 -> 486547.0377 | H123: ='Income Statement'!H21 -> 454578.8497 | I123: ='Income Statement'!I21 -> 420425.7967 | J123: ='Income Statement'!J21 -> 384783.7979 | K123: ='Income Statement'!K21 -> 348268.4223
A124: Sales | B124: =B116 -> 378000 | C124: =C116 -> 375809.328 | D124: 370454.0005 | E124: 362344.954 | F124: 696612.8538 | G124: 672199.5327 | H124: 644837.8612 | I124: 615282.4062 | J124: 584217.9152 | K124: 552251.4005
A125: Operating Margin | B125: =B123/B124 -> 0.7746296296 | C125: =C123/C124 -> 0.7670563409 | D125: =D123/D124 -> 0.7572090668 | E125: =E123/E124 -> 0.7450531105 | F125: =F123/F124 -> 0.7402223658 | G125: =G123/G124 -> 0.7238134125 | H125: =H123/H124 -> 0.7049506195 | I125: =I123/I124 -> 0.6833054098 | J125: =J123/J124 -> 0.6586306032 | K125: =K123/K124 -> 0.6306338416
A127: Margin before Interest and Tax = | B127: EBIT
B128: Sales
A130: Years | B130: 2011 | C130: 2012 | D130: 2013 | E130: 2014 | F130: 2015 | G130: 2016 | H130: 2017 | I130: 2018 | J130: 2019 | K130: 2020
A131: EBIT | B131: ='Income Statement'!B21 -> 292810 | C131: ='Income Statement'!C21 -> 288266.928 | D131: ='Income Statement'!D21 -> 280511.128 | E131: ='Income Statement'!E21 -> 269966.235 | F131: ='Income Statement'!F21 -> 515648.4147 | G131: ='Income Statement'!G21 -> 486547.0377 | H131: ='Income Statement'!H21 -> 454578.8497 | I131: ='Income Statement'!I21 -> 420425.7967 | J131: ='Income Statement'!J21 -> 384783.7979 | K131: ='Income Statement'!K21 -> 348268.4223
A132: Sales | B132: =B124 -> 378000 | C132: =C124 -> 375809.328 | D132: 370454.0005 | E132: 362344.954 | F132: 696612.8538 | G132: 672199.5327 | H132: 644837.8612 | I132: 615282.4062 | J132: 584217.9152 | K132: 552251.4005
A133: Margin Before Interest and Tax | B133: =B131/B132 -> 0.7746296296 | C133: =C131/C132 -> 0.7670563409 | D133: =D131/D132 -> 0.7572090668 | E133: =E131/E132 -> 0.7450531105 | F133: =F131/F132 -> 0.7402223658 | G133: =G131/G132 -> 0.7238134125 | H133: =H131/H132 -> 0.7049506195 | I133: =I131/I132 -> 0.6833054098 | J133: =J131/J132 -> 0.6586306032 | K133: =K131/K132 -> 0.6306338416
A135: Pretax Margin = | B135: EBT
B136: Sales
A138: Years | B138: 2011 | C138: 2012 | D138: 2013 | E138: 2014 | F138: 2015 | G138: 2016 | H138: 2017 | I138: 2018 | J138: 2019 | K138: 2020
A139: EBT | B139: ='Income Statement'!B24 -> 253575.45 | C139: ='Income Statement'!C24 -> 274092.378 | D139: ='Income Statement'!D24 -> 266336.578 | E139: ='Income Statement'!E24 -> 255791.685 | F139: ='Income Statement'!F24 -> 392438.8647 | G139: ='Income Statement'!G24 -> 486547.0377 | H139: ='Income Statement'!H24 -> 454578.8497 | I139: ='Income Statement'!I24 -> 420425.7967 | J139: ='Income Statement'!J24 -> 384783.7979 | K139: ='Income Statement'!K24 -> 348268.4223
A140: Sales | B140: =B132 -> 378000 | C140: =C132 -> 375809.328 | D140: 370454.0005 | E140: 362344.954 | F140: 696612.8538 | G140: 672199.5327 | H140: 644837.8612 | I140: 615282.4062 | J140: 584217.9152 | K140: 552251.4005
A141: Pretax Margin | B141: =B139/B140 -> 0.6708345238 | C141: =C139/C140 -> 0.7293389429 | D141: =D139/D140 -> 0.7189464215 | E141: =E139/E140 -> 0.7059341719 | F141: =F139/F140 -> 0.5633528904 | G141: =G139/G140 -> 0.7238134125 | H141: =H139/H140 -> 0.7049506195 | I141: =I139/I140 -> 0.6833054098 | J141: =J139/J140 -> 0.6586306032 | K141: =K139/K140 -> 0.6306338416
A143: Profit Margin = | B143: Net Income
B144: Sales
A146: Years | B146: 2011 | C146: 2012 | D146: 2013 | E146: 2014 | F146: 2015 | G146: 2016 | H146: 2017 | I146: 2018 | J146: 2019 | K146: 2020
A147: Net Income | B147: ='Income Statement'!B26 -> 158484.6562 | C147: ='Income Statement'!C26 -> 171307.7363 | D147: ='Income Statement'!D26 -> 166460.3612 | E147: ='Income Statement'!E26 -> 159869.8031 | F147: ='Income Statement'!F26 -> 245274.2904 | G147: ='Income Statement'!G26 -> 304091.8985 | H147: ='Income Statement'!H26 -> 284111.7811 | I147: ='Income Statement'!I26 -> 262766.1229 | J147: ='Income Statement'!J26 -> 240489.8737 | K147: ='Income Statement'!K26 -> 217667.7639
A148: Sales | B148: =B140 -> 378000 | C148: =C140 -> 375809.328 | D148: 370454.0005 | E148: 362344.954 | F148: 696612.8538 | G148: 672199.5327 | H148: 644837.8612 | I148: 615282.4062 | J148: 584217.9152 | K148: 552251.4005
A149: Profit Margin | B149: =B147/B148 -> 0.4192715774 | C149: =C147/C148 -> 0.4558368393 | D149: =D147/D148 -> 0.4493415135 | E149: =E147/E148 -> 0.4412088574 | F149: =F147/F148 -> 0.3520955565 | G149: =G147/G148 -> 0.4523833828 | H149: =H147/H148 -> 0.4405941372 | I149: =I147/I148 -> 0.4270658811 | J149: =J147/J148 -> 0.411644127 | K149: =K147/K148 -> 0.394146151
A151: Return On Investment
A153: ROA (Return on Assets) = | B153: EBIT
B154: Average Total Assets
A156: Years | B156: 2011 | C156: 2012 | D156: 2013 | E156: 2014 | F156: 2015 | G156: 2016 | H156: 2017 | I156: 2018 | J156: 2019 | K156: 2020
A157: EBIT | B157: ='Income Statement'!B21 -> 292810 | C157: ='Income Statement'!C21 -> 288266.928 | D157: ='Income Statement'!D21 -> 280511.128 | E157: ='Income Statement'!E21 -> 269966.235 | F157: ='Income Statement'!F21 -> 515648.4147 | G157: ='Income Statement'!G21 -> 486547.0377 | H157: ='Income Statement'!H21 -> 454578.8497 | I157: ='Income Statement'!I21 -> 420425.7967 | J157: ='Income Statement'!J21 -> 384783.7979 | K157: ='Income Statement'!K21 -> 348268.4223
A158: Total Assets (net of depreciation) | B158: =SUM('Balance Sheet'!B8:B19) -> 163485 | C158: =SUM('Balance Sheet'!C8:C19) -> 145320 | D158: =SUM('Balance Sheet'!D8:D19) -> 127155 | E158: =SUM('Balance Sheet'!E8:E19) -> 108990 | F158: =SUM('Balance Sheet'!F8:F19) -> 296153.9125 | G158: =SUM('Balance Sheet'!G8:G19) -> 255174.5889 | H158: =SUM('Balance Sheet'!H8:H19) -> 214195.2653 | I158: =SUM('Balance Sheet'!I8:I19) -> 173215.9417 | J158: =SUM('Balance Sheet'!J8:J19) -> 132236.6181 | K158: =SUM('Balance Sheet'!K8:K19) -> 91257.29446
A159: Average Total Asset | C159: =AVERAGE(B158:C158) -> 154402.5 | D159: =AVERAGE(C158:D158) -> 136237.5 | E159: =AVERAGE(D158:E158) -> 118072.5 | F159: =AVERAGE(E158:F158) -> 202571.9563 | G159: =AVERAGE(F158:G158) -> 275664.2507 | H159: =AVERAGE(G158:H158) -> 234684.9271 | I159: =AVERAGE(H158:I158) -> 193705.6035 | J159: =AVERAGE(I158:J158) -> 152726.2799 | K159: =AVERAGE(J158:K158) -> 111746.9563
A160: ROA | C160: =C157/C159 -> 1.866983553 | D160: =D157/D159 -> 2.058986167 | E160: =E157/E159 -> 2.286444642 | F160: =F157/F159 -> 2.545507405 | G160: =G157/G159 -> 1.764998676 | H160: =H157/H159 -> 1.936975055 | I160: =I157/I159 -> 2.170436937 | J160: =J157/J159 -> 2.519434103 | K160: =K157/K159 -> 3.116580835
A162: ROTC (Return on Total Capital) = | B162: EBIT
B163: Average Total Capital
A165: Years | B165: 2011 | C165: 2012 | D165: 2013 | E165: 2014 | F165: 2015 | G165: 2016 | H165: 2017 | I165: 2018 | J165: 2019 | K165: 2020
A166: EBIT | B166: =B157 -> 292810 | C166: =C157 -> 288266.928 | D166: 280511.128 | E166: 269966.235 | F166: 515648.4147 | G166: 486547.0377 | H166: 454578.8497 | I166: 420425.7967 | J166: 384783.7979 | K166: 348268.4223
A167: Total Capital | B167: =SUM('Balance Sheet'!B27,'Balance Sheet'!B32) -> 207647.4141 | C167: =SUM('Balance Sheet'!C27,'Balance Sheet'!C32) -> 269634.0336 | D167: =SUM('Balance Sheet'!D27,'Balance Sheet'!D32) -> 329681.7031 | E167: =SUM('Balance Sheet'!E27,'Balance Sheet'!E32) -> 387093.1493 | F167: =SUM('Balance Sheet'!F27,'Balance Sheet'!F32) -> 687161.8249 | G167: =SUM('Balance Sheet'!G27,'Balance Sheet'!G32) -> 778064.0916 | H167: =SUM('Balance Sheet'!H27,'Balance Sheet'!H32) -> 860974.3113 | I167: =SUM('Balance Sheet'!I27,'Balance Sheet'!I32) -> 935346.2678 | J167: =SUM('Balance Sheet'!J27,'Balance Sheet'!J32) -> 1000807.725 | K167: =SUM('Balance Sheet'!K27,'Balance Sheet'!K32) -> 1057140.337
A168: Average Total Capital | C168: =AVERAGE(B167:C167) -> 238640.7238 | D168: =AVERAGE(C167:D167) -> 299657.8683 | E168: =AVERAGE(D167:E167) -> 358387.4262 | F168: =AVERAGE(E167:F167) -> 537127.4871 | G168: =AVERAGE(F167:G167) -> 732612.9582 | H168: =AVERAGE(G167:H167) -> 819519.2014 | I168: =AVERAGE(H167:I167) -> 898160.2895 | J168: =AVERAGE(I167:J167) -> 968076.9961 | K168: =AVERAGE(J167:K167) -> 1028974.031
A169: ROTC | C169: =C166/C168 -> 1.207953628 | D169: =D166/D168 -> 0.9361046635 | E169: =E166/E168 -> 0.7532804314 | F169: =F166/F168 -> 0.9600112209 | G169: =G166/G168 -> 0.6641256235 | H169: =H166/H168 -> 0.5546896874 | I169: =I166/I168 -> 0.468096621 | J169: =J166/J168 -> 0.3974723079 | K169: =K166/K168 -> 0.338461819
A171: ROE (Return on Equity) = | B171: Pretax Income
B172: Average Equity
A174: Years | B174: 2011 | C174: 2012 | D174: 2013 | E174: 2014 | F174: 2015 | G174: 2016 | H174: 2017 | I174: 2018 | J174: 2019 | K174: 2020
A175: Pretax Income | B175: ='Income Statement'!B24 -> 253575.45 | C175: ='Income Statement'!C24 -> 274092.378 | D175: ='Income Statement'!D24 -> 266336.578 | E175: ='Income Statement'!E24 -> 255791.685 | F175: ='Income Statement'!F24 -> 392438.8647 | G175: ='Income Statement'!G24 -> 486547.0377 | H175: ='Income Statement'!H24 -> 454578.8497 | I175: ='Income Statement'!I24 -> 420425.7967 | J175: ='Income Statement'!J24 -> 384783.7979 | K175: ='Income Statement'!K24 -> 348268.4223
A176: Total Equity | B176: ='Balance Sheet'!B32 -> 98612.41406 | C176: ='Balance Sheet'!C32 -> 160599.0336 | D176: ='Balance Sheet'!D32 -> 220646.7031 | E176: ='Balance Sheet'!E32 -> 278058.1493 | F176: ='Balance Sheet'!F32 -> 578126.8249 | G176: ='Balance Sheet'!G32 -> 778064.0916 | H176: ='Balance Sheet'!H32 -> 860974.3113 | I176: ='Balance Sheet'!I32 -> 935346.2678 | J176: ='Balance Sheet'!J32 -> 1000807.725 | K176: ='Balance Sheet'!K32 -> 1057140.337
A177: Average Total Equity | C177: =AVERAGE(B176:C176) -> 129605.7238 | D177: =AVERAGE(C176:D176) -> 190622.8683 | E177: =AVERAGE(D176:E176) -> 249352.4262 | F177: =AVERAGE(E176:F176) -> 428092.4871 | G177: =AVERAGE(F176:G176) -> 678095.4582 | H177: =AVERAGE(G176:H176) -> 819519.2014 | I177: =AVERAGE(H176:I176) -> 898160.2895 | J177: =AVERAGE(I176:J176) -> 968076.9961 | K177: =AVERAGE(J176:K176) -> 1028974.031
A178: ROE | C178: =C175/C177 -> 2.114816923 | D178: =D175/D177 -> 1.397191115 | E178: =E175/E177 -> 1.025823927 | F178: =F175/F177 -> 0.916715141 | G178: =G175/G177 -> 0.7175199771 | H178: =H175/H177 -> 0.5546896874 | I178: =I175/I177 -> 0.468096621 | J178: =J175/J177 -> 0.3974723079 | K178: =K175/K177 -> 0.338461819
A180: Operating and Financial Leverage
A182: OLE (Operating Leverage Effect) = | B182: Contribution
B183: Operating Income
A185: Years | B185: 2011 | C185: 2012 | D185: 2013 | E185: 2014 | F185: 2015 | G185: 2016 | H185: 2017 | I185: 2018 | J185: 2019 | K185: 2020
A186: Contribution | B186: ='Income Statement'!B8 -> 341475 | C186: ='Income Statement'!C8 -> 337141.928 | D186: ='Income Statement'!D8 -> 329600.328 | E186: ='Income Statement'!E8 -> 319273.919 | F186: ='Income Statement'!F8 -> 620158.1403 | G186: ='Income Statement'!G8 -> 591327.3713 | H186: ='Income Statement'!H8 -> 559635.2036 | I186: ='Income Statement'!I8 -> 525763.6911 | J186: ='Income Statement'!J8 -> 490408.8638 | K186: ='Income Statement'!K8 -> 454186.403
A187: Operating Income | B187: ='Income Statement'!B21 -> 292810 | C187: ='Income Statement'!C21 -> 288266.928 | D187: ='Income Statement'!D21 -> 280511.128 | E187: ='Income Statement'!E21 -> 269966.235 | F187: ='Income Statement'!F21 -> 515648.4147 | G187: ='Income Statement'!G21 -> 486547.0377 | H187: ='Income Statement'!H21 -> 454578.8497 | I187: ='Income Statement'!I21 -> 420425.7967 | J187: ='Income Statement'!J21 -> 384783.7979 | K187: ='Income Statement'!K21 -> 348268.4223
A188: OLE | B188: =B186/B187 -> 1.166199925 | C188: =C186/C187 -> 1.169547719 | D188: =D186/D187 -> 1.174999118 | E188: =E186/E187 -> 1.182643892 | F188: =F186/F187 -> 1.202676325 | G188: =G186/G187 -> 1.215354993 | H188: =H186/H187 -> 1.231106999 | I188: =I186/I187 -> 1.250550502 | J188: =J186/J187 -> 1.274504973 | K188: =K186/K187 -> 1.304127431
A190: FLE (Financial Leverage Effect) = | B190: Operating Income
B191: Net Income
A193: Years | B193: 2011 | C193: 2012 | D193: 2013 | E193: 2014 | F193: 2015 | G193: 2016 | H193: 2017 | I193: 2018 | J193: 2019 | K193: 2020
A194: Operating Income | B194: =B187 -> 292810 | C194: =C187 -> 288266.928 | D194: 280511.128 | E194: 269966.235 | F194: 515648.4147 | G194: 486547.0377 | H194: 454578.8497 | I194: 420425.7967 | J194: 384783.7979 | K194: 348268.4223
A195: Net Income | B195: ='Income Statement'!B26 -> 158484.6562 | C195: ='Income Statement'!C26 -> 171307.7363 | D195: ='Income Statement'!D26 -> 166460.3612 | E195: ='Income Statement'!E26 -> 159869.8031 | F195: ='Income Statement'!F26 -> 245274.2904 | G195: ='Income Statement'!G26 -> 304091.8985 | H195: ='Income Statement'!H26 -> 284111.7811 | I195: ='Income Statement'!I26 -> 262766.1229 | J195: ='Income Statement'!J26 -> 240489.8737 | K195: ='Income Statement'!K26 -> 217667.7639
A196: FLE | B196: =B194/B195 -> 1.847560558 | C196: =C194/C195 -> 1.682743198 | D196: =D194/D195 -> 1.685152705 | E196: =E194/E195 -> 1.688663085 | F196: =F194/F195 -> 2.102333733 | G196: =G194/G195 -> 1.6 | H196: =H194/H195 -> 1.6 | I196: =I194/I195 -> 1.6 | J196: =J194/J195 -> 1.6 | K196: =K194/K195 -> 1.6
A198: TLE = OLE * FLE
A200: Years | B200: 2011 | C200: 2012 | D200: 2013 | E200: 2014 | F200: 2015 | G200: 2016 | H200: 2017 | I200: 2018 | J200: 2019 | K200: 2020
A201: OLE | B201: =B188 -> 1.166199925 | C201: =C188 -> 1.169547719 | D201: 1.174999118 | E201: 1.182643892 | F201: 1.202676325 | G201: 1.215354993 | H201: 1.231106999 | I201: 1.250550502 | J201: 1.274504973 | K201: 1.304127431
A202: FLE | B202: =B196 -> 1.847560558 | C202: =C196 -> 1.682743198 | D202: 1.685152705 | E202: 1.688663085 | F202: 2.102333733 | G202: 1.6 | H202: 1.6 | I202: 1.6 | J202: 1.6 | K202: 1.6
A203: TLE (Total Leverage Effect) | B203: =B201*B202 -> 2.154624984 | C203: =C201*C202 -> 1.968048469 | D203: 1.980052942 | E203: 1.997087084 | F203: 2.528427008 | G203: 1.944567988 | H203: 1.969771199 | I203: 2.000880803 | J203: 2.039207956 | K203: 2.08660389
A206: Economic Value Added
A207: EVA = EBIT(1-t) – {WACC * (D+E)}
A209: Tax Rate | B209: ='Capital Structure'!H3 -> 0.375 | C209: WACC | D209: ='Capital Structure'!B6 -> 0.11275
A211: Years | B211: 2011 | C211: 2012 | D211: 2013 | E211: 2014 | F211: 2015 | G211: 2016 | H211: 2017 | I211: 2018 | J211: 2019 | K211: 2020
A212: EBIT | B212: =B166 -> 292810 | C212: 288266.928 | D212: 280511.128 | E212: 269966.235 | F212: 515648.4147 | G212: 486547.0377 | H212: 454578.8497 | I212: 420425.7967 | J212: 384783.7979 | K212: 348268.4223
A213: Debt | B213: ='Balance Sheet'!B27 -> 109035 | C213: ='Balance Sheet'!C27 -> 109035 | D213: ='Balance Sheet'!D27 -> 109035 | E213: ='Balance Sheet'!E27 -> 109035 | F213: ='Balance Sheet'!F27 -> 109035 | G213: ='Balance Sheet'!G27 -> 0 | H213: ='Balance Sheet'!H27 -> 0 | I213: ='Balance Sheet'!I27 -> 0 | J213: ='Balance Sheet'!J27 -> 0 | K213: ='Balance Sheet'!K27 -> 0
A214: Equity | B214: ='Balance Sheet'!B32 -> 98612.41406 | C214: ='Balance Sheet'!C32 -> 160599.0336 | D214: ='Balance Sheet'!D32 -> 220646.7031 | E214: ='Balance Sheet'!E32 -> 278058.1493 | F214: ='Balance Sheet'!F32 -> 578126.8249 | G214: ='Balance Sheet'!G32 -> 778064.0916 | H214: ='Balance Sheet'!H32 -> 860974.3113 | I214: ='Balance Sheet'!I32 -> 935346.2678 | J214: ='Balance Sheet'!J32 -> 1000807.725 | K214: ='Balance Sheet'!K32 -> 1057140.337
A215: EVA | B215: =B212*(1-$B$209)-($D$209*(B213+B214)) -> 159594.0041 | C215: =C212*(1-$B$209)-($D$209*(C213+C214)) -> 149765.5927 | D215: 138147.843 | E215: 125084.1443 | F215: 244802.7634 | G215: 216365.1722 | H215: 187036.9275 | I215: 157305.8312 | J215: 127648.8028 | K215: 98475.19087

Sheet DCF, NPV & IRR
A1: Page navigation | B1: DCF | C1: NPV | D1: IRR | E1: Discounted Payback | F1: NPV (FCFE) | G1: Nav. Bar | M1: Gen Info
A2: Rates | M2: Expenses
A3: ='Capital Structure'!A3 -> Debt | B3: ='Capital Structure'!B3 -> 0.6 | D3: ='Capital Structure'!D3 -> Rate on Debt | E3: ='Capital Structure'!E3 -> 0.13 | M3: Depreciations
A4: ='Capital Structure'!A4 -> Equity | B4: ='Capital Structure'!B4 -> 0.4 | D4: ='Capital Structure'!D4 -> Rate on Equity | E4: ='Capital Structure'!E4 -> 0.16 | M4: Income St
A5: ='Capital Structure'!A5 -> Total | B5: ='Capital Structure'!B5 -> 1 | D5: Industry Growth Rate | E5: 0.1 | M5: Balance Sht
A6: ='Capital Structure'!A6 -> WACC | B6: ='Capital Structure'!B6 -> 0.11275 | D6: ='Capital Structure'!G3 -> Tax Rate | E6: ='Capital Structure'!H3 -> 0.375 | M6: Capital Structure
A7: Initial Investment | B7: =-'HR Expenses and Consumables'!B48 -> -181725 | M7: Cash Flows M
M8: Cash Flows Y
A9: Cash Flows | M9: DCF, NPV & IRR
A10: Year | B10: 2011 | C10: 2012 | D10: 2013 | E10: 2014 | F10: 2015 | G10: 2016 | H10: 2017 | I10: 2018 | J10: 2019 | K10: 2020 | M10: Break Even
A11: Financial Cash Flows | B11: ='Cash Flow Yearly'!B36 -> 9099.20625 | C11: ='Cash Flow Yearly'!C36 -> 306431.928 | D11: ='Cash Flow Yearly'!D36 -> 298676.128 | E11: ='Cash Flow Yearly'!E36 -> 288131.235 | F11: ='Cash Flow Yearly'!F36 -> 328409.5021 | G11: ='Cash Flow Yearly'!G36 -> 527526.3613 | H11: ='Cash Flow Yearly'!H36 -> 495558.1733 | I11: ='Cash Flow Yearly'!I36 -> 461405.1203 | J11: ='Cash Flow Yearly'!J36 -> 425763.1215 | K11: ='Cash Flow Yearly'!K36 -> 389247.7459 | M11: Sensitivity & MC
M12: Ratios
M13: PVSOB
A14: Discounted Cash Flows | M14: Scenario Cases
A15: Year | B15: 1 | C15: 2 | D15: 3 | E15: 4 | F15: 5 | G15: 6 | H15: 7 | I15: 8 | J15: 9 | K15: 10
A16: DCF(Financial) | B16: =B11/((1+$B$6)^B15) -> 8177.224219 | C16: =C11/((1+$B$6)^C15) -> 247479.2594 | D16: 216774.2557 | E16: 187931.6509 | F16: 192498.6551 | G16: 277880.8055 | H16: 234591.0412 | I16: 196291.5417 | J16: 162775.7161 | K16: 133736.538
A17: NPV
A18: Based on Financial CF | B18: =B7+SUM(B16:K16) -> 1676411.688
A20: Terminal Value
A21: Fin DCF for Year 11 (PV for infinite growth) | B21: =(K11/(B6-E5))/(1+B6)^K15 -> 10489140.24
A22: Terminal Value (Financial) | B22: =B7+SUM(B16:K16)+B21 -> 12165551.93
A24: Internal Rate of Return (IRR) | B24: 0 | C24: 1 | D24: 2 | E24: 3 | F24: 4 | G24: 5 | H24: 6 | I24: 7 | J24: 8 | K24: 9 | L24: 10
A25: Finacial Cash Flows | B25: =B7 -> -181725 | C25: =B11 -> 9099.20625 | D25: 306431.928 | E25: 298676.128 | F25: 288131.235 | G25: 328409.5021 | H25: 527526.3613 | I25: 495558.1733 | J25: 461405.1203 | K25: 425763.1215 | L25: 389247.7459
A26: Financial IRR | B26: =IRR(B25:L25) -> 0.9269345782
A28: Discounted Payback
A29: Payback For Year 1 | B29: =B7+B16 -> -173547.7758
A30: Financial Discounted Payback Period | B30: =1+(-B29/C16) -> 1.7012619
A33: NPV Based on FCFE
A35: Discount Rate | B35: =E4 -> 0.16
A37: Years | B37: 0 | C37: 1 | D37: 2 | E37: 3 | F37: 4 | G37: 5 | H37: 6 | I37: 7 | J37: 8 | K37: 9 | L37: 10
A38: Cash Flows | B38: ='Cash Flow Yearly'!B47 -> -72690 | C38: ='Cash Flow Yearly'!C47 -> 220747.0703 | D38: ='Cash Flow Yearly'!D47 -> 269559.3557 | E38: ='Cash Flow Yearly'!E47 -> 306935.4448 | F38: ='Cash Flow Yearly'!F47 -> 105479.6327 | G38: ='Cash Flow Yearly'!G47 -> 630503.4606 | H38: ='Cash Flow Yearly'!H47 -> 632615.8782 | I38: ='Cash Flow Yearly'!I47 -> 684195.4946 | J38: ='Cash Flow Yearly'!J47 -> 706641.3827 | K38: ='Cash Flow Yearly'!K47 -> 747014.3676 | L38: ='Cash Flow Yearly'!L47 -> 758854.9601
A39: DCF | B39: =B38/(1+$B$35)^B37 -> -72690 | C39: =C38/(1+$B$35)^C37 -> 190299.1985 | D39: 200326.5129 | E39: 196640.548 | F39: 58255.46217 | G39: 300190.9039 | H39: 259652.2874 | I39: 242088.5702 | J39: 215543.6105 | K39: 196429.6541 | L39: 172019.9769
A40: NPV | B40: =SUM(B39:L39) -> 1958756.725

Sheet Break Even
A1: Page Navigation | B1: B.E Present Price | C1: B.E Average Price | D1: B.E Least Price | E1: Nav. Bar | P1: Gen Info
P2: Expenses
A3: Inflation Rate | B3: ='Sensitivities & Monte Carlo'!B5 -> 0.02 | P3: Depreciations
A4: Cost Function | P4: Income St
A5: Year | B5: Units Sold (X) | C5: Costs | D5: Inflation Adjusted Costs (Y) | P5: Balance Sht
A6: 2011 | B6: ='HR Expenses and Consumables'!B19 -> 900 | C6: ='HR Expenses and Consumables'!B49 -> 248750 | D6: =C6/(1+$B$3) -> 243872.549 | P6: Capital Structure
A7: 2012 | B7: ='HR Expenses and Consumables'!C19 -> 981 | C7: ='HR Expenses and Consumables'!C49 -> 69377.4 | D7: =C7/(1+$B$3) -> 68017.05882 | P7: Cash Flows M
A8: 2013 | B8: ='HR Expenses and Consumables'!D19 -> 1060.461 | C8: ='HR Expenses and Consumables'!D49 -> 71777.87249 | D8: 70370.46322 | F8: SUMMARY OUTPUT | P8: Cash Flows Y
A9: 2014 | B9: ='HR Expenses and Consumables'!E19 -> 1137.768607 | C9: ='HR Expenses and Consumables'!E49 -> 74213.71896 | D9: 72758.548 | P9: DCF, NPV & IRR
A10: 2015 | B10: ='HR Expenses and Consumables'!F19 -> 2400 | C10: ='HR Expenses and Consumables'!F49 -> 368203.3517 | D10: 360983.6781 | F10: Regression Statistics | P10: Break Even
A11: 2016 | B11: ='HR Expenses and Consumables'!G19 -> 2541.7176 | C11: ='HR Expenses and Consumables'!G49 -> 144673.1715 | D11: 141836.4426 | F11: Multiple R | G11: 0.2909863287 | P11: Sensitivity & MC
A12: 2017 | B12: ='HR Expenses and Consumables'!H19 -> 2676.794894 | C12: ='HR Expenses and Consumables'!H49 -> 149279.6879 | D12: 146352.6352 | F12: R Square | G12: 0.08467304349 | P12: Ratios
A13: 2018 | B13: ='HR Expenses and Consumables'!I19 -> 2804.825164 | C13: ='HR Expenses and Consumables'!I49 -> 153877.2859 | D13: 150860.0842 | F13: Adjusted R Square | G13: -0.02974282607 | P13: PVSOB
A14: 2019 | B14: ='HR Expenses and Consumables'!J19 -> 2925.563691 | C14: ='HR Expenses and Consumables'!J49 -> 158454.7937 | D14: 155347.8369 | F14: Standard Error | G14: 90805.36388 | P14: Scenario Cases
A15: 2020 | B15: ='HR Expenses and Consumables'!K19 -> 3038.906022 | C15: ='HR Expenses and Consumables'!K49 -> 163003.6547 | D15: 159807.5046 | F15: Observations | G15: 10
A17: Based On Present Price | F17: ANOVA
G18: df | H18: SS | I18: MS | J18: F | K18: Significance F
A19: Fixed Cost | B19: =G24 -> 98039.67246 | F19: Regression | G19: 1 | H19: 6102136397 | I19: 6102136397 | J19: 0.7400463224 | K19: 0.4146815789
A20: Variable Cost per Unit | B20: =G25 -> 28.81756049 | F20: Residual | G20: 8 | H20: 6.596491288e+10 | I20: 8245614110
A21: In first Year | F21: Total | G21: 9 | H21: 7.206704927e+10
A22: Selling price per unit | B22: ='GenInfo, Assmp, Projctns'!B21 -> 600
A23: Contribution Margin per unit | B23: =B22-B20 -> 571.1824395 | G23: Coefficients | H23: Standard Error | I23: t Stat | J23: P-value | K23: Lower 95% | L23: Upper 95% | M23: Lower 95.0% | N23: Upper 95.0%
A24: Break Even Quantity | B24: =B19/B23 -> 171.6433589 | F24: Intercept | G24: 98039.67246 | H24: 74332.31586 | I24: 1.318937414 | J24: 0.2236913849 | K24: -73370.9553 | L24: 269450.3002 | M24: -73370.9553 | N24: 269450.3002
A25: Break Even Sales | B25: =B24*B22 -> 102986.0153 | F25: X Variable 1 | G25: 28.81756049 | H25: 33.49868516 | I25: 0.8602594506 | J25: 0.4146815789 | K25: -48.430546 | L25: 106.065667 | M25: -48.430546 | N25: 106.065667
A27: Based on Average Price for 10 Years
A29: Fixed Cost | B29: =B19 -> 98039.67246
A30: Variable Cost per Unit | B30: =B20 -> 28.81756049
A31: Selling price per unit (Average) | B31: =AVERAGE('GenInfo, Assmp, Projctns'!B21:K21) -> 424.2086593
A32: Contribution Margin per unit | B32: =B31-B30 -> 395.3910988
A33: Break Even Quantity | B33: =B29/B32 -> 247.9561951
A34: Break Even Sales | B34: =B33*B22 -> 148773.7171
A36: Based On Least Price for 10 Years
A37: Fixed Cost | B37: =B29 -> 98039.67246
A38: Variable Cost per Unit | B38: =B30 -> 28.81756049
A39: Selling price per unit (Average) | B39: =MIN('GenInfo, Assmp, Projctns'!B21:K21) -> 283.296818
A40: Contribution Margin per unit | B40: =B39-B38 -> 254.4792575
A41: Break Even Quantity | B41: =B37/B40 -> 385.2560457
A42: Break Even Sales | B42: =B41*B22 -> 231153.6274

Sheet Sensitivities & Monte Carlo
A1: Page Navigation | B1: General Info's | C1: Sensitivity Part 1 | D1: Sensitivity Part 2 | E1: Sensitivity Part 3 | F1: Sensitivity Part 4 | G1: Monte Carlo | H1: Nav. Bar | O1: Gen Info
A2: Growth, Competition and Inflation rates | D2: Capital Structures | O2: Expenses
A3: ='GenInfo, Assmp, Projctns'!A14 -> Market Growth Rate (Net) | B3: =10% -> 0.1 | D3: ='Capital Structure'!A3 -> Debt | E3: =60% -> 0.6 | O3: Depreciations
A4: ='GenInfo, Assmp, Projctns'!A15 -> Decrease in Growth Rate Due to Competition | B4: 0.1 | D4: ='Capital Structure'!A4 -> Equity | E4: =E5-E3 -> 0.4 | O4: Income St
A5: ='GenInfo, Assmp, Projctns'!A16 -> Price Increase Due to Inflation | B5: 0.02 | D5: Total | E5: 1 | O5: Balance Sht
A6: ='GenInfo, Assmp, Projctns'!A17 -> Price Decrease Due to Competition | B6: 0.1 | D6: ='Capital Structure'!D3 -> Rate on Debt | E6: =13% -> 0.13 | O6: Capital Structure
A7: ='HR Expenses and Consumables'!A12 -> Increase in labor rate | B7: 0.02 | D7: ='Capital Structure'!D4 -> Rate on Equity | E7: =16% -> 0.16 | F7: ` | O7: Cash Flows M
A8: Mortality Rate | B8: 0.3 | D8: ='Capital Structure'!A6 -> WACC | E8: =(E6*E3*(1-E9))+E7*E4 -> 0.11275 | O8: Cash Flows Y
A9: Increase in Mortality Rate | B9: 0.02 | D9: ='Capital Structure'!G3 -> Tax Rate | E9: =37.5% -> 0.375 | O9: DCF, NPV & IRR
A10: Growth Rates Over past ten 8 years | B10: 0.03 | C10: 0.06 | D10: 0.09 | E10: 0.12 | F10: 0.05 | G10: 0.02 | H10: 0.06 | I10: 0.1 | O10: Break Even
A11: Standard Deviation | B11: =STDEVP(B10:I10) -> 0.03237958462 | O11: Sensitivity & MC
A12: Periods | B12: 0 | C12: 1 | D12: 2 | E12: 3 | F12: 4 | G12: 5 | H12: 6 | I12: 7 | J12: 8 | K12: 9 | L12: 10 | M12: Avg | O12: Ratios
A13: Standard Deviation for Growth Rates | B13: =0 -> 0 | O13: PVSOB
A14: Randomized Growth Rates | B14: =$B$3+NORMSINV(RAND())*$B$13 -> 0.1 | C14: 0.1 | D14: 0.1 | E14: 0.1 | F14: 0.1 | G14: 0.1 | H14: 0.1 | I14: 0.1 | J14: 0.1 | K14: 0.1 | L14: 0.1 | M14: =0 -> 0 | O14: Scenario Cases
A15: Growth Rates (net of competition) | B15: =B14*(1-B14)^B12 -> 0.1 | C15: 0.09 | D15: 0.081 | E15: 0.0729 | F15: 0.06561 | G15: 0.059049 | H15: 0.0531441 | I15: 0.04782969 | J15: 0.043046721 | K15: 0.0387420489 | L15: 0.03486784401
A17: Discounted Cash Flows | B17: 0 | C17: 1 | D17: 2 | E17: 3 | F17: 4 | G17: 5 | H17: 6 | I17: 7 | J17: 8 | K17: 9 | L17: 10
A18: Financial | B18: =-'HR Expenses and Consumables'!B48 -> -181725 | C18: ='DCF, NPV & IRR'!B16 -> 8177.224219 | D18: ='DCF, NPV & IRR'!C16 -> 247479.2594 | E18: ='DCF, NPV & IRR'!D16 -> 216774.2557 | F18: ='DCF, NPV & IRR'!E16 -> 187931.6509 | G18: ='DCF, NPV & IRR'!F16 -> 192498.6551 | H18: ='DCF, NPV & IRR'!G16 -> 277880.8055 | I18: ='DCF, NPV & IRR'!H16 -> 234591.0412 | J18: ='DCF, NPV & IRR'!I16 -> 196291.5417 | K18: ='DCF, NPV & IRR'!J16 -> 162775.7161 | L18: ='DCF, NPV & IRR'!K16 -> 133736.538
A19: Net Present Value Financial | B19: =SUM(B18:L18) -> 1676411.688
A22: Sensitivity Analysis
A23: For this section we will use the accounting cash flows | B23: Average NPV | C23: =AVERAGE(C24,C85,C120,C152) -> 1579375.999
A24: Part 1 : Market Factors | B24: Average Part 1 | C24: =AVERAGE(G32,H43,G53,H63,H73,H83) -> 1656016.074
A26: a) Growth rate and competition sensitivity | C26: Market Growth Rate (z)
B27: =B19 -> 1676411.688 | C27: -0.05 | D27: 0 | E27: 0.05 | F27: 0.1 | G27: 0.15
A28: Decrease in growth rate (x) | B28: 0 | C28: 1185488.695 | D28: 1417735.664 | E28: 1578119.386 | F28: 1676411.688 | G28: 1729274.187
B29: 0.05 | C29: 1185488.695 | D29: 1417735.664 | E29: 1578119.386 | F29: 1676411.688 | G29: 1729274.187
B30: 0.1 | C30: 1185488.695 | D30: 1417735.664 | E30: 1578119.386 | F30: 1676411.688 | G30: 1729274.187
B31: 0.15 | C31: 1185488.695 | D31: 1417735.664 | E31: 1578119.386 | F31: 1676411.688 | G31: 1729274.187
F32: Average NPV | G32: =AVERAGE(C28:G31) -> 1517405.924
A36: b) Price and Competition Sensitivity | C36: Price Increase Due to Inflation (z)
B37: =B27 -> 1676411.688 | C37: 0 | D37: 0.01 | E37: 0.02 | F37: 0.03 | G37: 0.04 | H37: 0.05
A38: Price Decrease Due to Competition (x) | B38: 0 | C38: 3018511.059 | D38: 3214125.152 | E38: 3420473.91 | F38: 3638120.031 | G38: 3867652.87 | H38: 4109689.536
B39: 0.05 | C39: 2130517.401 | D39: 2277224.999 | E39: 2432073.472 | F39: 2595500.535 | G39: 2767965.343 | H39: 2949949.398
B40: 0.1 | C40: 1452179.832 | D40: 1561245.95 | E40: 1676411.688 | F40: 1798013.36 | G40: 1926404.326 | H40: 2061955.741
B41: 0.15 | C41: 934691.2875 | D41: 1014944.471 | E41: 1099702.333 | F41: 1189219.543 | G41: 1283764.144 | H41: 1383618.172
B42: 0.2 | C42: 539960.3499 | D42: 598270.0099 | E42: 659847.0945 | F42: 724881.0612 | G42: 793571.6988 | H42: 866129.6272
G43: Average NPV | H43: =AVERAGE(C38:H42) -> 1932887.146
A46: c) Competition Sensitivity | B46: Decrease in Growth Rate due to Competition (z)
B47: =B37 -> 1676411.688 | C47: 0 | D47: 0.05 | E47: 0.1 | F47: 0.15 | G47: 0.2
A48: Decrease in Price due to Competition (x) | B48: 0 | C48: 3420473.91 | D48: 3420473.91 | E48: 3420473.91 | F48: 3420473.91 | G48: 3420473.91
B49: 0.05 | C49: 2432073.472 | D49: 2432073.472 | E49: 2432073.472 | F49: 2432073.472 | G49: 2432073.472
B50: 0.1 | C50: 1676411.688 | D50: 1676411.688 | E50: 1676411.688 | F50: 1676411.688 | G50: 1676411.688
B51: 0.15 | C51: 1099702.333 | D51: 1099702.333 | E51: 1099702.333 | F51: 1099702.333 | G51: 1099702.333
B52: 0.2 | C52: 659847.0945 | D52: 659847.0945 | E52: 659847.0945 | F52: 659847.0945 | G52: 659847.0945
F53: Average NPV | G53: =AVERAGE(C48:G52) -> 1857701.699
A55: d) Growth Rate and Inflation Sensitivity | C55: Price Increase due to Inflation (z)
B56: =B47 -> 1676411.688 | C56: 0 | D56: 0.01 | E56: 0.02 | F56: 0.03 | G56: 0.04 | H56: 0.05
A57: Market Growth Rate (x) | B57: -0.1 | C57: 760635.2775 | D57: 825160.1571 | E57: 892794.5392 | F57: 963684.7018 | G57: 1037983.316 | H57: 1115849.697
B58: -0.05 | C58: 1017049.29 | D58: 1099113.052 | E58: 1185488.695 | F58: 1276398.812 | G58: 1372076.637 | H58: 1472766.489
B59: 0 | C59: 1221066.258 | D59: 1316776.456 | E59: 1417735.664 | F59: 1524226.781 | G59: 1636546.755 | H59: 1755007.194
B60: 0.05 | C60: 1363334.61 | D60: 1467812.796 | E60: 1578119.386 | F60: 1694574.189 | G60: 1817513.142 | H60: 1947289.024
B61: 0.1 | C61: 1452179.832 | D61: 1561245.95 | E61: 1676411.688 | F61: 1798013.36 | G61: 1926404.326 | H61: 2061955.741
B62: 0.15 | C62: 1501664.918 | D62: 1612389.661 | E62: 1729274.187 | F62: 1852657.477 | G62: 1982895.681 | H62: 2120362.878
G63: Average NPV | H63: =AVERAGE(C57:H62) -> 1473179.406
A65: e) Growth Rate and Wage Rate Sensitivity | B65: Increase in Wage Rate (z)
B66: =B56 -> 1676411.688 | C66: 0 | D66: 0.01 | E66: 0.02 | F66: 0.03 | G66: 0.04 | H66: 0.05
A67: Market Growth Rate (x) | B67: -0.1 | C67: 900046.6316 | D67: 896509.9605 | E67: 892794.5392 | F67: 888891.3232 | G67: 884790.8469 | H67: 880483.2065
B68: -0.05 | C68: 1192740.787 | D68: 1189204.116 | E68: 1185488.695 | F68: 1181585.479 | G68: 1177485.002 | H68: 1173177.362
B69: 0 | C69: 1424987.756 | D69: 1421451.085 | E69: 1417735.664 | F69: 1413832.448 | G69: 1409731.971 | H69: 1405424.331
B70: 0.05 | C70: 1585371.479 | D70: 1581834.808 | E70: 1578119.386 | F70: 1574216.17 | G70: 1570115.694 | H70: 1565808.054
B71: 0.1 | C71: 1683663.78 | D71: 1680127.109 | E71: 1676411.688 | F71: 1672508.472 | G71: 1668407.996 | H71: 1664100.355
B72: 0.15 | C72: 1736526.279 | D72: 1732989.608 | E72: 1729274.187 | F72: 1725370.971 | G72: 1721270.494 | H72: 1716962.854
G73: Average NPV | H73: =AVERAGE(C67:H72) -> 1411095.572
A75: f) Inflation and Wage Rate Sensitivity | B75: Price Increase Due to Inflation (z)
B76: =B66 -> 1676411.688 | C76: 0 | D76: 0.01 | E76: 0.02 | F76: 0.03 | G76: 0.04 | H76: 0.05
A77: Increase in Wage Rate (x) | B77: 0 | C77: 1459431.924 | D77: 1568498.042 | E77: 1683663.78 | F77: 1805265.453 | G77: 1933656.418 | H77: 2069207.833
B78: 0.01 | C78: 1455895.253 | D78: 1564961.371 | E78: 1680127.109 | F78: 1801728.782 | G78: 1930119.747 | H78: 2065671.162
B79: 0.02 | C79: 1452179.832 | D79: 1561245.95 | E79: 1676411.688 | F79: 1798013.36 | G79: 1926404.326 | H79: 2061955.741
B80: 0.03 | C80: 1448276.616 | D80: 1557342.734 | E80: 1672508.472 | F80: 1794110.144 | G80: 1922501.11 | H80: 2058052.525
B81: 0.04 | C81: 1444176.14 | D81: 1553242.257 | E81: 1668407.996 | F81: 1790009.668 | G81: 1918400.633 | H81: 2053952.049
B82: 0.05 | C82: 1439868.499 | D82: 1548934.617 | E82: 1664100.355 | F82: 1785702.028 | G82: 1914092.993 | H82: 2049644.408
G83: Average NPV | H83: =AVERAGE(C77:H82) -> 1743826.695
A85: Part 2: Capital Structure of the firm | B85: Average Part 2 | C85: =AVERAGE(M99,G107,I118) -> 1791480.7
A86: a) Debt to Equity Ratio Sensitivity | C86: Debt (z)
B87: =B76 -> 1676411.688 | C87: =100%-B88 -> 1 | D87: =100%-B89 -> 0.9 | E87: =100%-B90 -> 0.8 | F87: =100%-B91 -> 0.7 | G87: =100%-B92 -> 0.6 | H87: =100%-B93 -> 0.5 | I87: =100%-B94 -> 0.4 | J87: =100%-B95 -> 0.3 | K87: =100%-B96 -> 0.2 | L87: =100%-B97 -> 0.1 | M87: =100%-B98 -> 0
A88: Equity (x) | B88: 0 | C88: 2014327.758 | D88: 2112947.208 | E88: 2217723.147 | F88: 2329121.753 | G88: 2447650.084 | H88: 2573860.112 | I88: 2708353.21 | J88: 2851785.14 | K88: 3004871.585 | L88: 3168394.318 | M88: 3343208.065
B89: 0.1 | C89: 1834904.771 | D89: 1922610.8 | E89: 2015660.85 | F89: 2114450.931 | G89: 2219411.084 | H89: 2331008.687 | I89: 2449752.112 | J89: 2576194.776 | K89: 2710939.646 | L89: 2854644.236 | M89: 3008026.162
B90: 0.2 | C90: 1674862.685 | D90: 1753073.76 | E90: 1835937.077 | F90: 1923790.077 | G90: 2016998.627 | H90: 2115959.734 | I90: 2221104.533 | J90: 2332901.602 | K90: 2451860.631 | L90: 2578536.49 | M90: 2713533.741
B91: 0.3 | C91: 1531720.75 | D91: 1601647.395 | E91: 1675635.481 | F91: 1753973.403 | G91: 1836973.381 | H91: 1924973.687 | I91: 2018341.101 | J91: 2117473.63 | K91: 2222803.506 | L91: 2334800.512 | M91: 2453975.659
B92: 0.4 | C92: 1403357.127 | D92: 1466035.475 | E92: 1532269.214 | F92: 1602305.542 | G92: 1676411.688 | H92: 1754876.743 | I92: 1838013.691 | J92: 1926161.639 | K92: 2019688.283 | L92: 2118992.632 | M92: 2224508.018
B93: 0.5 | C93: 1287951.679 | D93: 1344271.157 | E93: 1403711.327 | F93: 1466484.68 | G93: 1532820.591 | H93: 1602966.847 | I93: 1677191.316 | J93: 1755783.789 | K93: 1839058.017 | L93: 1927353.945 | M93: 2021040.185
B94: 0.6 | C94: 1183938.64 | D94: 1234664.889 | E94: 1288137.382 | F94: 1344539.278 | G94: 1404068.016 | H94: 1466936.581 | I94: 1533374.89 | J94: 1603631.317 | K94: 1677974.372 | L94: 1756694.551 | M94: 1840106.37
B95: 0.7 | C95: 1089967.352 | D95: 1135761.259 | E95: 1183977.984 | F95: 1234775.83 | G95: 1288325.21 | H95: 1344809.702 | I95: 1404427.2 | J95: 1467391.186 | K95: 1533932.118 | L95: 1604298.959 | M95: 1678760.866
B96: 0.8 | C96: 1004869.579 | D96: 1046303.129 | E96: 1089879.405 | F96: 1135735.583 | G96: 1184019.142 | H96: 1234888.737 | I96: 1288515.169 | J96: 1345082.434 | K96: 1404788.885 | L96: 1467848.5 | M96: 1534492.28
B97: 0.9 | C97: 927632.2201 | D97: 965201.7437 | E97: 1004670.801 | F97: 1046158.568 | G97: 1089793.003 | H97: 1135711.584 | I97: 1184062.117 | J97: 1235003.614 | K97: 1288707.263 | L97: 1345357.48 | M97: 1405153.077
B98: 1 | C98: 857374.4702 | D98: 891511.7371 | E98: 927336.857 | F98: 964953.6229 | G98: 1004473.338 | H98: 1046015.434 | I98: 1089708.149 | J98: 1135689.264 | K98: 1184106.914 | L98: 1235120.467 | M98: 1288901.497
L99: Average NPV | M99: =AVERAGE(C88,M98,L97,K96,J95,I94,H93,G92,F91,E90,D89) -> 1622367.41
A100: b) Rate of debt and rate of equity sensitivity | B100: Rate of Debt
B101: =B87 -> 1676411.688 | C101: 0 | D101: 0.05 | E101: 0.1 | F101: 0.15 | G101: 0.2
A102: Rate on Equity | B102: 0 | C102: 3343208.065 | D102: 2956694.17 | E102: 2624573.419 | F102: 2337979.442 | G102: 2089658.634
B103: 0.05 | C103: 2930830.488 | D103: 2602039.482 | E103: 2318244.103 | F103: 2072286.084 | G103: 1858280.787
B104: 0.1 | C104: 2579709.996 | D104: 2298681.337 | E104: 2055059.877 | F104: 1843036.489 | G104: 1657813.261
B105: 0.15 | C105: 2279289.23 | D105: 2037978.432 | E105: 1827915.54 | F105: 1644362.77 | G105: 1483389.371
B106: 0.2 | C106: 2021040.185 | D106: 1812916.645 | E106: 1631016.767 | F106: 1471457.92 | G106: 1331004.783
F107: Average NPV | G107: =AVERAGE(C102:G106) -> 2124338.691
A109: c) Rate of Debt and Tax Rate sensitivity | C109: Rate of Debt
B110: =B101 -> 1676411.688 | C110: 0 | D110: 0.05 | E110: 0.1 | F110: 0.15 | G110: 0.2 | H110: 0.25 | I110: 0.3
A111: Tax Rate | B111: 0 | C111: 2318874.795 | D111: 1953374.966 | E111: 1658410.946 | F111: 1418074.964 | G111: 1220461.52 | H111: 1056570.964 | I111: 919535.2675
B112: 0.1 | C112: 2293710.321 | D112: 1962404.253 | E112: 1689616.64 | F112: 1463256.742 | G112: 1274026.126 | H112: 1114715.075 | I112: 979689.5274
B113: 0.2 | C113: 2268545.847 | D113: 1972020.3 | E113: 1722858.842 | F113: 1512204.32 | G113: 1333054.644 | H113: 1179837.998 | I113: 1048092.794
B114: 0.3 | C114: 2243381.374 | D114: 1982241.077 | E114: 1758252.142 | F114: 1565223.029 | G114: 1398120.236 | H114: 1252830.978 | I114: 1125978.346
B115: 0.4 | C115: 2218216.9 | D115: 1993085.129 | E115: 1795918.205 | F115: 1622645.934 | G115: 1469864.311 | H115: 1334715.779 | I115: 1214792.765
B116: 0.5 | C116: 2193052.426 | D116: 2004571.591 | E116: 1835986.254 | F116: 1684836.656 | G116: 1549005.697 | H116: 1426666.398 | I116: 1316238.093
B117: 0.6 | C117: 2167887.953 | D117: 2016720.211 | E117: 1878593.599 | F117: 1752192.523 | G117: 1636351.198 | H117: 1530034.834 | I117: 1432323.378
H118: Average NPV | I118: =AVERAGE(C111:I117) -> 1627735.997
A120: Part 3: Cross Factor Sensitivities | B120: Average Part 3 | C120: =AVERAGE(I129,I139,I150) -> 1477208.481
A121: a) Market Growth Rate and WACC | C121: WACC (z)
B122: =B110 -> 1676411.688 | C122: 0 | D122: 0.05 | E122: 0.1 | F122: 0.15 | G122: 0.2 | H122: 0.25 | I122: 0.3
A123: Market Growth Rate (x) | B123: -0.1 | C123: 1685569.761 | D123: 1259930.944 | E123: 956004.2866 | F123: 733846.7945 | G123: 567987.6442 | H123: 441762.8239 | I123: 344012.7353
B124: -0.05 | C124: 2325018.885 | D124: 1704042.399 | E124: 1273473.404 | F124: 966919.3064 | G124: 743363.4709 | H124: 576748.1491 | I124: 450090.7386
B125: 0 | C125: 2827982.844 | D125: 2054450.195 | E125: 1525052.779 | F125: 1152630.971 | G125: 883999.785 | H125: 685768.7338 | I125: 536420.5276
B126: 0.05 | C126: 3161325.358 | D126: 2290793.428 | E126: 1697938.533 | F126: 1282750.722 | G126: 984490.7727 | H126: 765198.3048 | I126: 600517.1419
B127: 0.1 | C127: 3348523.522 | D127: 2428799.526 | E127: 1802870.756 | F127: 1364737.421 | G127: 1050093.41 | H127: 818789.7588 | I127: 645089.5034
B128: 0.15 | C128: 3431675.29 | D128: 2495999.058 | E128: 1858253.422 | F128: 1411138.849 | G128: 1089515.506 | H128: 852682.9395 | I128: 674529.074
H129: Average NPV | I129: =AVERAGE(C123:I128) -> 1375018.797
A131: b) Inflation and WACC | C131: WACC (z)
B132: =B122 -> 1676411.688 | C132: 0 | D132: 0.05 | E132: 0.1 | F132: 0.15 | G132: 0.2 | H132: 0.25 | I132: 0.3
A133: Price rise due to Inflation (x) | B133: 0 | C133: 2868343.362 | D133: 2091781.12 | E133: 1560040.934 | F133: 1185554.066 | G133: 914980.6427 | H133: 714882.095 | I133: 563734.713
B134: 0.01 | C134: 3101267.694 | D134: 2255459.379 | E134: 1678117.116 | F134: 1272785.542 | G134: 980833.7513 | H134: 765583.276 | I134: 603474.7502
B135: 0.02 | C135: 3348523.522 | D135: 2428799.526 | E135: 1802870.756 | F135: 1364737.421 | G135: 1050093.41 | H135: 818789.7588 | I135: 645089.5034
B136: 0.03 | C136: 3610953.466 | D136: 2612353.967 | E136: 1934672.786 | F136: 1461664.289 | G136: 1122937.891 | H136: 874628.6955 | I136: 688671.2141
B137: 0.04 | C137: 3889444.891 | D137: 2806703.848 | E137: 2073913.041 | F137: 1563833.432 | G137: 1199554.163 | H137: 933233.3034 | I137: 734316.4243
B138: 0.05 | C138: 4184931.95 | D138: 3012460.358 | E138: 2221001.097 | F138: 1671525.387 | G138: 1280138.268 | H138: 994743.1225 | I138: 782126.1562
H139: Average NPV | I139: =AVERAGE(C133:I138) -> 1706417.859
A141: c) Competition and WACC | C141: WACC (z)
B142: =B132 -> 1676411.688 | C142: 0 | D142: 0.05 | E142: 0.1 | F142: 0.15 | G142: 0.2 | H142: 0.25 | I142: 0.3
A143: Decrease in Price due to Competition (x) | B143: 0 | C143: 7215092.64 | D143: 5101105.049 | E143: 3698967.686 | F143: 2742717.859 | G143: 2073694.366 | H143: 1594516.242 | I143: 1243830.191
B144: 0.05 | C144: 5002290.508 | D144: 3578341.456 | E144: 2623207.405 | F144: 1964324.259 | G144: 1497997.684 | H144: 1160109.985 | I144: 909959.028
B145: 0.1 | C145: 3348523.522 | D145: 2428799.526 | E145: 1802870.756 | F145: 1364737.421 | G145: 1050093.41 | H145: 818789.7588 | I145: 645089.5034
B146: 0.15 | C146: 2117859.587 | D146: 1563705.691 | E146: 1178576.477 | F146: 903358.3905 | G146: 701662.066 | H146: 550434.1807 | I146: 434680.1809
B147: 0.2 | C147: 1205092.376 | D147: 914012.3219 | E147: 703906.6093 | F147: 548290.7964 | G147: 430341.5854 | H147: 339073.8956 | I147: 267131.6781
B148: 0.25 | C148: 529498.0809 | D148: 426442.4842 | E148: 342842.5437 | F148: 274643.6285 | G148: 218582.1031 | H148: 172105.1173 | I148: 133237.7405
B149: 0.3 | C149: 29682.99692 | D149: 60218.62754 | E149: 67639.75888 | F149: 63121.30412 | G149: 52692.47791 | H149: 39633.38034 | I149: 25726.1779
H150: Average NPV | I150: =AVERAGE(C143:I149) -> 1350188.786
A152: Part 4: Mortality Sensitivities | B152: Average Part 4 | C152: =G160 -> 1392798.744
A153: a) Mortality to mortality growth rate | B153: Mortality Rate (z)
A154: Mortality Growth Rate (x) | B154: =B142 -> 1676411.688 | C154: 0.1 | D154: 0.2 | E154: 0.3 | F154: 0.4 | G154: 0.5
B155: 0.02 | C155: 2576021.176 | D155: 2126216.432 | E155: 1676411.688 | F155: 1226606.944 | G155: 776802.1994
B156: 0.04 | C156: 2533455.13 | D156: 2041084.34 | E156: 1548713.549 | F156: 1056342.759 | G156: 563971.9683
B157: 0.06 | C157: 2486416.976 | D157: 1947008.032 | E157: 1407599.088 | F157: 868190.144 | G157: 328781.1999
B158: 0.08 | C158: 2434453.687 | D158: 1843081.453 | E158: 1251709.219 | F158: 660336.9848 | G158: 68964.75085
B159: 0.1 | C159: 2377070.672 | D159: 1728315.423 | E159: 1079560.175 | F159: 430804.9262 | G159: -217950.3224
F160: Average NPV | G160: =AVERAGE(C155:G159) -> 1392798.744
A164: Monte Carlo Simulation
A166: Variables
A167: =A2 -> Growth, Competition and Inflation rates | D167: =D2 -> Capital Structures
A168: Market Growth Rate (Net) | B168: =B3 -> 0.1 | D168: Debt | E168: =E3 -> 0.6
A169: Decrease in Growth Rate Due to Competition | B169: 0.1 | D169: Equity | E169: 0.4
A170: Price Increase Due to Inflation | B170: 0.02 | D170: Total | E170: 1
A171: Price Decrease Due to Competition | B171: 0.1 | D171: Rate on Debt | E171: 0.13
A172: Increase in labor rate | B172: 0.02 | D172: Rate on Equity | E172: 0.16
A173: Mortality Rate | B173: 0.3 | D173: WACC | E173: 0.11275
A174: Increase in Mortality Rate | B174: 0.02 | D174: Tax Rate | E174: 0.375
A175: Growth Rates Over past ten 8 years | B175: 0.03 | C175: =C10 -> 0.06 | D175: 0.09 | E175: 0.12 | F175: =F10 -> 0.05 | G175: =G10 -> 0.02 | H175: =H10 -> 0.06 | I175: =I10 -> 0.1
A176: Standard Deviation | B176: 0.03237958462
A177: Randomization Phase
A178: =A12 -> Periods | B178: 0 | C178: 1 | D178: 2 | E178: 3 | F178: 4 | G178: 5 | H178: 6 | I178: 7 | J178: 8 | K178: 9 | L178: 10 | M178: Avg
A179: =A13 -> Standard Deviation for Growth Rates | B179: 0 | M179: =M14 -> 0
A180: Randomized Growth Rates | B180: 0.1 | C180: =C14 -> 0.1 | D180: 0.1 | E180: 0.1 | F180: 0.1 | G180: 0.1 | H180: 0.1 | I180: 0.1 | J180: 0.1 | K180: 0.1 | L180: 0.1
A181: Growth Rates (net of competition) | B181: 0.1 | C181: =C15 -> 0.09 | D181: 0.081 | E181: 0.0729 | F181: 0.06561 | G181: 0.059049 | H181: 0.0531441 | I181: 0.04782969 | J181: 0.043046721 | K181: 0.0387420489 | L181: 0.03486784401
A183: =A17 -> Discounted Cash Flows | B183: 0 | C183: 1 | D183: 2 | E183: 3 | F183: 4 | G183: 5 | H183: 6 | I183: 7 | J183: 8 | K183: 9 | L183: 10
A184: =A18 -> Financial | B184: -181725 | C184: 8177.224219 | D184: 247479.2594 | E184: 216774.2557 | F184: 187931.6509 | G184: 192498.6551 | H184: 277880.8055 | I184: 234591.0412 | J184: 196291.5417 | K184: 162775.7161 | L184: 133736.538
A185: =A19 -> Net Present Value Financial | B185: =B19 -> 1676411.688
A188: Iteration of NPV
B189: =B185 -> 1676411.688 | E189: =B199 -> 1676411.688 | F189: Standard Deviation | G189: =STDEVP(E189:E288) -> 2.793967724e-09 | I189: Frequency Plot
A190: 1 | B190: 1676411.688 | D190: 1 | E190: 1676411.688 | I190: Sigma | J190: NPV | K190: Frequency | L190: Percentage
A191: 2 | B191: 1676411.688 | D191: 2 | E191: 1676411.688 | I191: -2 | J191: =J192+I191*$G$189 -> 1676411.688 | K191: =FREQUENCY(E189:E288,J191:J211) -> 0 | L191: =K191/$K$212 -> 0
A192: 3 | B192: 1676411.688 | D192: 3 | E192: 1676411.688 | I192: -1.8 | J192: 1676411.688 | K192: 0 | L192: =K192/$K$212 -> 0
A193: 4 | B193: 1676411.688 | D193: 4 | E193: 1676411.688 | I193: -1.6 | J193: 1676411.688 | K193: 0 | L193: 0
A194: 5 | B194: 1676411.688 | D194: 5 | E194: 1676411.688 | I194: -1.4 | J194: 1676411.688 | K194: 0 | L194: 0
A195: 6 | B195: 1676411.688 | D195: 6 | E195: 1676411.688 | I195: -1.2 | J195: 1676411.688 | K195: 0 | L195: 0
A196: 7 | B196: 1676411.688 | D196: 7 | E196: 1676411.688 | I196: -1 | J196: 1676411.688 | K196: 0 | L196: 0
A197: 8 | B197: 1676411.688 | D197: 8 | E197: 1676411.688 | I197: -0.8 | J197: 1676411.688 | K197: 0 | L197: 0
A198: 9 | B198: 1676411.688 | D198: 9 | E198: 1676411.688 | I198: -0.6 | J198: 1676411.688 | K198: 0 | L198: 0
A199: Average NPV | B199: =AVERAGE(B189:B198) -> 1676411.688 | D199: 10 | E199: 1676411.688 | I199: -0.4 | J199: 1676411.688 | K199: 0 | L199: 0
D200: 11 | E200: 1676411.688 | I200: -0.2 | J200: =J201+I200*$G$189 -> 1676411.688 | K200: 0 | L200: 0
D201: 12 | E201: 1676411.688 | I201: 0 | J201: =E289 -> 1676411.688 | K201: 0 | L201: 0
D202: 13 | E202: 1676411.688 | I202: 0.2 | J202: =J201+I202*$G$189 -> 1676411.688 | K202: 0 | L202: 0
D203: 14 | E203: 1676411.688 | I203: 0.4 | J203: =J202+I203*$G$189 -> 1676411.688 | K203: 0 | L203: 0
D204: 15 | E204: 1676411.688 | I204: 0.6 | J204: 1676411.688 | K204: 100 | L204: 1
D205: 16 | E205: 1676411.688 | I205: 0.8 | J205: 1676411.688 | K205: 0 | L205: 0
D206: 17 | E206: 1676411.688 | I206: 1 | J206: 1676411.688 | K206: 0 | L206: 0
D207: 18 | E207: 1676411.688 | I207: 1.2 | J207: 1676411.688 | K207: 0 | L207: 0
D208: 19 | E208: 1676411.688 | I208: 1.4 | J208: 1676411.688 | K208: 0 | L208: 0
D209: 20 | E209: 1676411.688 | I209: 1.6 | J209: 1676411.688 | K209: 0 | L209: 0
D210: 21 | E210: 1676411.688 | I210: 1.8 | J210: 1676411.688 | K210: 0 | L210: 0
D211: 22 | E211: 1676411.688 | I211: 2 | J211: 1676411.688 | K211: 0 | L211: 0
D212: 23 | E212: 1676411.688 | J212: Total | K212: =SUM(K191:K211) -> 100
D213: 24 | E213: 1676411.688
D214: 25 | E214: 1676411.688
D215: 26 | E215: 1676411.688
D216: 27 | E216: 1676411.688
D217: 28 | E217: 1676411.688
D218: 29 | E218: 1676411.688
D219: 30 | E219: 1676411.688
D220: 31 | E220: 1676411.688
D221: 32 | E221: 1676411.688
D222: 33 | E222: 1676411.688
D223: 34 | E223: 1676411.688
D224: 35 | E224: 1676411.688
D225: 36 | E225: 1676411.688
... 64 more rows

Sheet PVSOB
A1: Page Navigation | B1: Scenario 1 | C1: Scenario 2 | D1: PVSOB | E1: Nav. Bar | O1: Gen Info
O2: Expenses
A3: Opportunity Cost Analysis | O3: Depreciations
O4: Income St
O5: Balance Sht
O6: Capital Structure
O7: Cash Flows M
O8: Cash Flows Y
O9: DCF, NPV & IRR
O10: Break Even
O11: Sensitivity & MC
O12: Ratios
O13: PVSOB
O14: Scenario Cases
A18: Scenario 1
A19: Doing Strawberry Farming
A21: NPV of Ten Years of Business | B21: ='Sensitivities & Monte Carlo'!B19 -> 1676411.688
A22: Initial Salary (Monthly) | B22: 30000
A23: Yearly Salary | B23: =12*B22 -> 360000
A24: Salary Growth Rate | B24: 0.02
A25: Personal Discount Rate | B25: =10% -> 0.1
A27: Years | B27: 1 | C27: 2 | D27: 3 | E27: 4 | F27: 5 | G27: 6 | H27: 7 | I27: 8 | J27: 9 | K27: 10
A28: Salary Flow to Owner | B28: =B23 -> 360000 | C28: =B28*(1+B24) -> 367200 | D28: =C28*(1+C24) -> 367200 | E28: 367200 | F28: 367200 | G28: 367200 | H28: 367200 | I28: 367200 | J28: 367200 | K28: 367200
A29: Discounted Salary Flows | B29: =B28/(1+$B$25)^B27 -> 327272.7273 | C29: =C28/(1+$B$25)^C27 -> 303471.0744 | D29: 275882.7949 | E29: 250802.5408 | F29: 228002.3098 | G29: 207274.8271 | H29: 188431.661 | I29: 171301.51 | J29: 155728.6455 | K29: 141571.4959
A30: NPV of Salary Flow | B30: =SUM(B29:K29) -> 2249739.587
A32: Years | B32: 1 | C32: 2 | D32: 3 | E32: 4 | F32: 5 | G32: 6 | H32: 7 | I32: 8 | J32: 9 | K32: 10
A33: Cash Flow to Owner | B33: =-'Cash Flow Yearly'!B28 -> 132487.2422 | C33: =-'Cash Flow Yearly'!C28 -> 240454.8585 | D33: =-'Cash Flow Yearly'!D28 -> 234638.0085 | E33: =-'Cash Flow Yearly'!E28 -> 226729.3388 | F33: =-'Cash Flow Yearly'!F28 -> 338714.2891 | G33: =-'Cash Flow Yearly'!G28 -> 395644.771 | H33: =-'Cash Flow Yearly'!H28 -> 371668.63 | I33: =-'Cash Flow Yearly'!I28 -> 346053.8402 | J33: =-'Cash Flow Yearly'!J28 -> 319322.3411 | K33: =-'Cash Flow Yearly'!K28 -> 291935.8094
A34: Discounted Cash Flows | B34: =B33/(1+$B$25)^B32 -> 120442.9474 | C34: =C33/(1+$B$25)^C32 -> 198723.0236 | D34: 176287.0086 | E34: 154859.1891 | F34: 210314.9245 | G34: 223331.1588 | H34: 190724.7748 | I34: 161436.6704 | J34: 135423.8444 | K34: 112553.8923
A35: NPV of Cash Flows | B35: =SUM(B34:K34) -> 1684097.434
A37: NPV of Doing Business and Job | B37: =B21+B30 -> 3926151.275
A38: Total NPV of Cash from Business and Job | B38: =B21+B35 -> 3360509.122
A41: Scenario 2
A42: Only having a job
A44: Equity Saved | B44: ='Balance Sheet'!B29 -> 72690
A45: Interest Rate of Banks | B45: 0.15
A46: Personal Discount Rate | B46: 0.1
A47: Initial Salary (monthly) | B47: 50000
A48: Yearly Salary | B48: =12*B47 -> 600000
A49: Salary Growth Rate | B49: 0.05
A51: Years | B51: 1 | C51: 2 | D51: 3 | E51: 4 | F51: 5 | G51: 6 | H51: 7 | I51: 8 | J51: 9 | K51: 10
A52: Salary Flow to Owners | B52: =B48 -> 600000 | C52: =B52*(1+$B$49) -> 630000 | D52: =C52*(1+$B$49) -> 661500 | E52: 694575 | F52: 729303.75 | G52: 765768.9375 | H52: 804057.3844 | I52: 844260.2536 | J52: 886473.2663 | K52: 930796.9296
A53: Discounted Salary Flows | B53: =B52/(1+$B$46)^B51 -> 545454.5455 | C53: =C52/(1+$B$46)^C51 -> 520661.157 | D53: 496994.7408 | E53: 474404.0708 | F53: 452840.2494 | G53: 432256.6017 | H53: 412608.5743 | I53: 393853.6391 | J53: 375951.201 | K53: 358862.51
A54: NPV of Salary Flows | B54: =SUM(B53:K53) -> 4463887.289
A56: Years | B56: 1 | C56: 2 | D56: 3 | E56: 4 | F56: 5 | G56: 6 | H56: 7 | I56: 8 | J56: 9 | K56: 10
A57: Interest Inflows | B57: =B44*B45 -> 10903.5 | C57: =B57 -> 10903.5 | D57: =C57 -> 10903.5 | E57: 10903.5 | F57: 10903.5 | G57: 10903.5 | H57: 10903.5 | I57: 10903.5 | J57: 10903.5 | K57: 10903.5
A58: Doscounted Interest Inflows | B58: =B57/(1+$B$46)^B56 -> 9912.272727 | C58: =C57/(1+$B$46)^C56 -> 9011.157025 | D58: 8191.960932 | E58: 7447.237211 | F58: 6770.215646 | G58: 6154.741496 | H58: 5595.219542 | I58: 5086.56322 | J58: 4624.148382 | K58: 4203.771256
A59: NPV of Interest Inflows | B59: =SUM(B58:K58) -> 66997.28744
A61: Total NPV for Scenario 2 | B61: =B54+B59 -> 4530884.577
A63: NPV Difference | B63: =B38-B61 -> -1170375.455
A72: PV of Satisfaction of Owning Business | B72: =-B63 -> 1170375.455

Sheet Scenario Cases
A1: Page Navigation | B1: Sensitivity NPVs | C1: Sensitivity Plot | G1: Gen Info
A2: Scenarios | G2: Expenses
G3: Depreciations
A4: From Sensitivities | G4: Income St
G5: Balance Sht
A6: Sensitivity | B6: Best Case (NPV) | C6: Average Case (NPV) | D6: Worst Case (NPV) | E6: Deviations of Case Outcomes | G6: Capital Structure
A7: Part 1 | G7: Cash Flows M
A8: a) Growth rate and competition sensitivity | B8: =MAX('Sensitivities & Monte Carlo'!C28:G31) -> 1729274.187 | C8: ='Sensitivities & Monte Carlo'!G32 -> 1517405.924 | D8: =MIN('Sensitivities & Monte Carlo'!C28:G31) -> 1185488.695 | E8: =STDEVP('Sensitivities & Monte Carlo'!C28:G31) -> 196957.0137 | G8: Cash Flows Y
A9: b) Price and Competition Sensitivity | B9: =MAX('Sensitivities & Monte Carlo'!C38:H42) -> 4109689.536 | C9: ='Sensitivities & Monte Carlo'!H43 -> 1932887.146 | D9: =MIN('Sensitivities & Monte Carlo'!C38:H42) -> 539960.3499 | E9: =STDEVP('Sensitivities & Monte Carlo'!C38:H42) -> 1041102.907 | G9: DCF, NPV & IRR
A10: c) Competition Sensitivity | B10: =MAX('Sensitivities & Monte Carlo'!C48:G52) -> 3420473.91 | C10: ='Sensitivities & Monte Carlo'!G53 -> 1857701.699 | D10: =MIN('Sensitivities & Monte Carlo'!C48:G52) -> 659847.0945 | E10: =STDEVP('Sensitivities & Monte Carlo'!C48:G52) -> 981269.0435 | G10: Break Even
A11: d) Growth Rate and Inflation Sensitivity | B11: =MAX('Sensitivities & Monte Carlo'!C57:H62) -> 2120362.878 | C11: ='Sensitivities & Monte Carlo'!H63 -> 1473179.406 | D11: =MIN('Sensitivities & Monte Carlo'!C57:H62) -> 760635.2775 | E11: =STDEVP('Sensitivities & Monte Carlo'!C57:H62) -> 355577.042 | G11: Sensitivity & MC
A12: e) Growth Rate and Wage Rate Sensitivity | B12: =MAX('Sensitivities & Monte Carlo'!C67:H72) -> 1736526.279 | C12: ='Sensitivities & Monte Carlo'!H73 -> 1411095.572 | D12: =MIN('Sensitivities & Monte Carlo'!C67:H72) -> 880483.2065 | E12: =STDEV('Sensitivities & Monte Carlo'!C67:H72) -> 298379.7603 | G12: Ratios
A13: f) Inflation and Wage Rate Sensitivity | B13: =MAX('Sensitivities & Monte Carlo'!C77:H82) -> 2069207.833 | C13: ='Sensitivities & Monte Carlo'!H83 -> 1743826.695 | D13: =MIN('Sensitivities & Monte Carlo'!C77:H82) -> 1439868.499 | E13: =STDEV('Sensitivities & Monte Carlo'!C77:H82) -> 211384.8272 | G13: PVSOB
A14: Part 2 | G14: Scenario Cases
A15: a) Debt to Equity Ratio Sensitivity | B15: =MAX('Sensitivities & Monte Carlo'!C88,'Sensitivities & Monte Carlo'!D89,'Sensitivities & Monte Carlo'!E90,'Sensitivities & Monte Carlo'!F91,'Sensitivities & Monte Carlo'!G92,'Sensitivities & Monte Carlo'!H93,'Sensitivities & Monte Carlo'!I94,'Sensitivities & Monte Carlo'!J95,'Sensitivities & Monte Carlo'!K96,'Sensitivities & Monte Carlo'!L97,'Sensitivities & Monte Carlo'!M98) -> 2014327.758 | C15: ='Sensitivities & Monte Carlo'!M99 -> 1622367.41 | D15: =MIN('Sensitivities & Monte Carlo'!C88,'Sensitivities & Monte Carlo'!D89,'Sensitivities & Monte Carlo'!E90,'Sensitivities & Monte Carlo'!F91,'Sensitivities & Monte Carlo'!G92,'Sensitivities & Monte Carlo'!H93,'Sensitivities & Monte Carlo'!I94,'Sensitivities & Monte Carlo'!J95,'Sensitivities & Monte Carlo'!K96,'Sensitivities & Monte Carlo'!L97,'Sensitivities & Monte Carlo'!M98) -> 1288901.497 | E15: =STDEVP('Sensitivities & Monte Carlo'!C88,'Sensitivities & Monte Carlo'!D89,'Sensitivities & Monte Carlo'!E90,'Sensitivities & Monte Carlo'!F91,'Sensitivities & Monte Carlo'!G92,'Sensitivities & Monte Carlo'!H93,'Sensitivities & Monte Carlo'!I94,'Sensitivities & Monte Carlo'!J95,'Sensitivities & Monte Carlo'!K96,'Sensitivities & Monte Carlo'!L97,'Sensitivities & Monte Carlo'!M98) -> 229073.2401
A16: b) Rate of debt and rate of equity sensitivity | B16: =MAX('Sensitivities & Monte Carlo'!C102:G106) -> 3343208.065 | C16: ='Sensitivities & Monte Carlo'!G107 -> 2124338.691 | D16: =MIN('Sensitivities & Monte Carlo'!C102:G106) -> 1331004.783 | E16: =STDEVP('Sensitivities & Monte Carlo'!C102:G106) -> 496861.1758
A17: c) Rate of Debt and Tax Rate sensitivity | B17: =MAX('Sensitivities & Monte Carlo'!C111:I117) -> 2318874.795 | C17: ='Sensitivities & Monte Carlo'!I118 -> 1627735.997 | D17: =MIN('Sensitivities & Monte Carlo'!C111:I117) -> 919535.2675 | E17: =STDEVP('Sensitivities & Monte Carlo'!C111:I117) -> 382674.4514
A18: Part 3
A19: a) Market Growth Rate and WACC | B19: =MAX('Sensitivities & Monte Carlo'!C123:I128) -> 3431675.29 | C19: ='Sensitivities & Monte Carlo'!I129 -> 1375018.797 | D19: =MIN('Sensitivities & Monte Carlo'!C123:I128) -> 344012.7353 | E19: =STDEVP('Sensitivities & Monte Carlo'!C123:I128) -> 822221.148
A20: b) Inflation and WACC | B20: =MAX('Sensitivities & Monte Carlo'!C133:I138) -> 4184931.95 | C20: ='Sensitivities & Monte Carlo'!I139 -> 1706417.859 | D20: =MIN('Sensitivities & Monte Carlo'!C133:I138) -> 563734.713 | E20: =STDEVP('Sensitivities & Monte Carlo'!C133:I138) -> 971948.8985
A21: c) Competition and WACC | B21: =MAX('Sensitivities & Monte Carlo'!C143:I149) -> 7215092.64 | C21: ='Sensitivities & Monte Carlo'!I150 -> 1350188.786 | D21: =MIN('Sensitivities & Monte Carlo'!C143:I149) -> 25726.1779 | E21: =STDEVP('Sensitivities & Monte Carlo'!C143:I149) -> 1498900.83
A22: Part 4
A23: a) Mortality to mortality growth rate | B23: =MAX('Sensitivities & Monte Carlo'!C155:G159) -> 2576021.176 | C23: ='Sensitivities & Monte Carlo'!G160 -> 1392798.744 | D23: =MIN('Sensitivities & Monte Carlo'!C155:G159) -> -217950.3224 | E23: =STDEVP('Sensitivities & Monte Carlo'!C155:G159) -> 804441.302
A25: Sensitivity NPVs | B25: Best | C25: Average | D25: Worst | E25: Deviation
A26: Average | B26: =AVERAGE(B8:B23) -> 3097666.638 | C26: =AVERAGE(C8:C23) -> 1625766.364 | D26: =AVERAGE(D8:D23) -> 747788.3056 | E26: =AVERAGE(E8:E23) -> 637753.203
A27: Optimistic | B27: =MAX(B8:B23) -> 7215092.64 | C27: =MAX(C8:C23) -> 2124338.691 | D27: =MAX(D8:D23) -> 1439868.499 | E27: =MAX(E8:E23) -> 1498900.83
A28: Pessimistic | B28: =MIN(B8:B23) -> 1729274.187 | C28: =MIN(C8:C23) -> 1350188.786 | D28: =MIN(D8:D23) -> -217950.3224 | E28: =MIN(E8:E23) -> 196957.0137
A31: Frequency Plot for Sensitivity NPVs Based on the Average Result
A33: Average NPV | B33: =C26 -> 1625766.364
A34: Standard Deviation | B34: =E26 -> 637753.203
A36: Sigma | B36: Values | C36: Frequency | D36: Percentage
A37: -3 | B37: =$B$33+A37*$B$34 -> -287493.2455 | C37: =FREQUENCY(A158:F226,B37:B73) -> 0 | D37: =C37/$C$74 -> 0
A38: -2.8 | B38: =$B$33+A38*$B$34 -> -159942.6049 | C38: 1 | D38: =C38/$C$74 -> 0.002415458937
A39: -2.6 | B39: =$B$33+A39*$B$34 -> -32391.96428 | C39: 0 | D39: 0
A40: -2.4 | B40: =$B$33+A40*$B$34 -> 95158.67632 | C40: 8 | D40: 0.0193236715
A41: -2.2 | B41: =$B$33+A41*$B$34 -> 222709.3169 | C41: 3 | D41: 0.007246376812
A42: -2 | B42: =$B$33+A42*$B$34 -> 350259.9575 | C42: 6 | D42: 0.01449275362
A43: -1.8 | B43: 477810.5981 | C43: 6 | D43: 0.01449275362
A44: -1.6 | B44: 605361.2388 | C44: 12 | D44: 0.02898550725
A45: -1.4 | B45: 732911.8794 | C45: 17 | D45: 0.04106280193
A46: -1.2 | B46: 860462.52 | C46: 14 | D46: 0.03381642512
A47: -1 | B47: 988013.1606 | C47: 23 | D47: 0.05555555556
A48: -0.8 | B48: 1115563.801 | C48: 20 | D48: 0.04830917874
A49: -0.6 | B49: 1243114.442 | C49: 26 | D49: 0.06280193237
A50: -0.4 | B50: 1370665.082 | C50: 20 | D50: 0.04830917874
A51: -0.2 | B51: =$B$33+A51*$B$34 -> 1498215.723 | C51: 35 | D51: 0.0845410628
A52: 0 | B52: =B33 -> 1625766.364 | C52: 33 | D52: 0.07971014493
A53: 0.2 | B53: =$B$52+A53*$B$34 -> 1753317.004 | C53: 52 | D53: 0.1256038647
A54: 0.4 | B54: 1880867.645 | C54: 24 | D54: 0.05797101449
A55: 0.6 | B55: 2008418.285 | C55: 19 | D55: 0.04589371981
A56: 0.8 | B56: 2135968.926 | C56: 23 | D56: 0.05555555556
A57: 1 | B57: 2263519.567 | C57: 6 | D57: 0.01449275362
A58: 1.2 | B58: 2391070.207 | C58: 11 | D58: 0.02657004831
A59: 1.4 | B59: 2518620.848 | C59: 12 | D59: 0.02898550725
A60: 1.6 | B60: 2646171.488 | C60: 8 | D60: 0.0193236715
A61: 1.8 | B61: 2773722.129 | C61: 2 | D61: 0.004830917874
A62: 2 | B62: 2901272.77 | C62: 3 | D62: 0.007246376812
A63: 2.2 | B63: =$B$52+A63*$B$34 -> 3028823.41 | C63: 5 | D63: 0.01207729469
A64: 2.4 | B64: 3156374.051 | C64: 1 | D64: 0.002415458937
A65: 2.6 | B65: 3283924.692 | C65: 2 | D65: 0.004830917874
A66: 2.8 | B66: 3411475.332 | C66: 4 | D66: 0.009661835749
A67: 3 | B67: 3539025.973 | C67: 7 | D67: 0.01690821256
A68: 3.2 | B68: 3666576.613 | C68: 3 | D68: 0.007246376812
A69: 3.4 | B69: 3794127.254 | C69: 1 | D69: 0.002415458937
A70: 3.6 | B70: 3921677.895 | C70: 2 | D70: 0.004830917874
A71: 3.8 | B71: 4049228.535 | C71: 0 | D71: 0
A72: 4 | B72: 4176779.176 | C72: 1 | D72: 0.002415458937
A73: 4+ | C73: 4 | D73: 0.009661835749
B74: Total | C74: =SUM(C37:C73) -> 414
A157: Sensitivity Values
A158: ='Sensitivities & Monte Carlo'!C155 -> 2576021.176 | B158: ='Sensitivities & Monte Carlo'!D155 -> 2126216.432 | C158: ='Sensitivities & Monte Carlo'!E155 -> 1676411.688 | D158: ='Sensitivities & Monte Carlo'!F155 -> 1226606.944 | E158: ='Sensitivities & Monte Carlo'!G155 -> 776802.1994 | F158: ='Sensitivities & Monte Carlo'!I143 -> 1243830.191
A159: ='Sensitivities & Monte Carlo'!C156 -> 2533455.13 | B159: ='Sensitivities & Monte Carlo'!D156 -> 2041084.34 | C159: ='Sensitivities & Monte Carlo'!E156 -> 1548713.549 | D159: ='Sensitivities & Monte Carlo'!F156 -> 1056342.759 | E159: ='Sensitivities & Monte Carlo'!G156 -> 563971.9683 | F159: ='Sensitivities & Monte Carlo'!I144 -> 909959.028
A160: ='Sensitivities & Monte Carlo'!C157 -> 2486416.976 | B160: ='Sensitivities & Monte Carlo'!D157 -> 1947008.032 | C160: ='Sensitivities & Monte Carlo'!E157 -> 1407599.088 | D160: ='Sensitivities & Monte Carlo'!F157 -> 868190.144 | E160: ='Sensitivities & Monte Carlo'!G157 -> 328781.1999 | F160: ='Sensitivities & Monte Carlo'!I145 -> 645089.5034
A161: ='Sensitivities & Monte Carlo'!C158 -> 2434453.687 | B161: ='Sensitivities & Monte Carlo'!D158 -> 1843081.453 | C161: ='Sensitivities & Monte Carlo'!E158 -> 1251709.219 | D161: ='Sensitivities & Monte Carlo'!F158 -> 660336.9848 | E161: ='Sensitivities & Monte Carlo'!G158 -> 68964.75085 | F161: ='Sensitivities & Monte Carlo'!I146 -> 434680.1809
A162: ='Sensitivities & Monte Carlo'!C159 -> 2377070.672 | B162: ='Sensitivities & Monte Carlo'!D159 -> 1728315.423 | C162: ='Sensitivities & Monte Carlo'!E159 -> 1079560.175 | D162: ='Sensitivities & Monte Carlo'!F159 -> 430804.9262 | E162: ='Sensitivities & Monte Carlo'!G159 -> -217950.3224 | F162: ='Sensitivities & Monte Carlo'!I147 -> 267131.6781
A163: ='Sensitivities & Monte Carlo'!C143 -> 7215092.64 | B163: ='Sensitivities & Monte Carlo'!D143 -> 5101105.049 | C163: ='Sensitivities & Monte Carlo'!E143 -> 3698967.686 | D163: ='Sensitivities & Monte Carlo'!F143 -> 2742717.859 | E163: ='Sensitivities & Monte Carlo'!G143 -> 2073694.366 | F163: ='Sensitivities & Monte Carlo'!H143 -> 1594516.242
A164: ='Sensitivities & Monte Carlo'!C144 -> 5002290.508 | B164: ='Sensitivities & Monte Carlo'!D144 -> 3578341.456 | C164: ='Sensitivities & Monte Carlo'!E144 -> 2623207.405 | D164: ='Sensitivities & Monte Carlo'!F144 -> 1964324.259 | E164: ='Sensitivities & Monte Carlo'!G144 -> 1497997.684 | F164: ='Sensitivities & Monte Carlo'!H144 -> 1160109.985
A165: ='Sensitivities & Monte Carlo'!C145 -> 3348523.522 | B165: ='Sensitivities & Monte Carlo'!D145 -> 2428799.526 | C165: ='Sensitivities & Monte Carlo'!E145 -> 1802870.756 | D165: ='Sensitivities & Monte Carlo'!F145 -> 1364737.421 | E165: ='Sensitivities & Monte Carlo'!G145 -> 1050093.41 | F165: ='Sensitivities & Monte Carlo'!H145 -> 818789.7588
A166: ='Sensitivities & Monte Carlo'!C146 -> 2117859.587 | B166: ='Sensitivities & Monte Carlo'!D146 -> 1563705.691 | C166: ='Sensitivities & Monte Carlo'!E146 -> 1178576.477 | D166: ='Sensitivities & Monte Carlo'!F146 -> 903358.3905 | E166: ='Sensitivities & Monte Carlo'!G146 -> 701662.066 | F166: ='Sensitivities & Monte Carlo'!H146 -> 550434.1807
A167: ='Sensitivities & Monte Carlo'!C147 -> 1205092.376 | B167: ='Sensitivities & Monte Carlo'!D147 -> 914012.3219 | C167: ='Sensitivities & Monte Carlo'!E147 -> 703906.6093 | D167: ='Sensitivities & Monte Carlo'!F147 -> 548290.7964 | E167: ='Sensitivities & Monte Carlo'!G147 -> 430341.5854 | F167: ='Sensitivities & Monte Carlo'!H147 -> 339073.8956
A168: ='Sensitivities & Monte Carlo'!C148 -> 529498.0809 | B168: ='Sensitivities & Monte Carlo'!D148 -> 426442.4842 | C168: ='Sensitivities & Monte Carlo'!E148 -> 342842.5437 | D168: ='Sensitivities & Monte Carlo'!F148 -> 274643.6285 | E168: ='Sensitivities & Monte Carlo'!G148 -> 218582.1031 | F168: ='Sensitivities & Monte Carlo'!H148 -> 172105.1173
A169: ='Sensitivities & Monte Carlo'!C149 -> 29682.99692 | B169: ='Sensitivities & Monte Carlo'!D149 -> 60218.62754 | C169: ='Sensitivities & Monte Carlo'!E149 -> 67639.75888 | D169: ='Sensitivities & Monte Carlo'!F149 -> 63121.30412 | E169: ='Sensitivities & Monte Carlo'!G149 -> 52692.47791 | F169: ='Sensitivities & Monte Carlo'!H149 -> 39633.38034
A170: ='Sensitivities & Monte Carlo'!C133 -> 2868343.362 | B170: ='Sensitivities & Monte Carlo'!D133 -> 2091781.12 | C170: ='Sensitivities & Monte Carlo'!E133 -> 1560040.934 | D170: ='Sensitivities & Monte Carlo'!F133 -> 1185554.066 | E170: ='Sensitivities & Monte Carlo'!G133 -> 914980.6427 | F170: ='Sensitivities & Monte Carlo'!H133 -> 714882.095
A171: ='Sensitivities & Monte Carlo'!C134 -> 3101267.694 | B171: ='Sensitivities & Monte Carlo'!D134 -> 2255459.379 | C171: ='Sensitivities & Monte Carlo'!E134 -> 1678117.116 | D171: ='Sensitivities & Monte Carlo'!F134 -> 1272785.542 | E171: ='Sensitivities & Monte Carlo'!G134 -> 980833.7513 | F171: ='Sensitivities & Monte Carlo'!H134 -> 765583.276
A172: ='Sensitivities & Monte Carlo'!C135 -> 3348523.522 | B172: ='Sensitivities & Monte Carlo'!D135 -> 2428799.526 | C172: ='Sensitivities & Monte Carlo'!E135 -> 1802870.756 | D172: ='Sensitivities & Monte Carlo'!F135 -> 1364737.421 | E172: ='Sensitivities & Monte Carlo'!G135 -> 1050093.41 | F172: ='Sensitivities & Monte Carlo'!H135 -> 818789.7588
A173: ='Sensitivities & Monte Carlo'!C136 -> 3610953.466 | B173: ='Sensitivities & Monte Carlo'!D136 -> 2612353.967 | C173: ='Sensitivities & Monte Carlo'!E136 -> 1934672.786 | D173: ='Sensitivities & Monte Carlo'!F136 -> 1461664.289 | E173: ='Sensitivities & Monte Carlo'!G136 -> 1122937.891 | F173: ='Sensitivities & Monte Carlo'!H136 -> 874628.6955
A174: ='Sensitivities & Monte Carlo'!C137 -> 3889444.891 | B174: ='Sensitivities & Monte Carlo'!D137 -> 2806703.848 | C174: ='Sensitivities & Monte Carlo'!E137 -> 2073913.041 | D174: ='Sensitivities & Monte Carlo'!F137 -> 1563833.432 | E174: ='Sensitivities & Monte Carlo'!G137 -> 1199554.163 | F174: ='Sensitivities & Monte Carlo'!H137 -> 933233.3034
A175: ='Sensitivities & Monte Carlo'!C138 -> 4184931.95 | B175: ='Sensitivities & Monte Carlo'!D138 -> 3012460.358 | C175: ='Sensitivities & Monte Carlo'!E138 -> 2221001.097 | D175: ='Sensitivities & Monte Carlo'!F138 -> 1671525.387 | E175: ='Sensitivities & Monte Carlo'!G138 -> 1280138.268 | F175: ='Sensitivities & Monte Carlo'!H138 -> 994743.1225
A176: ='Sensitivities & Monte Carlo'!C123 -> 1685569.761 | B176: ='Sensitivities & Monte Carlo'!D123 -> 1259930.944 | C176: ='Sensitivities & Monte Carlo'!E123 -> 956004.2866 | D176: ='Sensitivities & Monte Carlo'!F123 -> 733846.7945 | E176: ='Sensitivities & Monte Carlo'!G123 -> 567987.6442 | F176: ='Sensitivities & Monte Carlo'!H123 -> 441762.8239
A177: ='Sensitivities & Monte Carlo'!C124 -> 2325018.885 | B177: ='Sensitivities & Monte Carlo'!D124 -> 1704042.399 | C177: ='Sensitivities & Monte Carlo'!E124 -> 1273473.404 | D177: ='Sensitivities & Monte Carlo'!F124 -> 966919.3064 | E177: ='Sensitivities & Monte Carlo'!G124 -> 743363.4709 | F177: ='Sensitivities & Monte Carlo'!H124 -> 576748.1491
A178: ='Sensitivities & Monte Carlo'!C125 -> 2827982.844 | B178: ='Sensitivities & Monte Carlo'!D125 -> 2054450.195 | C178: ='Sensitivities & Monte Carlo'!E125 -> 1525052.779 | D178: ='Sensitivities & Monte Carlo'!F125 -> 1152630.971 | E178: ='Sensitivities & Monte Carlo'!G125 -> 883999.785 | F178: ='Sensitivities & Monte Carlo'!H125 -> 685768.7338
A179: ='Sensitivities & Monte Carlo'!C126 -> 3161325.358 | B179: ='Sensitivities & Monte Carlo'!D126 -> 2290793.428 | C179: ='Sensitivities & Monte Carlo'!E126 -> 1697938.533 | D179: ='Sensitivities & Monte Carlo'!F126 -> 1282750.722 | E179: ='Sensitivities & Monte Carlo'!G126 -> 984490.7727 | F179: ='Sensitivities & Monte Carlo'!H126 -> 765198.3048
A180: ='Sensitivities & Monte Carlo'!C127 -> 3348523.522 | B180: ='Sensitivities & Monte Carlo'!D127 -> 2428799.526 | C180: ='Sensitivities & Monte Carlo'!E127 -> 1802870.756 | D180: ='Sensitivities & Monte Carlo'!F127 -> 1364737.421 | E180: ='Sensitivities & Monte Carlo'!G127 -> 1050093.41 | F180: ='Sensitivities & Monte Carlo'!H127 -> 818789.7588
A181: ='Sensitivities & Monte Carlo'!C128 -> 3431675.29 | B181: ='Sensitivities & Monte Carlo'!D128 -> 2495999.058 | C181: ='Sensitivities & Monte Carlo'!E128 -> 1858253.422 | D181: ='Sensitivities & Monte Carlo'!F128 -> 1411138.849 | E181: ='Sensitivities & Monte Carlo'!G128 -> 1089515.506 | F181: ='Sensitivities & Monte Carlo'!H128 -> 852682.9395
A182: ='Sensitivities & Monte Carlo'!C111 -> 2318874.795 | B182: ='Sensitivities & Monte Carlo'!D111 -> 1953374.966 | C182: ='Sensitivities & Monte Carlo'!E111 -> 1658410.946 | D182: ='Sensitivities & Monte Carlo'!F111 -> 1418074.964 | E182: ='Sensitivities & Monte Carlo'!G111 -> 1220461.52 | F182: ='Sensitivities & Monte Carlo'!H111 -> 1056570.964
A183: ='Sensitivities & Monte Carlo'!C112 -> 2293710.321 | B183: ='Sensitivities & Monte Carlo'!D112 -> 1962404.253 | C183: ='Sensitivities & Monte Carlo'!E112 -> 1689616.64 | D183: ='Sensitivities & Monte Carlo'!F112 -> 1463256.742 | E183: ='Sensitivities & Monte Carlo'!G112 -> 1274026.126 | F183: ='Sensitivities & Monte Carlo'!H112 -> 1114715.075
A184: ='Sensitivities & Monte Carlo'!C113 -> 2268545.847 | B184: ='Sensitivities & Monte Carlo'!D113 -> 1972020.3 | C184: ='Sensitivities & Monte Carlo'!E113 -> 1722858.842 | D184: ='Sensitivities & Monte Carlo'!F113 -> 1512204.32 | E184: ='Sensitivities & Monte Carlo'!G113 -> 1333054.644 | F184: ='Sensitivities & Monte Carlo'!H113 -> 1179837.998
A185: ='Sensitivities & Monte Carlo'!C114 -> 2243381.374 | B185: ='Sensitivities & Monte Carlo'!D114 -> 1982241.077 | C185: ='Sensitivities & Monte Carlo'!E114 -> 1758252.142 | D185: ='Sensitivities & Monte Carlo'!F114 -> 1565223.029 | E185: ='Sensitivities & Monte Carlo'!G114 -> 1398120.236 | F185: ='Sensitivities & Monte Carlo'!H114 -> 1252830.978
A186: ='Sensitivities & Monte Carlo'!C115 -> 2218216.9 | B186: ='Sensitivities & Monte Carlo'!D115 -> 1993085.129 | C186: ='Sensitivities & Monte Carlo'!E115 -> 1795918.205 | D186: ='Sensitivities & Monte Carlo'!F115 -> 1622645.934 | E186: ='Sensitivities & Monte Carlo'!G115 -> 1469864.311 | F186: ='Sensitivities & Monte Carlo'!H115 -> 1334715.779
A187: ='Sensitivities & Monte Carlo'!C116 -> 2193052.426 | B187: ='Sensitivities & Monte Carlo'!D116 -> 2004571.591 | C187: ='Sensitivities & Monte Carlo'!E116 -> 1835986.254 | D187: ='Sensitivities & Monte Carlo'!F116 -> 1684836.656 | E187: ='Sensitivities & Monte Carlo'!G116 -> 1549005.697 | F187: ='Sensitivities & Monte Carlo'!H116 -> 1426666.398
A188: ='Sensitivities & Monte Carlo'!C117 -> 2167887.953 | B188: ='Sensitivities & Monte Carlo'!D117 -> 2016720.211 | C188: ='Sensitivities & Monte Carlo'!E117 -> 1878593.599 | D188: ='Sensitivities & Monte Carlo'!F117 -> 1752192.523 | E188: ='Sensitivities & Monte Carlo'!G117 -> 1636351.198 | F188: ='Sensitivities & Monte Carlo'!H117 -> 1530034.834
A189: ='Sensitivities & Monte Carlo'!C102 -> 3343208.065 | B189: ='Sensitivities & Monte Carlo'!D102 -> 2956694.17 | C189: ='Sensitivities & Monte Carlo'!E102 -> 2624573.419 | D189: ='Sensitivities & Monte Carlo'!F102 -> 2337979.442 | E189: ='Sensitivities & Monte Carlo'!G102 -> 2089658.634 | F189: ='Sensitivities & Monte Carlo'!I113 -> 1048092.794
A190: ='Sensitivities & Monte Carlo'!C103 -> 2930830.488 | B190: ='Sensitivities & Monte Carlo'!D103 -> 2602039.482 | C190: ='Sensitivities & Monte Carlo'!E103 -> 2318244.103 | D190: ='Sensitivities & Monte Carlo'!F103 -> 2072286.084 | E190: ='Sensitivities & Monte Carlo'!G103 -> 1858280.787 | F190: ='Sensitivities & Monte Carlo'!I114 -> 1125978.346
A191: ='Sensitivities & Monte Carlo'!C104 -> 2579709.996 | B191: ='Sensitivities & Monte Carlo'!D104 -> 2298681.337 | C191: ='Sensitivities & Monte Carlo'!E104 -> 2055059.877 | D191: ='Sensitivities & Monte Carlo'!F104 -> 1843036.489 | E191: ='Sensitivities & Monte Carlo'!G104 -> 1657813.261 | F191: ='Sensitivities & Monte Carlo'!I115 -> 1214792.765
A192: ='Sensitivities & Monte Carlo'!C105 -> 2279289.23 | B192: ='Sensitivities & Monte Carlo'!D105 -> 2037978.432 | C192: ='Sensitivities & Monte Carlo'!E105 -> 1827915.54 | D192: ='Sensitivities & Monte Carlo'!F105 -> 1644362.77 | E192: ='Sensitivities & Monte Carlo'!G105 -> 1483389.371 | F192: ='Sensitivities & Monte Carlo'!I116 -> 1316238.093
A193: ='Sensitivities & Monte Carlo'!C106 -> 2021040.185 | B193: ='Sensitivities & Monte Carlo'!D106 -> 1812916.645 | C193: ='Sensitivities & Monte Carlo'!E106 -> 1631016.767 | D193: ='Sensitivities & Monte Carlo'!F106 -> 1471457.92 | E193: ='Sensitivities & Monte Carlo'!G106 -> 1331004.783 | F193: ='Sensitivities & Monte Carlo'!I117 -> 1432323.378
A194: ='Sensitivities & Monte Carlo'!C77 -> 1459431.924 | B194: ='Sensitivities & Monte Carlo'!D77 -> 1568498.042 | C194: ='Sensitivities & Monte Carlo'!E77 -> 1683663.78 | D194: ='Sensitivities & Monte Carlo'!F77 -> 1805265.453 | E194: ='Sensitivities & Monte Carlo'!G77 -> 1933656.418 | F194: ='Sensitivities & Monte Carlo'!H77 -> 2069207.833
A195: ='Sensitivities & Monte Carlo'!C78 -> 1455895.253 | B195: ='Sensitivities & Monte Carlo'!D78 -> 1564961.371 | C195: ='Sensitivities & Monte Carlo'!E78 -> 1680127.109 | D195: ='Sensitivities & Monte Carlo'!F78 -> 1801728.782 | E195: ='Sensitivities & Monte Carlo'!G78 -> 1930119.747 | F195: ='Sensitivities & Monte Carlo'!H78 -> 2065671.162
A196: ='Sensitivities & Monte Carlo'!C79 -> 1452179.832 | B196: ='Sensitivities & Monte Carlo'!D79 -> 1561245.95 | C196: ='Sensitivities & Monte Carlo'!E79 -> 1676411.688 | D196: ='Sensitivities & Monte Carlo'!F79 -> 1798013.36 | E196: ='Sensitivities & Monte Carlo'!G79 -> 1926404.326 | F196: ='Sensitivities & Monte Carlo'!H79 -> 2061955.741
A197: ='Sensitivities & Monte Carlo'!C80 -> 1448276.616 | B197: ='Sensitivities & Monte Carlo'!D80 -> 1557342.734 | C197: ='Sensitivities & Monte Carlo'!E80 -> 1672508.472 | D197: ='Sensitivities & Monte Carlo'!F80 -> 1794110.144 | E197: ='Sensitivities & Monte Carlo'!G80 -> 1922501.11 | F197: ='Sensitivities & Monte Carlo'!H80 -> 2058052.525
A198: ='Sensitivities & Monte Carlo'!C81 -> 1444176.14 | B198: ='Sensitivities & Monte Carlo'!D81 -> 1553242.257 | C198: ='Sensitivities & Monte Carlo'!E81 -> 1668407.996 | D198: ='Sensitivities & Monte Carlo'!F81 -> 1790009.668 | E198: ='Sensitivities & Monte Carlo'!G81 -> 1918400.633 | F198: ='Sensitivities & Monte Carlo'!H81 -> 2053952.049
A199: ='Sensitivities & Monte Carlo'!C82 -> 1439868.499 | B199: ='Sensitivities & Monte Carlo'!D82 -> 1548934.617 | C199: ='Sensitivities & Monte Carlo'!E82 -> 1664100.355 | D199: ='Sensitivities & Monte Carlo'!F82 -> 1785702.028 | E199: ='Sensitivities & Monte Carlo'!G82 -> 1914092.993 | F199: ='Sensitivities & Monte Carlo'!H82 -> 2049644.408
A200: ='Sensitivities & Monte Carlo'!C67 -> 900046.6316 | B200: ='Sensitivities & Monte Carlo'!D67 -> 896509.9605 | C200: ='Sensitivities & Monte Carlo'!E67 -> 892794.5392 | D200: ='Sensitivities & Monte Carlo'!F67 -> 888891.3232 | E200: ='Sensitivities & Monte Carlo'!G67 -> 884790.8469 | F200: ='Sensitivities & Monte Carlo'!H67 -> 880483.2065
A201: ='Sensitivities & Monte Carlo'!C68 -> 1192740.787 | B201: ='Sensitivities & Monte Carlo'!D68 -> 1189204.116 | C201: ='Sensitivities & Monte Carlo'!E68 -> 1185488.695 | D201: ='Sensitivities & Monte Carlo'!F68 -> 1181585.479 | E201: ='Sensitivities & Monte Carlo'!G68 -> 1177485.002 | F201: ='Sensitivities & Monte Carlo'!H68 -> 1173177.362
A202: ='Sensitivities & Monte Carlo'!C69 -> 1424987.756 | B202: ='Sensitivities & Monte Carlo'!D69 -> 1421451.085 | C202: ='Sensitivities & Monte Carlo'!E69 -> 1417735.664 | D202: ='Sensitivities & Monte Carlo'!F69 -> 1413832.448 | E202: ='Sensitivities & Monte Carlo'!G69 -> 1409731.971 | F202: ='Sensitivities & Monte Carlo'!H69 -> 1405424.331
A203: ='Sensitivities & Monte Carlo'!C70 -> 1585371.479 | B203: ='Sensitivities & Monte Carlo'!D70 -> 1581834.808 | C203: ='Sensitivities & Monte Carlo'!E70 -> 1578119.386 | D203: ='Sensitivities & Monte Carlo'!F70 -> 1574216.17 | E203: ='Sensitivities & Monte Carlo'!G70 -> 1570115.694 | F203: ='Sensitivities & Monte Carlo'!H70 -> 1565808.054
A204: ='Sensitivities & Monte Carlo'!C71 -> 1683663.78 | B204: ='Sensitivities & Monte Carlo'!D71 -> 1680127.109 | C204: ='Sensitivities & Monte Carlo'!E71 -> 1676411.688 | D204: ='Sensitivities & Monte Carlo'!F71 -> 1672508.472 | E204: ='Sensitivities & Monte Carlo'!G71 -> 1668407.996 | F204: ='Sensitivities & Monte Carlo'!H71 -> 1664100.355
A205: ='Sensitivities & Monte Carlo'!C72 -> 1736526.279 | B205: ='Sensitivities & Monte Carlo'!D72 -> 1732989.608 | C205: ='Sensitivities & Monte Carlo'!E72 -> 1729274.187 | D205: ='Sensitivities & Monte Carlo'!F72 -> 1725370.971 | E205: ='Sensitivities & Monte Carlo'!G72 -> 1721270.494 | F205: ='Sensitivities & Monte Carlo'!H72 -> 1716962.854
A206: ='Sensitivities & Monte Carlo'!C57 -> 760635.2775 | B206: ='Sensitivities & Monte Carlo'!D57 -> 825160.1571 | C206: ='Sensitivities & Monte Carlo'!E57 -> 892794.5392 | D206: ='Sensitivities & Monte Carlo'!F57 -> 963684.7018 | E206: ='Sensitivities & Monte Carlo'!G57 -> 1037983.316 | F206: ='Sensitivities & Monte Carlo'!H57 -> 1115849.697
A207: ='Sensitivities & Monte Carlo'!C58 -> 1017049.29 | B207: ='Sensitivities & Monte Carlo'!D58 -> 1099113.052 | C207: ='Sensitivities & Monte Carlo'!E58 -> 1185488.695 | D207: ='Sensitivities & Monte Carlo'!F58 -> 1276398.812 | E207: ='Sensitivities & Monte Carlo'!G58 -> 1372076.637 | F207: ='Sensitivities & Monte Carlo'!H58 -> 1472766.489
A208: ='Sensitivities & Monte Carlo'!C59 -> 1221066.258 | B208: ='Sensitivities & Monte Carlo'!D59 -> 1316776.456 | C208: ='Sensitivities & Monte Carlo'!E59 -> 1417735.664 | D208: ='Sensitivities & Monte Carlo'!F59 -> 1524226.781 | E208: ='Sensitivities & Monte Carlo'!G59 -> 1636546.755 | F208: ='Sensitivities & Monte Carlo'!H59 -> 1755007.194
A209: ='Sensitivities & Monte Carlo'!C60 -> 1363334.61 | B209: ='Sensitivities & Monte Carlo'!D60 -> 1467812.796 | C209: ='Sensitivities & Monte Carlo'!E60 -> 1578119.386 | D209: ='Sensitivities & Monte Carlo'!F60 -> 1694574.189 | E209: ='Sensitivities & Monte Carlo'!G60 -> 1817513.142 | F209: ='Sensitivities & Monte Carlo'!H60 -> 1947289.024
A210: ='Sensitivities & Monte Carlo'!C61 -> 1452179.832 | B210: ='Sensitivities & Monte Carlo'!D61 -> 1561245.95 | C210: ='Sensitivities & Monte Carlo'!E61 -> 1676411.688 | D210: ='Sensitivities & Monte Carlo'!F61 -> 1798013.36 | E210: ='Sensitivities & Monte Carlo'!G61 -> 1926404.326 | F210: ='Sensitivities & Monte Carlo'!H61 -> 2061955.741
A211: ='Sensitivities & Monte Carlo'!C62 -> 1501664.918 | B211: ='Sensitivities & Monte Carlo'!D62 -> 1612389.661 | C211: ='Sensitivities & Monte Carlo'!E62 -> 1729274.187 | D211: ='Sensitivities & Monte Carlo'!F62 -> 1852657.477 | E211: ='Sensitivities & Monte Carlo'!G62 -> 1982895.681 | F211: ='Sensitivities & Monte Carlo'!H62 -> 2120362.878
A212: ='Sensitivities & Monte Carlo'!C48 -> 3420473.91 | B212: ='Sensitivities & Monte Carlo'!D48 -> 3420473.91 | C212: ='Sensitivities & Monte Carlo'!E48 -> 3420473.91 | D212: ='Sensitivities & Monte Carlo'!F48 -> 3420473.91 | E212: ='Sensitivities & Monte Carlo'!G48 -> 3420473.91 | F212: ='Sensitivities & Monte Carlo'!I148 -> 133237.7405
A213: ='Sensitivities & Monte Carlo'!C49 -> 2432073.472 | B213: ='Sensitivities & Monte Carlo'!D49 -> 2432073.472 | C213: ='Sensitivities & Monte Carlo'!E49 -> 2432073.472 | D213: ='Sensitivities & Monte Carlo'!F49 -> 2432073.472 | E213: ='Sensitivities & Monte Carlo'!G49 -> 2432073.472 | F213: ='Sensitivities & Monte Carlo'!I149 -> 25726.1779
A214: ='Sensitivities & Monte Carlo'!C50 -> 1676411.688 | B214: ='Sensitivities & Monte Carlo'!D50 -> 1676411.688 | C214: ='Sensitivities & Monte Carlo'!E50 -> 1676411.688 | D214: ='Sensitivities & Monte Carlo'!F50 -> 1676411.688 | E214: ='Sensitivities & Monte Carlo'!G50 -> 1676411.688 | F214: ='Sensitivities & Monte Carlo'!I133 -> 563734.713
A215: ='Sensitivities & Monte Carlo'!C51 -> 1099702.333 | B215: ='Sensitivities & Monte Carlo'!D51 -> 1099702.333 | C215: ='Sensitivities & Monte Carlo'!E51 -> 1099702.333 | D215: ='Sensitivities & Monte Carlo'!F51 -> 1099702.333 | E215: ='Sensitivities & Monte Carlo'!G51 -> 1099702.333 | F215: ='Sensitivities & Monte Carlo'!I134 -> 603474.7502
A216: ='Sensitivities & Monte Carlo'!C52 -> 659847.0945 | B216: ='Sensitivities & Monte Carlo'!D52 -> 659847.0945 | C216: ='Sensitivities & Monte Carlo'!E52 -> 659847.0945 | D216: ='Sensitivities & Monte Carlo'!F52 -> 659847.0945 | E216: ='Sensitivities & Monte Carlo'!G52 -> 659847.0945 | F216: ='Sensitivities & Monte Carlo'!I135 -> 645089.5034
A217: ='Sensitivities & Monte Carlo'!C38 -> 3018511.059 | B217: ='Sensitivities & Monte Carlo'!D38 -> 3214125.152 | C217: ='Sensitivities & Monte Carlo'!E38 -> 3420473.91 | D217: ='Sensitivities & Monte Carlo'!F38 -> 3638120.031 | E217: ='Sensitivities & Monte Carlo'!G38 -> 3867652.87 | F217: ='Sensitivities & Monte Carlo'!H38 -> 4109689.536
A218: ='Sensitivities & Monte Carlo'!C39 -> 2130517.401 | B218: ='Sensitivities & Monte Carlo'!D39 -> 2277224.999 | C218: ='Sensitivities & Monte Carlo'!E39 -> 2432073.472 | D218: ='Sensitivities & Monte Carlo'!F39 -> 2595500.535 | E218: ='Sensitivities & Monte Carlo'!G39 -> 2767965.343 | F218: ='Sensitivities & Monte Carlo'!H39 -> 2949949.398
A219: ='Sensitivities & Monte Carlo'!C40 -> 1452179.832 | B219: ='Sensitivities & Monte Carlo'!D40 -> 1561245.95 | C219: ='Sensitivities & Monte Carlo'!E40 -> 1676411.688 | D219: ='Sensitivities & Monte Carlo'!F40 -> 1798013.36 | E219: ='Sensitivities & Monte Carlo'!G40 -> 1926404.326 | F219: ='Sensitivities & Monte Carlo'!H40 -> 2061955.741
A220: ='Sensitivities & Monte Carlo'!C41 -> 934691.2875 | B220: ='Sensitivities & Monte Carlo'!D41 -> 1014944.471 | C220: ='Sensitivities & Monte Carlo'!E41 -> 1099702.333 | D220: ='Sensitivities & Monte Carlo'!F41 -> 1189219.543 | E220: ='Sensitivities & Monte Carlo'!G41 -> 1283764.144 | F220: ='Sensitivities & Monte Carlo'!H41 -> 1383618.172
A221: ='Sensitivities & Monte Carlo'!C42 -> 539960.3499 | B221: ='Sensitivities & Monte Carlo'!D42 -> 598270.0099 | C221: ='Sensitivities & Monte Carlo'!E42 -> 659847.0945 | D221: ='Sensitivities & Monte Carlo'!F42 -> 724881.0612 | E221: ='Sensitivities & Monte Carlo'!G42 -> 793571.6988 | F221: ='Sensitivities & Monte Carlo'!H42 -> 866129.6272
A222: ='Sensitivities & Monte Carlo'!C28 -> 1185488.695 | B222: ='Sensitivities & Monte Carlo'!D28 -> 1417735.664 | C222: ='Sensitivities & Monte Carlo'!E28 -> 1578119.386 | D222: ='Sensitivities & Monte Carlo'!F28 -> 1676411.688 | E222: ='Sensitivities & Monte Carlo'!G28 -> 1729274.187 | F222: ='Sensitivities & Monte Carlo'!I136 -> 688671.2141
A223: ='Sensitivities & Monte Carlo'!C29 -> 1185488.695 | B223: ='Sensitivities & Monte Carlo'!D29 -> 1417735.664 | C223: ='Sensitivities & Monte Carlo'!E29 -> 1578119.386 | D223: ='Sensitivities & Monte Carlo'!F29 -> 1676411.688 | E223: ='Sensitivities & Monte Carlo'!G29 -> 1729274.187 | F223: ='Sensitivities & Monte Carlo'!I137 -> 734316.4243
A224: ='Sensitivities & Monte Carlo'!C30 -> 1185488.695 | B224: ='Sensitivities & Monte Carlo'!D30 -> 1417735.664 | C224: ='Sensitivities & Monte Carlo'!E30 -> 1578119.386 | D224: ='Sensitivities & Monte Carlo'!F30 -> 1676411.688 | E224: ='Sensitivities & Monte Carlo'!G30 -> 1729274.187 | F224: ='Sensitivities & Monte Carlo'!I138 -> 782126.1562
A225: ='Sensitivities & Monte Carlo'!C31 -> 1185488.695 | B225: ='Sensitivities & Monte Carlo'!D31 -> 1417735.664 | C225: ='Sensitivities & Monte Carlo'!E31 -> 1578119.386 | D225: ='Sensitivities & Monte Carlo'!F31 -> 1676411.688 | E225: ='Sensitivities & Monte Carlo'!G31 -> 1729274.187 | F225: ='Sensitivities & Monte Carlo'!I123 -> 344012.7353
A226: ='Sensitivities & Monte Carlo'!I128 -> 674529.074 | B226: ='Sensitivities & Monte Carlo'!I127 -> 645089.5034 | C226: ='Sensitivities & Monte Carlo'!I126 -> 600517.1419 | D226: ='Sensitivities & Monte Carlo'!I125 -> 536420.5276 | E226: ='Sensitivities & Monte Carlo'!I112 -> 979689.5274 | F226: ='Sensitivities & Monte Carlo'!I124 -> 450090.7386
